Workbook

Sheet Prezenční listina
A1: ="Prezenční listina - Malý svratecký maratón "&O2 -> Prezenční listina - Malý svratecký maratón 2019
B2: Příjmení | C2: Jméno | D2: Narození | E2: Oddíl / Bydliště | F2: Startovní číslo | G2: Adresa (e-mail) | H2: Kategorie | O2: 2019 | S2: Pohlaví
A3: 1 | B3: Bělehrádek | C3: Pavel | D3: 1958 | E3: TJ Čolek (Velké Tresné) | F3: 31 | H3: =IF(S3<>"Ž",IF($O$2-D3>39,IF($O$2-D3>49,IF($O$2-D3>59,IF($O$2-D3>69,IF($O$2-D3>90,"","E"),"D"),"C"),"B"),"A"),IF(S3="Ž",IF($O$2-D3>34,IF($O$2-D3>44,IF($O$2-D3>90,"","H"),"G"),"F"))) -> D | S3: =IF(LEN(B3)=0," ",IF(MID(B3,LEN(B3),1)="á","Ž","M")) -> M
A4: =IF(B4<>0,A3+1,"") -> 2 | B4: Bracek | C4: Petr | D4: 1979 | E4: Kuřim | F4: 46 | H4: B | S4: M
A5: =IF(B5<>0,A4+1,"") -> 3 | B5: Crha | C5: Radek | D5: 1979 | E5: NON AUTOS Radek CRHA (Vidonín) | F5: 69 | H5: B | S5: M
A6: 4 | B6: Čapka | C6: František | D6: 1968 | E6: Minerva Boskovice | F6: 65 | H6: C | K6: Rok nastavit v buňce O2 | S6: M
A7: 5 | B7: Čuhel | C7: Jiří | D7: 1958 | E7: Křtěnov | F7: 50 | H7: D | S7: M
A8: 6 | B8: Dušil | C8: Jarda | D8: 1970 | E8: Slaměnka (Brno) | F8: 67 | H8: B | S8: M
A9: 7 | B9: Dvorský | C9: Ladislav | D9: 1965 | E9: MKS Ostrava | F9: 15 | H9: C | S9: M
A10: 8 | B10: Dvořák | C10: Petr | D10: 1986 | E10: Brno | F10: 34 | H10: A | S10: M
A11: 9 | B11: Eliáš | C11: Lukáš | D11: 1979 | E11: Ledová stěna Vír | F11: 5 | H11: B | S11: M
A12: 10 | B12: Fikejs | C12: Vladimír | D12: 1957 | E12: 3D Finess Race Team (Žamberk) | F12: 28 | H12: D | S12: M
A13: 11 | B13: Fousek | C13: Jan | D13: 1991 | E13: MKS Ostrava | F13: 13 | H13: A | S13: M
A14: 12 | B14: Glier | C14: Michal | D14: 1982 | E14: behejbrno.com | F14: 52 | H14: A | S14: M
A15: 13 | B15: Glier | C15: Miroslav | D15: 1949 | E15: Ústí nad Labem | F15: 12 | H15: E | S15: M
A16: 14 | B16: Hanák | C16: Jakub | D16: 1986 | E16: Plant Powered Runners (Vír) | H16: A | S16: M
A17: 15 | B17: Holý | C17: Josef | D17: 1941 | E17: AC Moravská Slavia Brno | F17: 23 | H17: E | S17: M
A18: 16 | B18: Jakubec | C18: Bohumil | D18: 1975 | E18: Brno | H18: B | S18: M
A19: 17 | B19: Jílek | C19: Jaroslav | D19: 1966 | E19: Bystřice nad Pernštejnem | F19: 62 | H19: C | S19: M
A20: 18 | B20: Konečný | C20: Libor | D20: 1971 | E20: Kuřim | F20: 70 | H20: B | S20: M
A21: 19 | B21: Koudelka | C21: Drahomír | D21: 1971 | E21: Meixner Consulting (Pětihosty) | F21: 26 | H21: B | S21: M
A22: 20 | B22: Kovačič | C22: Sebastian | D22: 1978 | E22: Bílovice nad Svitavou | F22: 49 | H22: B | S22: M
A23: 21 | B23: Krátký | C23: Josef | D23: 1965 | E23: Hvězda Pardubice | F23: 35 | H23: C | S23: M
A24: 22 | B24: Krátký | C24: Pavel | D24: 1974 | E24: TS Jan Kohut (Olomučany) | F24: 33 | H24: B | S24: M
A25: 23 | B25: Kratochvíl | C25: Jaroslav | D25: 1977 | E25: SDH Hluboké | F25: 25 | H25: B | S25: M
A26: 24 | B26: Kropáček | C26: Jaroslav | D26: 1970 | E26: Triatlon Křepice | F26: 45 | H26: B | S26: M
A27: 25 | B27: Lorenčík | C27: Aleš | D27: 1973 | E27: Chrudim | F27: 57 | H27: B | S27: M
A28: 26 | B28: Lorenzová | C28: Dana | D28: 1968 | E28: Nové Město na Moravě | H28: H | S28: Ž
A29: 27 | B29: Mareš | C29: Bohumil | D29: 1951 | E29: Posilovna Průvan Brno | F29: 37 | H29: D | S29: M
A30: 28 | B30: Novotný | C30: Jaroslav | D30: 1955 | E30: TEP Trutnov | F30: 29 | H30: D | S30: M
A31: 29 | B31: Novotný | C31: Petr | D31: 1965 | E31: AK Kuřim | H31: C | S31: M
A32: 30 | B32: Otta | C32: Roman | D32: 1961 | E32: Q Sport Vrchlabí | F32: 41 | H32: C | S32: M
A33: 31 | B33: Petržílek | C33: Zdeněk | D33: 1955 | E33: KRB Chrudim | H33: D | S33: M
A34: 32 | B34: Psula | C34: Roman | D34: 1984 | E34: Ladermon Team (Olomouc) | F34: 2 | H34: A | S34: M
A35: 33 | B35: Řezníček | C35: Petr | D35: 1973 | E35: Polnička | F35: 40 | H35: B | S35: =IF(LEN(B35)=0," ",IF(MID(B35,LEN(B35),1)="á","Ž","M")) -> M
A36: 34 | B36: Sedláček | C36: Svatopluk | D36: 1957 | E36: AC Moravská Slavia Brno | F36: 68 | H36: D | S36: M
A37: 35 | B37: Sotolář | C37: Stanislav | D37: 1970 | E37: Veselice | H37: B | S37: M
A38: 36 | B38: Svoboda | C38: Petr | D38: 1968 | E38: AC Moravská Slavia Brno | F38: 38 | H38: C | S38: M
A39: 37 | B39: Šerák | C39: Martin | D39: 1978 | E39: Sokol Bílovice nad Svitavou | F39: 42 | H39: B | S39: M
A40: 38 | B40: Timmermansá | C40: Aniek | D40: 1985 | E40: Autocamp Na Kopci | F40: 3 | H40: F | S40: Ž
A41: 39 | B41: Tůma | C41: Petr | D41: 1968 | E41: Slatinští šneci (Slatina) | F41: 17 | H41: C | S41: M
A42: 40 | B42: Viščor | C42: Pavel | D42: 1974 | E42: Brno | F42: 48 | H42: B | S42: M
A43: 41 | B43: Vykoupil | C43: Miloslav | D43: 1972 | E43: Veverská Bitýška | F43: 56 | H43: B | S43: M
A44: 42 | B44: Vytisk | C44: Alfons | D44: 1949 | E44: MKS Ostrava | F44: 14 | H44: E | S44: M
A45: 43 | B45: Weis | C45: Josef | D45: 1974 | E45: Elite Sport Boskovice | F45: 51 | H45: B | S45: M
A46: 44 | B46: Zejda | C46: Ivo | D46: 1956 | E46: AC Moravská Slavia Brno | F46: 22 | H46: D | S46: M
A47: 45 | B47: Hanák | C47: Martin | D47: 1993 | E47: Ujčov | F47: 1 | H47: =IF(S47<>"Ž",IF($O$2-D47>39,IF($O$2-D47>49,IF($O$2-D47>59,IF($O$2-D47>69,IF($O$2-D47>90,"","E"),"D"),"C"),"B"),"A"),IF(S47="Ž",IF($O$2-D47>34,IF($O$2-D47>44,IF($O$2-D47>90,"","H"),"G"),"F"))) -> A | S47: M
A48: 46 | B48: Vintrlík | C48: Martin | D48: 1977 | E48: Triatlon Křepice | F48: 44 | H48: B | S48: M
A49: 47 | B49: Komárková | C49: Zdeňka | D49: 1974 | E49: SDH Bolešín | F49: 4 | H49: H | S49: Ž
A50: 48 | B50: Rychecký | C50: Tomáš | D50: 1966 | E50: HH Smíchov | F50: 6 | H50: C | S50: M
A51: 49 | B51: Kalaš | C51: Rudolf | D51: 1971 | E51: Boskovice | F51: 7 | H51: B | S51: M
A52: 50 | B52: Dostálová | C52: Vendula | D52: 1981 | E52: HALL 3000 | F52: 8 | H52: G | S52: Ž
A53: 51 | B53: Pivec | C53: Jan | D53: 1981 | E53: HALL 3000 | F53: 9 | H53: A | S53: M
A54: 52 | B54: Bečička | C54: Petr | D54: 1960 | E54: HALL 3000 | F54: 10 | H54: C | S54: M
A55: 53 | B55: Komblisá | C55: Michaela | D55: 1981 | E55: Izrael | F55: 11 | H55: G | S55: Ž
A56: 54 | B56: Berák | C56: Lukáš | D56: 1984 | E56: Chotěvice | F56: 16 | H56: A | S56: M
A57: 55 | B57: Bouček | C57: Zdeněk | D57: 1956 | E57: Velké Meziříčí | F57: 18 | H57: D | S57: M
A58: 56 | B58: Ježová | C58: Martina | D58: 1975 | E58: Brno | F58: 20 | H58: G | S58: Ž
A59: 57 | B59: Podsedník | C59: Marek | D59: 1985 | E59: Brno | F59: 21 | H59: A | S59: M
A60: 58 | B60: Koutník | C60: Lumír | D60: 1967 | E60: A.O. Spartak Vrchlabí | F60: 24 | H60: C | S60: M
A61: 59 | B61: Kubík | C61: Jaromír | D61: 1955 | E61: Blansko | F61: 27 | H61: D | S61: M
A62: 60 | B62: Příhoda | C62: Jan | D62: 1983 | E62: Brno | F62: 30 | H62: A | S62: M
A63: 61 | B63: Brázda | C63: Richard | D63: 1975 | E63: Český běžecký klub, Brno | F63: 32 | H63: B | S63: M
A64: 62 | B64: Dvořáček | C64: Jiří | D64: 1968 | E64: Petrovice | F64: 36 | H64: C | S64: M
A65: 63 | B65: Faja | C65: Ondřej | D65: 1976 | E65: Brno | F65: 39 | H65: B | S65: M
A66: 64 | B66: Exner | C66: Jakub | D66: 1983 | E66: Swoboda-pteam | F66: 43 | H66: A | S66: M
A67: 65 | B67: Plachý | C67: Martin | D67: 1965 | E67: MK Prostějov | F67: 47 | H67: =IF(S67<>"Ž",IF($O$2-D67>39,IF($O$2-D67>49,IF($O$2-D67>59,IF($O$2-D67>69,IF($O$2-D67>90,"","E"),"D"),"C"),"B"),"A"),IF(S67="Ž",IF($O$2-D67>34,IF($O$2-D67>44,IF($O$2-D67>90,"","H"),"G"),"F"))) -> C | S67: =IF(LEN(B67)=0," ",IF(MID(B67,LEN(B67),1)="á","Ž","M")) -> M
A68: 66 | B68: Orálek | C68: Daniel | D68: 1970 | E68: behejbrno.com | F68: 53 | H68: B | S68: M
A69: =IF(B69<>0,A68+1,"") -> 67 | B69: Sajdl | C69: Ondřej | D69: 1978 | E69: Brno | F69: 54 | H69: B | S69: M
A70: 68 | B70: Šůstek | C70: Roman | D70: 1968 | E70: Brno | F70: 55 | H70: C | S70: M
A71: 69 | B71: Jurgová | C71: Martina | D71: 1979 | E71: Brno | F71: 58 | H71: G | S71: Ž
A72: 70 | B72: Havlíček | C72: Ivo | D72: 1966 | E72: Lánov Krkonoše | F72: 59 | H72: C | S72: M
A73: 71 | B73: Zedník | C73: Petr | D73: 1982 | E73: Dalečín | F73: 60 | H73: A | S73: M
A74: 72 | B74: Munzarová | C74: Věra | D74: 1980 | E74: Dalečín | F74: 61 | H74: G | S74: Ž
A75: 73 | B75: Boháč | C75: Jiří | D75: 1954 | E75: behejbrno.com | F75: 63 | H75: D | S75: M
A76: 74 | B76: Bezchleba | C76: Petr | D76: 1978 | E76: SK TRI CYKLOCHLUBNA | F76: 64 | H76: B | S76: M
A77: 75 | B77: Prokop | C77: Ondřej | D77: 1962 | E77: ČAU, Brno | F77: 66 | H77: C | S77: M
S99: =IF(LEN(B99)=0," ",IF(MID(B99,LEN(B99),1)="á","Ž","M")) -> 
H131: =IF(S131<>"Ž",IF($O$2-D131>39,IF($O$2-D131>49,IF($O$2-D131>59,IF($O$2-D131>69,IF($O$2-D131>90,"","E"),"D"),"C"),"B"),"A"),IF(S131="Ž",IF($O$2-D131>34,IF($O$2-D131>44,IF($O$2-D131>90,"","H"),"G"),"F"))) ->  | S131: =IF(LEN(B131)=0," ",IF(MID(B131,LEN(B131),1)="á","Ž","M")) -> 
A133: =IF(B133<>0,A132+1,"") -> 

Sheet Startovní listina
A1: ="Startovní listina - Malý svratecký maraton "&'Prezenční listina'!O2 -> Startovní listina - Malý svratecký maraton 2019
A2: 2019-08-24 | I2: Počet přihlášených v jednotlivých kategoriích
A3: ='Prezenční listina'!O2-1953&". ročník" -> 66. ročník | L3: Celkem startujících
B4: Startovní číslo | C4: Příjmení | D4: Jméno | E4: Narození | F4: Oddíl / Bydliště | G4: Kategorie
A5: 1 | B5: =IF('Prezenční listina'!F47=0,"",'Prezenční listina'!F47) -> 1 | C5: =IF('Prezenční listina'!F47=0,"",'Prezenční listina'!B47) -> Hanák | D5: =IF('Prezenční listina'!F47=0,"",'Prezenční listina'!C47) -> Martin | E5: =IF('Prezenční listina'!F47=0,"",'Prezenční listina'!D47) -> 1993 | F5: =IF('Prezenční listina'!F47=0,"",'Prezenční listina'!E47) -> Ujčov | G5: =IF('Prezenční listina'!F47=0,"",'Prezenční listina'!H47) -> A | I5: A: | J5: =COUNTIF($G$5:$G$141,"A") -> 11 | L5: =COUNT(B5:B141) -> 69
A6: =IF(C6="","",A5+1) -> 2 | B6: =IF('Prezenční listina'!F34=0,"",'Prezenční listina'!F34) -> 2 | C6: =IF('Prezenční listina'!F34=0,"",'Prezenční listina'!B34) -> Psula | D6: =IF('Prezenční listina'!F34=0,"",'Prezenční listina'!C34) -> Roman | E6: =IF('Prezenční listina'!F34=0,"",'Prezenční listina'!D34) -> 1984 | F6: =IF('Prezenční listina'!F34=0,"",'Prezenční listina'!E34) -> Ladermon Team (Olomouc) | G6: =IF('Prezenční listina'!F34=0,"",'Prezenční listina'!H34) -> A | I6: B: | J6: =COUNTIF($G$5:$G$141,"B") -> 23
A7: 3 | B7: =IF('Prezenční listina'!F40=0,"",'Prezenční listina'!F40) -> 3 | C7: =IF('Prezenční listina'!F40=0,"",'Prezenční listina'!B40) -> Timmermansá | D7: =IF('Prezenční listina'!F40=0,"",'Prezenční listina'!C40) -> Aniek | E7: =IF('Prezenční listina'!F40=0,"",'Prezenční listina'!D40) -> 1985 | F7: =IF('Prezenční listina'!F40=0,"",'Prezenční listina'!E40) -> Autocamp Na Kopci | G7: =IF('Prezenční listina'!F40=0,"",'Prezenční listina'!H40) -> F | I7: C: | J7: =COUNTIF($G$5:$G$141,"C") -> 15
A8: 4 | B8: =IF('Prezenční listina'!F49=0,"",'Prezenční listina'!F49) -> 4 | C8: =IF('Prezenční listina'!F49=0,"",'Prezenční listina'!B49) -> Komárková | D8: =IF('Prezenční listina'!F49=0,"",'Prezenční listina'!C49) -> Zdeňka | E8: =IF('Prezenční listina'!F49=0,"",'Prezenční listina'!D49) -> 1974 | F8: =IF('Prezenční listina'!F49=0,"",'Prezenční listina'!E49) -> SDH Bolešín | G8: =IF('Prezenční listina'!F49=0,"",'Prezenční listina'!H49) -> H | I8: D: | J8: =COUNTIF($G$5:$G$141,"D") -> 10
A9: 5 | B9: =IF('Prezenční listina'!F11=0,"",'Prezenční listina'!F11) -> 5 | C9: =IF('Prezenční listina'!F11=0,"",'Prezenční listina'!B11) -> Eliáš | D9: =IF('Prezenční listina'!F11=0,"",'Prezenční listina'!C11) -> Lukáš | E9: =IF('Prezenční listina'!F11=0,"",'Prezenční listina'!D11) -> 1979 | F9: =IF('Prezenční listina'!F11=0,"",'Prezenční listina'!E11) -> Ledová stěna Vír | G9: =IF('Prezenční listina'!F11=0,"",'Prezenční listina'!H11) -> B | I9: E: | J9: =COUNTIF($G$5:$G$141,"E") -> 3
A10: 6 | B10: =IF('Prezenční listina'!F50=0,"",'Prezenční listina'!F50) -> 6 | C10: =IF('Prezenční listina'!F50=0,"",'Prezenční listina'!B50) -> Rychecký | D10: =IF('Prezenční listina'!F50=0,"",'Prezenční listina'!C50) -> Tomáš | E10: =IF('Prezenční listina'!F50=0,"",'Prezenční listina'!D50) -> 1966 | F10: =IF('Prezenční listina'!F50=0,"",'Prezenční listina'!E50) -> HH Smíchov | G10: =IF('Prezenční listina'!F50=0,"",'Prezenční listina'!H50) -> C | I10: F: | J10: =COUNTIF($G$5:$G$141,"F") -> 1
A11: 7 | B11: =IF('Prezenční listina'!F51=0,"",'Prezenční listina'!F51) -> 7 | C11: =IF('Prezenční listina'!F51=0,"",'Prezenční listina'!B51) -> Kalaš | D11: =IF('Prezenční listina'!F51=0,"",'Prezenční listina'!C51) -> Rudolf | E11: =IF('Prezenční listina'!F51=0,"",'Prezenční listina'!D51) -> 1971 | F11: =IF('Prezenční listina'!F51=0,"",'Prezenční listina'!E51) -> Boskovice | G11: =IF('Prezenční listina'!F51=0,"",'Prezenční listina'!H51) -> B | I11: G: | J11: =COUNTIF($G$5:$G$141,"G") -> 5
A12: 8 | B12: =IF('Prezenční listina'!F52=0,"",'Prezenční listina'!F52) -> 8 | C12: =IF('Prezenční listina'!F52=0,"",'Prezenční listina'!B52) -> Dostálová | D12: =IF('Prezenční listina'!F52=0,"",'Prezenční listina'!C52) -> Vendula | E12: =IF('Prezenční listina'!F52=0,"",'Prezenční listina'!D52) -> 1981 | F12: =IF('Prezenční listina'!F52=0,"",'Prezenční listina'!E52) -> HALL 3000 | G12: =IF('Prezenční listina'!F52=0,"",'Prezenční listina'!H52) -> G | I12: H: | J12: =COUNTIF($G$5:$G$141,"H") -> 1
A13: 9 | B13: =IF('Prezenční listina'!F53=0,"",'Prezenční listina'!F53) -> 9 | C13: =IF('Prezenční listina'!F53=0,"",'Prezenční listina'!B53) -> Pivec | D13: =IF('Prezenční listina'!F53=0,"",'Prezenční listina'!C53) -> Jan | E13: =IF('Prezenční listina'!F53=0,"",'Prezenční listina'!D53) -> 1981 | F13: =IF('Prezenční listina'!F53=0,"",'Prezenční listina'!E53) -> HALL 3000 | G13: =IF('Prezenční listina'!F53=0,"",'Prezenční listina'!H53) -> A
A14: 10 | B14: =IF('Prezenční listina'!F54=0,"",'Prezenční listina'!F54) -> 10 | C14: =IF('Prezenční listina'!F54=0,"",'Prezenční listina'!B54) -> Bečička | D14: =IF('Prezenční listina'!F54=0,"",'Prezenční listina'!C54) -> Petr | E14: =IF('Prezenční listina'!F54=0,"",'Prezenční listina'!D54) -> 1960 | F14: =IF('Prezenční listina'!F54=0,"",'Prezenční listina'!E54) -> HALL 3000 | G14: =IF('Prezenční listina'!F54=0,"",'Prezenční listina'!H54) -> C
A15: 11 | B15: =IF('Prezenční listina'!F55=0,"",'Prezenční listina'!F55) -> 11 | C15: =IF('Prezenční listina'!F55=0,"",'Prezenční listina'!B55) -> Komblisá | D15: =IF('Prezenční listina'!F55=0,"",'Prezenční listina'!C55) -> Michaela | E15: =IF('Prezenční listina'!F55=0,"",'Prezenční listina'!D55) -> 1981 | F15: =IF('Prezenční listina'!F55=0,"",'Prezenční listina'!E55) -> Izrael | G15: =IF('Prezenční listina'!F55=0,"",'Prezenční listina'!H55) -> G
A16: 12 | B16: =IF('Prezenční listina'!F15=0,"",'Prezenční listina'!F15) -> 12 | C16: =IF('Prezenční listina'!F15=0,"",'Prezenční listina'!B15) -> Glier | D16: =IF('Prezenční listina'!F15=0,"",'Prezenční listina'!C15) -> Miroslav | E16: =IF('Prezenční listina'!F15=0,"",'Prezenční listina'!D15) -> 1949 | F16: =IF('Prezenční listina'!F15=0,"",'Prezenční listina'!E15) -> Ústí nad Labem | G16: =IF('Prezenční listina'!F15=0,"",'Prezenční listina'!H15) -> E
A17: 13 | B17: =IF('Prezenční listina'!F13=0,"",'Prezenční listina'!F13) -> 13 | C17: =IF('Prezenční listina'!F13=0,"",'Prezenční listina'!B13) -> Fousek | D17: =IF('Prezenční listina'!F13=0,"",'Prezenční listina'!C13) -> Jan | E17: =IF('Prezenční listina'!F13=0,"",'Prezenční listina'!D13) -> 1991 | F17: =IF('Prezenční listina'!F13=0,"",'Prezenční listina'!E13) -> MKS Ostrava | G17: =IF('Prezenční listina'!F13=0,"",'Prezenční listina'!H13) -> A
A18: 14 | B18: =IF('Prezenční listina'!F44=0,"",'Prezenční listina'!F44) -> 14 | C18: =IF('Prezenční listina'!F44=0,"",'Prezenční listina'!B44) -> Vytisk | D18: =IF('Prezenční listina'!F44=0,"",'Prezenční listina'!C44) -> Alfons | E18: =IF('Prezenční listina'!F44=0,"",'Prezenční listina'!D44) -> 1949 | F18: =IF('Prezenční listina'!F44=0,"",'Prezenční listina'!E44) -> MKS Ostrava | G18: =IF('Prezenční listina'!F44=0,"",'Prezenční listina'!H44) -> E
A19: 15 | B19: =IF('Prezenční listina'!F9=0,"",'Prezenční listina'!F9) -> 15 | C19: =IF('Prezenční listina'!F9=0,"",'Prezenční listina'!B9) -> Dvorský | D19: =IF('Prezenční listina'!F9=0,"",'Prezenční listina'!C9) -> Ladislav | E19: =IF('Prezenční listina'!F9=0,"",'Prezenční listina'!D9) -> 1965 | F19: =IF('Prezenční listina'!F9=0,"",'Prezenční listina'!E9) -> MKS Ostrava | G19: =IF('Prezenční listina'!F9=0,"",'Prezenční listina'!H9) -> C
A20: 16 | B20: =IF('Prezenční listina'!F56=0,"",'Prezenční listina'!F56) -> 16 | C20: =IF('Prezenční listina'!F56=0,"",'Prezenční listina'!B56) -> Berák | D20: =IF('Prezenční listina'!F56=0,"",'Prezenční listina'!C56) -> Lukáš | E20: =IF('Prezenční listina'!F56=0,"",'Prezenční listina'!D56) -> 1984 | F20: =IF('Prezenční listina'!F56=0,"",'Prezenční listina'!E56) -> Chotěvice | G20: =IF('Prezenční listina'!F56=0,"",'Prezenční listina'!H56) -> A
A21: 17 | B21: =IF('Prezenční listina'!F41=0,"",'Prezenční listina'!F41) -> 17 | C21: =IF('Prezenční listina'!F41=0,"",'Prezenční listina'!B41) -> Tůma | D21: =IF('Prezenční listina'!F41=0,"",'Prezenční listina'!C41) -> Petr | E21: =IF('Prezenční listina'!F41=0,"",'Prezenční listina'!D41) -> 1968 | F21: =IF('Prezenční listina'!F41=0,"",'Prezenční listina'!E41) -> Slatinští šneci (Slatina) | G21: =IF('Prezenční listina'!F41=0,"",'Prezenční listina'!H41) -> C
A22: 18 | B22: =IF('Prezenční listina'!F57=0,"",'Prezenční listina'!F57) -> 18 | C22: =IF('Prezenční listina'!F57=0,"",'Prezenční listina'!B57) -> Bouček | D22: =IF('Prezenční listina'!F57=0,"",'Prezenční listina'!C57) -> Zdeněk | E22: =IF('Prezenční listina'!F57=0,"",'Prezenční listina'!D57) -> 1956 | F22: =IF('Prezenční listina'!F57=0,"",'Prezenční listina'!E57) -> Velké Meziříčí | G22: =IF('Prezenční listina'!F57=0,"",'Prezenční listina'!H57) -> D
A23: 19 | B23: =IF('Prezenční listina'!F58=0,"",'Prezenční listina'!F58) -> 20 | C23: =IF('Prezenční listina'!F58=0,"",'Prezenční listina'!B58) -> Ježová | D23: =IF('Prezenční listina'!F58=0,"",'Prezenční listina'!C58) -> Martina | E23: =IF('Prezenční listina'!F58=0,"",'Prezenční listina'!D58) -> 1975 | F23: =IF('Prezenční listina'!F58=0,"",'Prezenční listina'!E58) -> Brno | G23: =IF('Prezenční listina'!F58=0,"",'Prezenční listina'!H58) -> G
A24: 20 | B24: =IF('Prezenční listina'!F59=0,"",'Prezenční listina'!F59) -> 21 | C24: =IF('Prezenční listina'!F59=0,"",'Prezenční listina'!B59) -> Podsedník | D24: =IF('Prezenční listina'!F59=0,"",'Prezenční listina'!C59) -> Marek | E24: =IF('Prezenční listina'!F59=0,"",'Prezenční listina'!D59) -> 1985 | F24: =IF('Prezenční listina'!F59=0,"",'Prezenční listina'!E59) -> Brno | G24: =IF('Prezenční listina'!F59=0,"",'Prezenční listina'!H59) -> A
A25: 21 | B25: =IF('Prezenční listina'!F46=0,"",'Prezenční listina'!F46) -> 22 | C25: =IF('Prezenční listina'!F46=0,"",'Prezenční listina'!B46) -> Zejda | D25: =IF('Prezenční listina'!F46=0,"",'Prezenční listina'!C46) -> Ivo | E25: =IF('Prezenční listina'!F46=0,"",'Prezenční listina'!D46) -> 1956 | F25: =IF('Prezenční listina'!F46=0,"",'Prezenční listina'!E46) -> AC Moravská Slavia Brno | G25: =IF('Prezenční listina'!F46=0,"",'Prezenční listina'!H46) -> D
A26: 22 | B26: =IF('Prezenční listina'!F17=0,"",'Prezenční listina'!F17) -> 23 | C26: =IF('Prezenční listina'!F17=0,"",'Prezenční listina'!B17) -> Holý | D26: =IF('Prezenční listina'!F17=0,"",'Prezenční listina'!C17) -> Josef | E26: =IF('Prezenční listina'!F17=0,"",'Prezenční listina'!D17) -> 1941 | F26: =IF('Prezenční listina'!F17=0,"",'Prezenční listina'!E17) -> AC Moravská Slavia Brno | G26: =IF('Prezenční listina'!F17=0,"",'Prezenční listina'!H17) -> E
A27: 23 | B27: =IF('Prezenční listina'!F60=0,"",'Prezenční listina'!F60) -> 24 | C27: =IF('Prezenční listina'!F60=0,"",'Prezenční listina'!B60) -> Koutník | D27: =IF('Prezenční listina'!F60=0,"",'Prezenční listina'!C60) -> Lumír | E27: =IF('Prezenční listina'!F60=0,"",'Prezenční listina'!D60) -> 1967 | F27: =IF('Prezenční listina'!F60=0,"",'Prezenční listina'!E60) -> A.O. Spartak Vrchlabí | G27: =IF('Prezenční listina'!F60=0,"",'Prezenční listina'!H60) -> C
A28: 24 | B28: =IF('Prezenční listina'!F25=0,"",'Prezenční listina'!F25) -> 25 | C28: =IF('Prezenční listina'!F25=0,"",'Prezenční listina'!B25) -> Kratochvíl | D28: =IF('Prezenční listina'!F25=0,"",'Prezenční listina'!C25) -> Jaroslav | E28: =IF('Prezenční listina'!F25=0,"",'Prezenční listina'!D25) -> 1977 | F28: =IF('Prezenční listina'!F25=0,"",'Prezenční listina'!E25) -> SDH Hluboké | G28: =IF('Prezenční listina'!F25=0,"",'Prezenční listina'!H25) -> B
A29: 25 | B29: =IF('Prezenční listina'!F21=0,"",'Prezenční listina'!F21) -> 26 | C29: =IF('Prezenční listina'!F21=0,"",'Prezenční listina'!B21) -> Koudelka | D29: =IF('Prezenční listina'!F21=0,"",'Prezenční listina'!C21) -> Drahomír | E29: =IF('Prezenční listina'!F21=0,"",'Prezenční listina'!D21) -> 1971 | F29: =IF('Prezenční listina'!F21=0,"",'Prezenční listina'!E21) -> Meixner Consulting (Pětihosty) | G29: =IF('Prezenční listina'!F21=0,"",'Prezenční listina'!H21) -> B
A30: 26 | B30: =IF('Prezenční listina'!F61=0,"",'Prezenční listina'!F61) -> 27 | C30: =IF('Prezenční listina'!F61=0,"",'Prezenční listina'!B61) -> Kubík | D30: =IF('Prezenční listina'!F61=0,"",'Prezenční listina'!C61) -> Jaromír | E30: =IF('Prezenční listina'!F61=0,"",'Prezenční listina'!D61) -> 1955 | F30: =IF('Prezenční listina'!F61=0,"",'Prezenční listina'!E61) -> Blansko | G30: =IF('Prezenční listina'!F61=0,"",'Prezenční listina'!H61) -> D
A31: 27 | B31: =IF('Prezenční listina'!F12=0,"",'Prezenční listina'!F12) -> 28 | C31: =IF('Prezenční listina'!F12=0,"",'Prezenční listina'!B12) -> Fikejs | D31: =IF('Prezenční listina'!F12=0,"",'Prezenční listina'!C12) -> Vladimír | E31: =IF('Prezenční listina'!F12=0,"",'Prezenční listina'!D12) -> 1957 | F31: =IF('Prezenční listina'!F12=0,"",'Prezenční listina'!E12) -> 3D Finess Race Team (Žamberk) | G31: =IF('Prezenční listina'!F12=0,"",'Prezenční listina'!H12) -> D
A32: 28 | B32: =IF('Prezenční listina'!F30=0,"",'Prezenční listina'!F30) -> 29 | C32: =IF('Prezenční listina'!F30=0,"",'Prezenční listina'!B30) -> Novotný | D32: =IF('Prezenční listina'!F30=0,"",'Prezenční listina'!C30) -> Jaroslav | E32: =IF('Prezenční listina'!F30=0,"",'Prezenční listina'!D30) -> 1955 | F32: =IF('Prezenční listina'!F30=0,"",'Prezenční listina'!E30) -> TEP Trutnov | G32: =IF('Prezenční listina'!F30=0,"",'Prezenční listina'!H30) -> D
A33: 29 | B33: =IF('Prezenční listina'!F62=0,"",'Prezenční listina'!F62) -> 30 | C33: =IF('Prezenční listina'!F62=0,"",'Prezenční listina'!B62) -> Příhoda | D33: =IF('Prezenční listina'!F62=0,"",'Prezenční listina'!C62) -> Jan | E33: =IF('Prezenční listina'!F62=0,"",'Prezenční listina'!D62) -> 1983 | F33: =IF('Prezenční listina'!F62=0,"",'Prezenční listina'!E62) -> Brno | G33: =IF('Prezenční listina'!F62=0,"",'Prezenční listina'!H62) -> A
A34: 30 | B34: =IF('Prezenční listina'!F3=0,"",'Prezenční listina'!F3) -> 31 | C34: =IF('Prezenční listina'!F3=0,"",'Prezenční listina'!B3) -> Bělehrádek | D34: =IF('Prezenční listina'!F3=0,"",'Prezenční listina'!C3) -> Pavel | E34: =IF('Prezenční listina'!F3=0,"",'Prezenční listina'!D3) -> 1958 | F34: =IF('Prezenční listina'!F3=0,"",'Prezenční listina'!E3) -> TJ Čolek (Velké Tresné) | G34: =IF('Prezenční listina'!F3=0,"",'Prezenční listina'!H3) -> D
A35: 31 | B35: =IF('Prezenční listina'!F63=0,"",'Prezenční listina'!F63) -> 32 | C35: =IF('Prezenční listina'!F63=0,"",'Prezenční listina'!B63) -> Brázda | D35: =IF('Prezenční listina'!F63=0,"",'Prezenční listina'!C63) -> Richard | E35: =IF('Prezenční listina'!F63=0,"",'Prezenční listina'!D63) -> 1975 | F35: =IF('Prezenční listina'!F63=0,"",'Prezenční listina'!E63) -> Český běžecký klub, Brno | G35: =IF('Prezenční listina'!F63=0,"",'Prezenční listina'!H63) -> B
A36: 32 | B36: =IF('Prezenční listina'!F24=0,"",'Prezenční listina'!F24) -> 33 | C36: =IF('Prezenční listina'!F24=0,"",'Prezenční listina'!B24) -> Krátký | D36: =IF('Prezenční listina'!F24=0,"",'Prezenční listina'!C24) -> Pavel | E36: =IF('Prezenční listina'!F24=0,"",'Prezenční listina'!D24) -> 1974 | F36: =IF('Prezenční listina'!F24=0,"",'Prezenční listina'!E24) -> TS Jan Kohut (Olomučany) | G36: =IF('Prezenční listina'!F24=0,"",'Prezenční listina'!H24) -> B
A37: 33 | B37: =IF('Prezenční listina'!F10=0,"",'Prezenční listina'!F10) -> 34 | C37: =IF('Prezenční listina'!F10=0,"",'Prezenční listina'!B10) -> Dvořák | D37: =IF('Prezenční listina'!F10=0,"",'Prezenční listina'!C10) -> Petr | E37: =IF('Prezenční listina'!F10=0,"",'Prezenční listina'!D10) -> 1986 | F37: =IF('Prezenční listina'!F10=0,"",'Prezenční listina'!E10) -> Brno | G37: =IF('Prezenční listina'!F10=0,"",'Prezenční listina'!H10) -> A
A38: 34 | B38: =IF('Prezenční listina'!F23=0,"",'Prezenční listina'!F23) -> 35 | C38: =IF('Prezenční listina'!F23=0,"",'Prezenční listina'!B23) -> Krátký | D38: =IF('Prezenční listina'!F23=0,"",'Prezenční listina'!C23) -> Josef | E38: =IF('Prezenční listina'!F23=0,"",'Prezenční listina'!D23) -> 1965 | F38: =IF('Prezenční listina'!F23=0,"",'Prezenční listina'!E23) -> Hvězda Pardubice | G38: =IF('Prezenční listina'!F23=0,"",'Prezenční listina'!H23) -> C
A39: =IF(C39="","",A38+1) -> 35 | B39: =IF('Prezenční listina'!F64=0,"",'Prezenční listina'!F64) -> 36 | C39: =IF('Prezenční listina'!F64=0,"",'Prezenční listina'!B64) -> Dvořáček | D39: =IF('Prezenční listina'!F64=0,"",'Prezenční listina'!C64) -> Jiří | E39: =IF('Prezenční listina'!F64=0,"",'Prezenční listina'!D64) -> 1968 | F39: =IF('Prezenční listina'!F64=0,"",'Prezenční listina'!E64) -> Petrovice | G39: =IF('Prezenční listina'!F64=0,"",'Prezenční listina'!H64) -> C
A40: =IF(C40="","",A39+1) -> 36 | B40: =IF('Prezenční listina'!F29=0,"",'Prezenční listina'!F29) -> 37 | C40: =IF('Prezenční listina'!F29=0,"",'Prezenční listina'!B29) -> Mareš | D40: =IF('Prezenční listina'!F29=0,"",'Prezenční listina'!C29) -> Bohumil | E40: =IF('Prezenční listina'!F29=0,"",'Prezenční listina'!D29) -> 1951 | F40: =IF('Prezenční listina'!F29=0,"",'Prezenční listina'!E29) -> Posilovna Průvan Brno | G40: =IF('Prezenční listina'!F29=0,"",'Prezenční listina'!H29) -> D
A41: 37 | B41: =IF('Prezenční listina'!F38=0,"",'Prezenční listina'!F38) -> 38 | C41: =IF('Prezenční listina'!F38=0,"",'Prezenční listina'!B38) -> Svoboda | D41: =IF('Prezenční listina'!F38=0,"",'Prezenční listina'!C38) -> Petr | E41: =IF('Prezenční listina'!F38=0,"",'Prezenční listina'!D38) -> 1968 | F41: =IF('Prezenční listina'!F38=0,"",'Prezenční listina'!E38) -> AC Moravská Slavia Brno | G41: =IF('Prezenční listina'!F38=0,"",'Prezenční listina'!H38) -> C
A42: 38 | B42: =IF('Prezenční listina'!F65=0,"",'Prezenční listina'!F65) -> 39 | C42: =IF('Prezenční listina'!F65=0,"",'Prezenční listina'!B65) -> Faja | D42: =IF('Prezenční listina'!F65=0,"",'Prezenční listina'!C65) -> Ondřej | E42: =IF('Prezenční listina'!F65=0,"",'Prezenční listina'!D65) -> 1976 | F42: =IF('Prezenční listina'!F65=0,"",'Prezenční listina'!E65) -> Brno | G42: =IF('Prezenční listina'!F65=0,"",'Prezenční listina'!H65) -> B
A43: 39 | B43: =IF('Prezenční listina'!F35=0,"",'Prezenční listina'!F35) -> 40 | C43: =IF('Prezenční listina'!F35=0,"",'Prezenční listina'!B35) -> Řezníček | D43: =IF('Prezenční listina'!F35=0,"",'Prezenční listina'!C35) -> Petr | E43: =IF('Prezenční listina'!F35=0,"",'Prezenční listina'!D35) -> 1973 | F43: =IF('Prezenční listina'!F35=0,"",'Prezenční listina'!E35) -> Polnička | G43: =IF('Prezenční listina'!F35=0,"",'Prezenční listina'!H35) -> B
A44: 40 | B44: =IF('Prezenční listina'!F32=0,"",'Prezenční listina'!F32) -> 41 | C44: =IF('Prezenční listina'!F32=0,"",'Prezenční listina'!B32) -> Otta | D44: =IF('Prezenční listina'!F32=0,"",'Prezenční listina'!C32) -> Roman | E44: =IF('Prezenční listina'!F32=0,"",'Prezenční listina'!D32) -> 1961 | F44: =IF('Prezenční listina'!F32=0,"",'Prezenční listina'!E32) -> Q Sport Vrchlabí | G44: =IF('Prezenční listina'!F32=0,"",'Prezenční listina'!H32) -> C
A45: 41 | B45: =IF('Prezenční listina'!F39=0,"",'Prezenční listina'!F39) -> 42 | C45: =IF('Prezenční listina'!F39=0,"",'Prezenční listina'!B39) -> Šerák | D45: =IF('Prezenční listina'!F39=0,"",'Prezenční listina'!C39) -> Martin | E45: =IF('Prezenční listina'!F39=0,"",'Prezenční listina'!D39) -> 1978 | F45: =IF('Prezenční listina'!F39=0,"",'Prezenční listina'!E39) -> Sokol Bílovice nad Svitavou | G45: =IF('Prezenční listina'!F39=0,"",'Prezenční listina'!H39) -> B
A46: 42 | B46: =IF('Prezenční listina'!F66=0,"",'Prezenční listina'!F66) -> 43 | C46: =IF('Prezenční listina'!F66=0,"",'Prezenční listina'!B66) -> Exner | D46: =IF('Prezenční listina'!F66=0,"",'Prezenční listina'!C66) -> Jakub | E46: =IF('Prezenční listina'!F66=0,"",'Prezenční listina'!D66) -> 1983 | F46: =IF('Prezenční listina'!F66=0,"",'Prezenční listina'!E66) -> Swoboda-pteam | G46: =IF('Prezenční listina'!F66=0,"",'Prezenční listina'!H66) -> A
A47: 43 | B47: =IF('Prezenční listina'!F48=0,"",'Prezenční listina'!F48) -> 44 | C47: =IF('Prezenční listina'!F48=0,"",'Prezenční listina'!B48) -> Vintrlík | D47: =IF('Prezenční listina'!F48=0,"",'Prezenční listina'!C48) -> Martin | E47: =IF('Prezenční listina'!F48=0,"",'Prezenční listina'!D48) -> 1977 | F47: =IF('Prezenční listina'!F48=0,"",'Prezenční listina'!E48) -> Triatlon Křepice | G47: =IF('Prezenční listina'!F48=0,"",'Prezenční listina'!H48) -> B
A48: 44 | B48: =IF('Prezenční listina'!F26=0,"",'Prezenční listina'!F26) -> 45 | C48: =IF('Prezenční listina'!F26=0,"",'Prezenční listina'!B26) -> Kropáček | D48: =IF('Prezenční listina'!F26=0,"",'Prezenční listina'!C26) -> Jaroslav | E48: =IF('Prezenční listina'!F26=0,"",'Prezenční listina'!D26) -> 1970 | F48: =IF('Prezenční listina'!F26=0,"",'Prezenční listina'!E26) -> Triatlon Křepice | G48: =IF('Prezenční listina'!F26=0,"",'Prezenční listina'!H26) -> B
A49: 45 | B49: =IF('Prezenční listina'!F4=0,"",'Prezenční listina'!F4) -> 46 | C49: =IF('Prezenční listina'!F4=0,"",'Prezenční listina'!B4) -> Bracek | D49: =IF('Prezenční listina'!F4=0,"",'Prezenční listina'!C4) -> Petr | E49: =IF('Prezenční listina'!F4=0,"",'Prezenční listina'!D4) -> 1979 | F49: =IF('Prezenční listina'!F4=0,"",'Prezenční listina'!E4) -> Kuřim | G49: =IF('Prezenční listina'!F4=0,"",'Prezenční listina'!H4) -> B
A50: 46 | B50: =IF('Prezenční listina'!F67=0,"",'Prezenční listina'!F67) -> 47 | C50: =IF('Prezenční listina'!F67=0,"",'Prezenční listina'!B67) -> Plachý | D50: =IF('Prezenční listina'!F67=0,"",'Prezenční listina'!C67) -> Martin | E50: =IF('Prezenční listina'!F67=0,"",'Prezenční listina'!D67) -> 1965 | F50: =IF('Prezenční listina'!F67=0,"",'Prezenční listina'!E67) -> MK Prostějov | G50: =IF('Prezenční listina'!F67=0,"",'Prezenční listina'!H67) -> C
A51: 47 | B51: =IF('Prezenční listina'!F42=0,"",'Prezenční listina'!F42) -> 48 | C51: =IF('Prezenční listina'!F42=0,"",'Prezenční listina'!B42) -> Viščor | D51: =IF('Prezenční listina'!F42=0,"",'Prezenční listina'!C42) -> Pavel | E51: =IF('Prezenční listina'!F42=0,"",'Prezenční listina'!D42) -> 1974 | F51: =IF('Prezenční listina'!F42=0,"",'Prezenční listina'!E42) -> Brno | G51: =IF('Prezenční listina'!F42=0,"",'Prezenční listina'!H42) -> B
A52: 48 | B52: =IF('Prezenční listina'!F22=0,"",'Prezenční listina'!F22) -> 49 | C52: =IF('Prezenční listina'!F22=0,"",'Prezenční listina'!B22) -> Kovačič | D52: =IF('Prezenční listina'!F22=0,"",'Prezenční listina'!C22) -> Sebastian | E52: =IF('Prezenční listina'!F22=0,"",'Prezenční listina'!D22) -> 1978 | F52: =IF('Prezenční listina'!F22=0,"",'Prezenční listina'!E22) -> Bílovice nad Svitavou | G52: =IF('Prezenční listina'!F22=0,"",'Prezenční listina'!H22) -> B
A53: 49 | B53: =IF('Prezenční listina'!F7=0,"",'Prezenční listina'!F7) -> 50 | C53: =IF('Prezenční listina'!F7=0,"",'Prezenční listina'!B7) -> Čuhel | D53: =IF('Prezenční listina'!F7=0,"",'Prezenční listina'!C7) -> Jiří | E53: =IF('Prezenční listina'!F7=0,"",'Prezenční listina'!D7) -> 1958 | F53: =IF('Prezenční listina'!F7=0,"",'Prezenční listina'!E7) -> Křtěnov | G53: =IF('Prezenční listina'!F7=0,"",'Prezenční listina'!H7) -> D
A54: 50 | B54: =IF('Prezenční listina'!F45=0,"",'Prezenční listina'!F45) -> 51 | C54: =IF('Prezenční listina'!F45=0,"",'Prezenční listina'!B45) -> Weis | D54: =IF('Prezenční listina'!F45=0,"",'Prezenční listina'!C45) -> Josef | E54: =IF('Prezenční listina'!F45=0,"",'Prezenční listina'!D45) -> 1974 | F54: =IF('Prezenční listina'!F45=0,"",'Prezenční listina'!E45) -> Elite Sport Boskovice | G54: =IF('Prezenční listina'!F45=0,"",'Prezenční listina'!H45) -> B
A55: 51 | B55: =IF('Prezenční listina'!F14=0,"",'Prezenční listina'!F14) -> 52 | C55: =IF('Prezenční listina'!F14=0,"",'Prezenční listina'!B14) -> Glier | D55: =IF('Prezenční listina'!F14=0,"",'Prezenční listina'!C14) -> Michal | E55: =IF('Prezenční listina'!F14=0,"",'Prezenční listina'!D14) -> 1982 | F55: =IF('Prezenční listina'!F14=0,"",'Prezenční listina'!E14) -> behejbrno.com | G55: =IF('Prezenční listina'!F14=0,"",'Prezenční listina'!H14) -> A
A56: 52 | B56: =IF('Prezenční listina'!F68=0,"",'Prezenční listina'!F68) -> 53 | C56: =IF('Prezenční listina'!F68=0,"",'Prezenční listina'!B68) -> Orálek | D56: =IF('Prezenční listina'!F68=0,"",'Prezenční listina'!C68) -> Daniel | E56: =IF('Prezenční listina'!F68=0,"",'Prezenční listina'!D68) -> 1970 | F56: =IF('Prezenční listina'!F68=0,"",'Prezenční listina'!E68) -> behejbrno.com | G56: =IF('Prezenční listina'!F68=0,"",'Prezenční listina'!H68) -> B
A57: 53 | B57: =IF('Prezenční listina'!F69=0,"",'Prezenční listina'!F69) -> 54 | C57: =IF('Prezenční listina'!F69=0,"",'Prezenční listina'!B69) -> Sajdl | D57: =IF('Prezenční listina'!F69=0,"",'Prezenční listina'!C69) -> Ondřej | E57: =IF('Prezenční listina'!F69=0,"",'Prezenční listina'!D69) -> 1978 | F57: =IF('Prezenční listina'!F69=0,"",'Prezenční listina'!E69) -> Brno | G57: =IF('Prezenční listina'!F69=0,"",'Prezenční listina'!H69) -> B
A58: 54 | B58: =IF('Prezenční listina'!F70=0,"",'Prezenční listina'!F70) -> 55 | C58: =IF('Prezenční listina'!F70=0,"",'Prezenční listina'!B70) -> Šůstek | D58: =IF('Prezenční listina'!F70=0,"",'Prezenční listina'!C70) -> Roman | E58: =IF('Prezenční listina'!F70=0,"",'Prezenční listina'!D70) -> 1968 | F58: =IF('Prezenční listina'!F70=0,"",'Prezenční listina'!E70) -> Brno | G58: =IF('Prezenční listina'!F70=0,"",'Prezenční listina'!H70) -> C
A59: 55 | B59: =IF('Prezenční listina'!F43=0,"",'Prezenční listina'!F43) -> 56 | C59: =IF('Prezenční listina'!F43=0,"",'Prezenční listina'!B43) -> Vykoupil | D59: =IF('Prezenční listina'!F43=0,"",'Prezenční listina'!C43) -> Miloslav | E59: =IF('Prezenční listina'!F43=0,"",'Prezenční listina'!D43) -> 1972 | F59: =IF('Prezenční listina'!F43=0,"",'Prezenční listina'!E43) -> Veverská Bitýška | G59: =IF('Prezenční listina'!F43=0,"",'Prezenční listina'!H43) -> B
A60: 56 | B60: =IF('Prezenční listina'!F27=0,"",'Prezenční listina'!F27) -> 57 | C60: =IF('Prezenční listina'!F27=0,"",'Prezenční listina'!B27) -> Lorenčík | D60: =IF('Prezenční listina'!F27=0,"",'Prezenční listina'!C27) -> Aleš | E60: =IF('Prezenční listina'!F27=0,"",'Prezenční listina'!D27) -> 1973 | F60: =IF('Prezenční listina'!F27=0,"",'Prezenční listina'!E27) -> Chrudim | G60: =IF('Prezenční listina'!F27=0,"",'Prezenční listina'!H27) -> B
A61: 57 | B61: =IF('Prezenční listina'!F71=0,"",'Prezenční listina'!F71) -> 58 | C61: =IF('Prezenční listina'!F71=0,"",'Prezenční listina'!B71) -> Jurgová | D61: =IF('Prezenční listina'!F71=0,"",'Prezenční listina'!C71) -> Martina | E61: =IF('Prezenční listina'!F71=0,"",'Prezenční listina'!D71) -> 1979 | F61: =IF('Prezenční listina'!F71=0,"",'Prezenční listina'!E71) -> Brno | G61: =IF('Prezenční listina'!F71=0,"",'Prezenční listina'!H71) -> G
A62: 58 | B62: =IF('Prezenční listina'!F72=0,"",'Prezenční listina'!F72) -> 59 | C62: =IF('Prezenční listina'!F72=0,"",'Prezenční listina'!B72) -> Havlíček | D62: =IF('Prezenční listina'!F72=0,"",'Prezenční listina'!C72) -> Ivo | E62: =IF('Prezenční listina'!F72=0,"",'Prezenční listina'!D72) -> 1966 | F62: =IF('Prezenční listina'!F72=0,"",'Prezenční listina'!E72) -> Lánov Krkonoše | G62: =IF('Prezenční listina'!F72=0,"",'Prezenční listina'!H72) -> C
A63: 59 | B63: =IF('Prezenční listina'!F73=0,"",'Prezenční listina'!F73) -> 60 | C63: =IF('Prezenční listina'!F73=0,"",'Prezenční listina'!B73) -> Zedník | D63: =IF('Prezenční listina'!F73=0,"",'Prezenční listina'!C73) -> Petr | E63: =IF('Prezenční listina'!F73=0,"",'Prezenční listina'!D73) -> 1982 | F63: =IF('Prezenční listina'!F73=0,"",'Prezenční listina'!E73) -> Dalečín | G63: =IF('Prezenční listina'!F73=0,"",'Prezenční listina'!H73) -> A
A64: 60 | B64: =IF('Prezenční listina'!F74=0,"",'Prezenční listina'!F74) -> 61 | C64: =IF('Prezenční listina'!F74=0,"",'Prezenční listina'!B74) -> Munzarová | D64: =IF('Prezenční listina'!F74=0,"",'Prezenční listina'!C74) -> Věra | E64: =IF('Prezenční listina'!F74=0,"",'Prezenční listina'!D74) -> 1980 | F64: =IF('Prezenční listina'!F74=0,"",'Prezenční listina'!E74) -> Dalečín | G64: =IF('Prezenční listina'!F74=0,"",'Prezenční listina'!H74) -> G
A65: 61 | B65: =IF('Prezenční listina'!F19=0,"",'Prezenční listina'!F19) -> 62 | C65: =IF('Prezenční listina'!F19=0,"",'Prezenční listina'!B19) -> Jílek | D65: =IF('Prezenční listina'!F19=0,"",'Prezenční listina'!C19) -> Jaroslav | E65: =IF('Prezenční listina'!F19=0,"",'Prezenční listina'!D19) -> 1966 | F65: =IF('Prezenční listina'!F19=0,"",'Prezenční listina'!E19) -> Bystřice nad Pernštejnem | G65: =IF('Prezenční listina'!F19=0,"",'Prezenční listina'!H19) -> C
A66: 62 | B66: =IF('Prezenční listina'!F75=0,"",'Prezenční listina'!F75) -> 63 | C66: =IF('Prezenční listina'!F75=0,"",'Prezenční listina'!B75) -> Boháč | D66: =IF('Prezenční listina'!F75=0,"",'Prezenční listina'!C75) -> Jiří | E66: =IF('Prezenční listina'!F75=0,"",'Prezenční listina'!D75) -> 1954 | F66: =IF('Prezenční listina'!F75=0,"",'Prezenční listina'!E75) -> behejbrno.com | G66: =IF('Prezenční listina'!F75=0,"",'Prezenční listina'!H75) -> D
A67: 63 | B67: =IF('Prezenční listina'!F76=0,"",'Prezenční listina'!F76) -> 64 | C67: =IF('Prezenční listina'!F76=0,"",'Prezenční listina'!B76) -> Bezchleba | D67: =IF('Prezenční listina'!F76=0,"",'Prezenční listina'!C76) -> Petr | E67: =IF('Prezenční listina'!F76=0,"",'Prezenční listina'!D76) -> 1978 | F67: =IF('Prezenční listina'!F76=0,"",'Prezenční listina'!E76) -> SK TRI CYKLOCHLUBNA | G67: =IF('Prezenční listina'!F76=0,"",'Prezenční listina'!H76) -> B
A68: 64 | B68: =IF('Prezenční listina'!F6=0,"",'Prezenční listina'!F6) -> 65 | C68: =IF('Prezenční listina'!F6=0,"",'Prezenční listina'!B6) -> Čapka | D68: =IF('Prezenční listina'!F6=0,"",'Prezenční listina'!C6) -> František | E68: =IF('Prezenční listina'!F6=0,"",'Prezenční listina'!D6) -> 1968 | F68: =IF('Prezenční listina'!F6=0,"",'Prezenční listina'!E6) -> Minerva Boskovice | G68: =IF('Prezenční listina'!F6=0,"",'Prezenční listina'!H6) -> C
A69: 65 | B69: =IF('Prezenční listina'!F77=0,"",'Prezenční listina'!F77) -> 66 | C69: =IF('Prezenční listina'!F77=0,"",'Prezenční listina'!B77) -> Prokop | D69: =IF('Prezenční listina'!F77=0,"",'Prezenční listina'!C77) -> Ondřej | E69: =IF('Prezenční listina'!F77=0,"",'Prezenční listina'!D77) -> 1962 | F69: =IF('Prezenční listina'!F77=0,"",'Prezenční listina'!E77) -> ČAU, Brno | G69: =IF('Prezenční listina'!F77=0,"",'Prezenční listina'!H77) -> C
A70: 66 | B70: =IF('Prezenční listina'!F8=0,"",'Prezenční listina'!F8) -> 67 | C70: =IF('Prezenční listina'!F8=0,"",'Prezenční listina'!B8) -> Dušil | D70: =IF('Prezenční listina'!F8=0,"",'Prezenční listina'!C8) -> Jarda | E70: =IF('Prezenční listina'!F8=0,"",'Prezenční listina'!D8) -> 1970 | F70: =IF('Prezenční listina'!F8=0,"",'Prezenční listina'!E8) -> Slaměnka (Brno) | G70: =IF('Prezenční listina'!F8=0,"",'Prezenční listina'!H8) -> B
A71: 67 | B71: =IF('Prezenční listina'!F36=0,"",'Prezenční listina'!F36) -> 68 | C71: =IF('Prezenční listina'!F36=0,"",'Prezenční listina'!B36) -> Sedláček | D71: =IF('Prezenční listina'!F36=0,"",'Prezenční listina'!C36) -> Svatopluk | E71: =IF('Prezenční listina'!F36=0,"",'Prezenční listina'!D36) -> 1957 | F71: =IF('Prezenční listina'!F36=0,"",'Prezenční listina'!E36) -> AC Moravská Slavia Brno | G71: =IF('Prezenční listina'!F36=0,"",'Prezenční listina'!H36) -> D
A72: 68 | B72: =IF('Prezenční listina'!F5=0,"",'Prezenční listina'!F5) -> 69 | C72: =IF('Prezenční listina'!F5=0,"",'Prezenční listina'!B5) -> Crha | D72: =IF('Prezenční listina'!F5=0,"",'Prezenční listina'!C5) -> Radek | E72: =IF('Prezenční listina'!F5=0,"",'Prezenční listina'!D5) -> 1979 | F72: =IF('Prezenční listina'!F5=0,"",'Prezenční listina'!E5) -> NON AUTOS Radek CRHA (Vidonín) | G72: =IF('Prezenční listina'!F5=0,"",'Prezenční listina'!H5) -> B
A73: 69 | B73: =IF('Prezenční listina'!F20=0,"",'Prezenční listina'!F20) -> 70 | C73: =IF('Prezenční listina'!F20=0,"",'Prezenční listina'!B20) -> Konečný | D73: =IF('Prezenční listina'!F20=0,"",'Prezenční listina'!C20) -> Libor | E73: =IF('Prezenční listina'!F20=0,"",'Prezenční listina'!D20) -> 1971 | F73: =IF('Prezenční listina'!F20=0,"",'Prezenční listina'!E20) -> Kuřim | G73: =IF('Prezenční listina'!F20=0,"",'Prezenční listina'!H20) -> B
A74: =IF(C74="","",A73+1) ->  | B74: =IF('Prezenční listina'!F16=0,"",'Prezenční listina'!F16) ->  | C74: =IF('Prezenční listina'!F16=0,"",'Prezenční listina'!B16) ->  | D74: =IF('Prezenční listina'!F16=0,"",'Prezenční listina'!C16) ->  | E74: =IF('Prezenční listina'!F16=0,"",'Prezenční listina'!D16) ->  | F74: =IF('Prezenční listina'!F16=0,"",'Prezenční listina'!E16) ->  | G74: =IF('Prezenční listina'!F16=0,"",'Prezenční listina'!H16) -> 
B75: =IF('Prezenční listina'!F18=0,"",'Prezenční listina'!F18) ->  | C75: =IF('Prezenční listina'!F18=0,"",'Prezenční listina'!B18) ->  | D75: =IF('Prezenční listina'!F18=0,"",'Prezenční listina'!C18) ->  | E75: =IF('Prezenční listina'!F18=0,"",'Prezenční listina'!D18) ->  | F75: =IF('Prezenční listina'!F18=0,"",'Prezenční listina'!E18) ->  | G75: =IF('Prezenční listina'!F18=0,"",'Prezenční listina'!H18) -> 
B76: =IF('Prezenční listina'!F28=0,"",'Prezenční listina'!F28) ->  | C76: =IF('Prezenční listina'!F28=0,"",'Prezenční listina'!B28) ->  | D76: =IF('Prezenční listina'!F28=0,"",'Prezenční listina'!C28) ->  | E76: =IF('Prezenční listina'!F28=0,"",'Prezenční listina'!D28) ->  | F76: =IF('Prezenční listina'!F28=0,"",'Prezenční listina'!E28) ->  | G76: =IF('Prezenční listina'!F28=0,"",'Prezenční listina'!H28) -> 
B77: =IF('Prezenční listina'!F31=0,"",'Prezenční listina'!F31) ->  | C77: =IF('Prezenční listina'!F31=0,"",'Prezenční listina'!B31) ->  | D77: =IF('Prezenční listina'!F31=0,"",'Prezenční listina'!C31) ->  | E77: =IF('Prezenční listina'!F31=0,"",'Prezenční listina'!D31) ->  | F77: =IF('Prezenční listina'!F31=0,"",'Prezenční listina'!E31) ->  | G77: =IF('Prezenční listina'!F31=0,"",'Prezenční listina'!H31) -> 
B78: =IF('Prezenční listina'!F33=0,"",'Prezenční listina'!F33) ->  | C78: =IF('Prezenční listina'!F33=0,"",'Prezenční listina'!B33) ->  | D78: =IF('Prezenční listina'!F33=0,"",'Prezenční listina'!C33) ->  | E78: =IF('Prezenční listina'!F33=0,"",'Prezenční listina'!D33) ->  | F78: =IF('Prezenční listina'!F33=0,"",'Prezenční listina'!E33) ->  | G78: =IF('Prezenční listina'!F33=0,"",'Prezenční listina'!H33) -> 
B79: =IF('Prezenční listina'!F37=0,"",'Prezenční listina'!F37) ->  | C79: =IF('Prezenční listina'!F37=0,"",'Prezenční listina'!B37) ->  | D79: =IF('Prezenční listina'!F37=0,"",'Prezenční listina'!C37) ->  | E79: =IF('Prezenční listina'!F37=0,"",'Prezenční listina'!D37) ->  | F79: =IF('Prezenční listina'!F37=0,"",'Prezenční listina'!E37) ->  | G79: =IF('Prezenční listina'!F37=0,"",'Prezenční listina'!H37) -> 
B80: =IF('Prezenční listina'!F78=0,"",'Prezenční listina'!F78) ->  | C80: =IF('Prezenční listina'!F78=0,"",'Prezenční listina'!B78) ->  | D80: =IF('Prezenční listina'!F78=0,"",'Prezenční listina'!C78) ->  | E80: =IF('Prezenční listina'!F78=0,"",'Prezenční listina'!D78) ->  | F80: =IF('Prezenční listina'!F78=0,"",'Prezenční listina'!E78) ->  | G80: =IF('Prezenční listina'!F78=0,"",'Prezenční listina'!H78) -> 
B81: =IF('Prezenční listina'!F79=0,"",'Prezenční listina'!F79) ->  | C81: =IF('Prezenční listina'!F79=0,"",'Prezenční listina'!B79) ->  | D81: =IF('Prezenční listina'!F79=0,"",'Prezenční listina'!C79) ->  | E81: =IF('Prezenční listina'!F79=0,"",'Prezenční listina'!D79) ->  | F81: =IF('Prezenční listina'!F79=0,"",'Prezenční listina'!E79) ->  | G81: =IF('Prezenční listina'!F79=0,"",'Prezenční listina'!H79) -> 
B82: =IF('Prezenční listina'!F80=0,"",'Prezenční listina'!F80) ->  | C82: =IF('Prezenční listina'!F80=0,"",'Prezenční listina'!B80) ->  | D82: =IF('Prezenční listina'!F80=0,"",'Prezenční listina'!C80) ->  | E82: =IF('Prezenční listina'!F80=0,"",'Prezenční listina'!D80) ->  | F82: =IF('Prezenční listina'!F80=0,"",'Prezenční listina'!E80) ->  | G82: =IF('Prezenční listina'!F80=0,"",'Prezenční listina'!H80) -> 
B83: =IF('Prezenční listina'!F81=0,"",'Prezenční listina'!F81) ->  | C83: =IF('Prezenční listina'!F81=0,"",'Prezenční listina'!B81) ->  | D83: =IF('Prezenční listina'!F81=0,"",'Prezenční listina'!C81) ->  | E83: =IF('Prezenční listina'!F81=0,"",'Prezenční listina'!D81) ->  | F83: =IF('Prezenční listina'!F81=0,"",'Prezenční listina'!E81) ->  | G83: =IF('Prezenční listina'!F81=0,"",'Prezenční listina'!H81) -> 
B84: =IF('Prezenční listina'!F82=0,"",'Prezenční listina'!F82) ->  | C84: =IF('Prezenční listina'!F82=0,"",'Prezenční listina'!B82) ->  | D84: =IF('Prezenční listina'!F82=0,"",'Prezenční listina'!C82) ->  | E84: =IF('Prezenční listina'!F82=0,"",'Prezenční listina'!D82) ->  | F84: =IF('Prezenční listina'!F82=0,"",'Prezenční listina'!E82) ->  | G84: =IF('Prezenční listina'!F82=0,"",'Prezenční listina'!H82) -> 
B85: =IF('Prezenční listina'!F83=0,"",'Prezenční listina'!F83) ->  | C85: =IF('Prezenční listina'!F83=0,"",'Prezenční listina'!B83) ->  | D85: =IF('Prezenční listina'!F83=0,"",'Prezenční listina'!C83) ->  | E85: =IF('Prezenční listina'!F83=0,"",'Prezenční listina'!D83) ->  | F85: =IF('Prezenční listina'!F83=0,"",'Prezenční listina'!E83) ->  | G85: =IF('Prezenční listina'!F83=0,"",'Prezenční listina'!H83) -> 
B86: =IF('Prezenční listina'!F84=0,"",'Prezenční listina'!F84) ->  | C86: =IF('Prezenční listina'!F84=0,"",'Prezenční listina'!B84) ->  | D86: =IF('Prezenční listina'!F84=0,"",'Prezenční listina'!C84) ->  | E86: =IF('Prezenční listina'!F84=0,"",'Prezenční listina'!D84) ->  | F86: =IF('Prezenční listina'!F84=0,"",'Prezenční listina'!E84) ->  | G86: =IF('Prezenční listina'!F84=0,"",'Prezenční listina'!H84) -> 
B87: =IF('Prezenční listina'!F85=0,"",'Prezenční listina'!F85) ->  | C87: =IF('Prezenční listina'!F85=0,"",'Prezenční listina'!B85) ->  | D87: =IF('Prezenční listina'!F85=0,"",'Prezenční listina'!C85) ->  | E87: =IF('Prezenční listina'!F85=0,"",'Prezenční listina'!D85) ->  | F87: =IF('Prezenční listina'!F85=0,"",'Prezenční listina'!E85) ->  | G87: =IF('Prezenční listina'!F85=0,"",'Prezenční listina'!H85) -> 
B88: =IF('Prezenční listina'!F86=0,"",'Prezenční listina'!F86) ->  | C88: =IF('Prezenční listina'!F86=0,"",'Prezenční listina'!B86) ->  | D88: =IF('Prezenční listina'!F86=0,"",'Prezenční listina'!C86) ->  | E88: =IF('Prezenční listina'!F86=0,"",'Prezenční listina'!D86) ->  | F88: =IF('Prezenční listina'!F86=0,"",'Prezenční listina'!E86) ->  | G88: =IF('Prezenční listina'!F86=0,"",'Prezenční listina'!H86) -> 
B89: =IF('Prezenční listina'!F87=0,"",'Prezenční listina'!F87) ->  | C89: =IF('Prezenční listina'!F87=0,"",'Prezenční listina'!B87) ->  | D89: =IF('Prezenční listina'!F87=0,"",'Prezenční listina'!C87) ->  | E89: =IF('Prezenční listina'!F87=0,"",'Prezenční listina'!D87) ->  | F89: =IF('Prezenční listina'!F87=0,"",'Prezenční listina'!E87) ->  | G89: =IF('Prezenční listina'!F87=0,"",'Prezenční listina'!H87) -> 
B90: =IF('Prezenční listina'!F88=0,"",'Prezenční listina'!F88) ->  | C90: =IF('Prezenční listina'!F88=0,"",'Prezenční listina'!B88) ->  | D90: =IF('Prezenční listina'!F88=0,"",'Prezenční listina'!C88) ->  | E90: =IF('Prezenční listina'!F88=0,"",'Prezenční listina'!D88) ->  | F90: =IF('Prezenční listina'!F88=0,"",'Prezenční listina'!E88) ->  | G90: =IF('Prezenční listina'!F88=0,"",'Prezenční listina'!H88) -> 
A91: =IF(C91="","",A90+1) ->  | B91: =IF('Prezenční listina'!F89=0,"",'Prezenční listina'!F89) ->  | C91: =IF('Prezenční listina'!F89=0,"",'Prezenční listina'!B89) ->  | D91: =IF('Prezenční listina'!F89=0,"",'Prezenční listina'!C89) ->  | E91: =IF('Prezenční listina'!F89=0,"",'Prezenční listina'!D89) ->  | F91: =IF('Prezenční listina'!F89=0,"",'Prezenční listina'!E89) ->  | G91: =IF('Prezenční listina'!F89=0,"",'Prezenční listina'!H89) -> 
B92: =IF('Prezenční listina'!F90=0,"",'Prezenční listina'!F90) ->  | C92: =IF('Prezenční listina'!F90=0,"",'Prezenční listina'!B90) ->  | D92: =IF('Prezenční listina'!F90=0,"",'Prezenční listina'!C90) ->  | E92: =IF('Prezenční listina'!F90=0,"",'Prezenční listina'!D90) ->  | F92: =IF('Prezenční listina'!F90=0,"",'Prezenční listina'!E90) ->  | G92: =IF('Prezenční listina'!F90=0,"",'Prezenční listina'!H90) -> 
B93: =IF('Prezenční listina'!F91=0,"",'Prezenční listina'!F91) ->  | C93: =IF('Prezenční listina'!F91=0,"",'Prezenční listina'!B91) ->  | D93: =IF('Prezenční listina'!F91=0,"",'Prezenční listina'!C91) ->  | E93: =IF('Prezenční listina'!F91=0,"",'Prezenční listina'!D91) ->  | F93: =IF('Prezenční listina'!F91=0,"",'Prezenční listina'!E91) ->  | G93: =IF('Prezenční listina'!F91=0,"",'Prezenční listina'!H91) -> 
B94: =IF('Prezenční listina'!F92=0,"",'Prezenční listina'!F92) ->  | C94: =IF('Prezenční listina'!F92=0,"",'Prezenční listina'!B92) ->  | D94: =IF('Prezenční listina'!F92=0,"",'Prezenční listina'!C92) ->  | E94: =IF('Prezenční listina'!F92=0,"",'Prezenční listina'!D92) ->  | F94: =IF('Prezenční listina'!F92=0,"",'Prezenční listina'!E92) ->  | G94: =IF('Prezenční listina'!F92=0,"",'Prezenční listina'!H92) -> 
B95: =IF('Prezenční listina'!F93=0,"",'Prezenční listina'!F93) ->  | C95: =IF('Prezenční listina'!F93=0,"",'Prezenční listina'!B93) ->  | D95: =IF('Prezenční listina'!F93=0,"",'Prezenční listina'!C93) ->  | E95: =IF('Prezenční listina'!F93=0,"",'Prezenční listina'!D93) ->  | F95: =IF('Prezenční listina'!F93=0,"",'Prezenční listina'!E93) ->  | G95: =IF('Prezenční listina'!F93=0,"",'Prezenční listina'!H93) -> 
B96: =IF('Prezenční listina'!F94=0,"",'Prezenční listina'!F94) ->  | C96: =IF('Prezenční listina'!F94=0,"",'Prezenční listina'!B94) ->  | D96: =IF('Prezenční listina'!F94=0,"",'Prezenční listina'!C94) ->  | E96: =IF('Prezenční listina'!F94=0,"",'Prezenční listina'!D94) ->  | F96: =IF('Prezenční listina'!F94=0,"",'Prezenční listina'!E94) ->  | G96: =IF('Prezenční listina'!F94=0,"",'Prezenční listina'!H94) -> 
B97: =IF('Prezenční listina'!F95=0,"",'Prezenční listina'!F95) ->  | C97: =IF('Prezenční listina'!F95=0,"",'Prezenční listina'!B95) ->  | D97: =IF('Prezenční listina'!F95=0,"",'Prezenční listina'!C95) ->  | E97: =IF('Prezenční listina'!F95=0,"",'Prezenční listina'!D95) ->  | F97: =IF('Prezenční listina'!F95=0,"",'Prezenční listina'!E95) ->  | G97: =IF('Prezenční listina'!F95=0,"",'Prezenční listina'!H95) -> 
B98: =IF('Prezenční listina'!F96=0,"",'Prezenční listina'!F96) ->  | C98: =IF('Prezenční listina'!F96=0,"",'Prezenční listina'!B96) ->  | D98: =IF('Prezenční listina'!F96=0,"",'Prezenční listina'!C96) ->  | E98: =IF('Prezenční listina'!F96=0,"",'Prezenční listina'!D96) ->  | F98: =IF('Prezenční listina'!F96=0,"",'Prezenční listina'!E96) ->  | G98: =IF('Prezenční listina'!F96=0,"",'Prezenční listina'!H96) -> 
B99: =IF('Prezenční listina'!F97=0,"",'Prezenční listina'!F97) ->  | C99: =IF('Prezenční listina'!F97=0,"",'Prezenční listina'!B97) ->  | D99: =IF('Prezenční listina'!F97=0,"",'Prezenční listina'!C97) ->  | E99: =IF('Prezenční listina'!F97=0,"",'Prezenční listina'!D97) ->  | F99: =IF('Prezenční listina'!F97=0,"",'Prezenční listina'!E97) ->  | G99: =IF('Prezenční listina'!F97=0,"",'Prezenční listina'!H97) -> 
B100: =IF('Prezenční listina'!F98=0,"",'Prezenční listina'!F98) ->  | C100: =IF('Prezenční listina'!F98=0,"",'Prezenční listina'!B98) ->  | D100: =IF('Prezenční listina'!F98=0,"",'Prezenční listina'!C98) ->  | E100: =IF('Prezenční listina'!F98=0,"",'Prezenční listina'!D98) ->  | F100: =IF('Prezenční listina'!F98=0,"",'Prezenční listina'!E98) ->  | G100: =IF('Prezenční listina'!F98=0,"",'Prezenční listina'!H98) -> 
B101: =IF('Prezenční listina'!F99=0,"",'Prezenční listina'!F99) ->  | C101: =IF('Prezenční listina'!F99=0,"",'Prezenční listina'!B99) ->  | D101: =IF('Prezenční listina'!F99=0,"",'Prezenční listina'!C99) ->  | E101: =IF('Prezenční listina'!F99=0,"",'Prezenční listina'!D99) ->  | F101: =IF('Prezenční listina'!F99=0,"",'Prezenční listina'!E99) ->  | G101: =IF('Prezenční listina'!F99=0,"",'Prezenční listina'!H99) -> 
B102: =IF('Prezenční listina'!F100=0,"",'Prezenční listina'!F100) ->  | C102: =IF('Prezenční listina'!F100=0,"",'Prezenční listina'!B100) ->  | D102: =IF('Prezenční listina'!F100=0,"",'Prezenční listina'!C100) ->  | E102: =IF('Prezenční listina'!F100=0,"",'Prezenční listina'!D100) ->  | F102: =IF('Prezenční listina'!F100=0,"",'Prezenční listina'!E100) ->  | G102: =IF('Prezenční listina'!F100=0,"",'Prezenční listina'!H100) -> 
B103: =IF('Prezenční listina'!F101=0,"",'Prezenční listina'!F101) ->  | C103: =IF('Prezenční listina'!F101=0,"",'Prezenční listina'!B101) ->  | D103: =IF('Prezenční listina'!F101=0,"",'Prezenční listina'!C101) ->  | E103: =IF('Prezenční listina'!F101=0,"",'Prezenční listina'!D101) ->  | F103: =IF('Prezenční listina'!F101=0,"",'Prezenční listina'!E101) ->  | G103: =IF('Prezenční listina'!F101=0,"",'Prezenční listina'!H101) -> 
B104: =IF('Prezenční listina'!F102=0,"",'Prezenční listina'!F102) ->  | C104: =IF('Prezenční listina'!F102=0,"",'Prezenční listina'!B102) ->  | D104: =IF('Prezenční listina'!F102=0,"",'Prezenční listina'!C102) ->  | E104: =IF('Prezenční listina'!F102=0,"",'Prezenční listina'!D102) ->  | F104: =IF('Prezenční listina'!F102=0,"",'Prezenční listina'!E102) ->  | G104: =IF('Prezenční listina'!F102=0,"",'Prezenční listina'!H102) -> 
B105: =IF('Prezenční listina'!F103=0,"",'Prezenční listina'!F103) ->  | C105: =IF('Prezenční listina'!F103=0,"",'Prezenční listina'!B103) ->  | D105: =IF('Prezenční listina'!F103=0,"",'Prezenční listina'!C103) ->  | E105: =IF('Prezenční listina'!F103=0,"",'Prezenční listina'!D103) ->  | F105: =IF('Prezenční listina'!F103=0,"",'Prezenční listina'!E103) ->  | G105: =IF('Prezenční listina'!F103=0,"",'Prezenční listina'!H103) -> 
B106: =IF('Prezenční listina'!F104=0,"",'Prezenční listina'!F104) ->  | C106: =IF('Prezenční listina'!F104=0,"",'Prezenční listina'!B104) ->  | D106: =IF('Prezenční listina'!F104=0,"",'Prezenční listina'!C104) ->  | E106: =IF('Prezenční listina'!F104=0,"",'Prezenční listina'!D104) ->  | F106: =IF('Prezenční listina'!F104=0,"",'Prezenční listina'!E104) ->  | G106: =IF('Prezenční listina'!F104=0,"",'Prezenční listina'!H104) -> 
B107: =IF('Prezenční listina'!F105=0,"",'Prezenční listina'!F105) ->  | C107: =IF('Prezenční listina'!F105=0,"",'Prezenční listina'!B105) ->  | D107: =IF('Prezenční listina'!F105=0,"",'Prezenční listina'!C105) ->  | E107: =IF('Prezenční listina'!F105=0,"",'Prezenční listina'!D105) ->  | F107: =IF('Prezenční listina'!F105=0,"",'Prezenční listina'!E105) ->  | G107: =IF('Prezenční listina'!F105=0,"",'Prezenční listina'!H105) -> 
B108: =IF('Prezenční listina'!F106=0,"",'Prezenční listina'!F106) ->  | C108: =IF('Prezenční listina'!F106=0,"",'Prezenční listina'!B106) ->  | D108: =IF('Prezenční listina'!F106=0,"",'Prezenční listina'!C106) ->  | E108: =IF('Prezenční listina'!F106=0,"",'Prezenční listina'!D106) ->  | F108: =IF('Prezenční listina'!F106=0,"",'Prezenční listina'!E106) ->  | G108: =IF('Prezenční listina'!F106=0,"",'Prezenční listina'!H106) -> 
B109: =IF('Prezenční listina'!F107=0,"",'Prezenční listina'!F107) ->  | C109: =IF('Prezenční listina'!F107=0,"",'Prezenční listina'!B107) ->  | D109: =IF('Prezenční listina'!F107=0,"",'Prezenční listina'!C107) ->  | E109: =IF('Prezenční listina'!F107=0,"",'Prezenční listina'!D107) ->  | F109: =IF('Prezenční listina'!F107=0,"",'Prezenční listina'!E107) ->  | G109: =IF('Prezenční listina'!F107=0,"",'Prezenční listina'!H107) -> 
B110: =IF('Prezenční listina'!F108=0,"",'Prezenční listina'!F108) ->  | C110: =IF('Prezenční listina'!F108=0,"",'Prezenční listina'!B108) ->  | D110: =IF('Prezenční listina'!F108=0,"",'Prezenční listina'!C108) ->  | E110: =IF('Prezenční listina'!F108=0,"",'Prezenční listina'!D108) ->  | F110: =IF('Prezenční listina'!F108=0,"",'Prezenční listina'!E108) ->  | G110: =IF('Prezenční listina'!F108=0,"",'Prezenční listina'!H108) -> 
B111: =IF('Prezenční listina'!F109=0,"",'Prezenční listina'!F109) ->  | C111: =IF('Prezenční listina'!F109=0,"",'Prezenční listina'!B109) ->  | D111: =IF('Prezenční listina'!F109=0,"",'Prezenční listina'!C109) ->  | E111: =IF('Prezenční listina'!F109=0,"",'Prezenční listina'!D109) ->  | F111: =IF('Prezenční listina'!F109=0,"",'Prezenční listina'!E109) ->  | G111: =IF('Prezenční listina'!F109=0,"",'Prezenční listina'!H109) -> 
B112: =IF('Prezenční listina'!F110=0,"",'Prezenční listina'!F110) ->  | C112: =IF('Prezenční listina'!F110=0,"",'Prezenční listina'!B110) ->  | D112: =IF('Prezenční listina'!F110=0,"",'Prezenční listina'!C110) ->  | E112: =IF('Prezenční listina'!F110=0,"",'Prezenční listina'!D110) ->  | F112: =IF('Prezenční listina'!F110=0,"",'Prezenční listina'!E110) ->  | G112: =IF('Prezenční listina'!F110=0,"",'Prezenční listina'!H110) -> 
B113: =IF('Prezenční listina'!F111=0,"",'Prezenční listina'!F111) ->  | C113: =IF('Prezenční listina'!F111=0,"",'Prezenční listina'!B111) ->  | D113: =IF('Prezenční listina'!F111=0,"",'Prezenční listina'!C111) ->  | E113: =IF('Prezenční listina'!F111=0,"",'Prezenční listina'!D111) ->  | F113: =IF('Prezenční listina'!F111=0,"",'Prezenční listina'!E111) ->  | G113: =IF('Prezenční listina'!F111=0,"",'Prezenční listina'!H111) -> 
B114: =IF('Prezenční listina'!F112=0,"",'Prezenční listina'!F112) ->  | C114: =IF('Prezenční listina'!F112=0,"",'Prezenční listina'!B112) ->  | D114: =IF('Prezenční listina'!F112=0,"",'Prezenční listina'!C112) ->  | E114: =IF('Prezenční listina'!F112=0,"",'Prezenční listina'!D112) ->  | F114: =IF('Prezenční listina'!F112=0,"",'Prezenční listina'!E112) ->  | G114: =IF('Prezenční listina'!F112=0,"",'Prezenční listina'!H112) -> 
B115: =IF('Prezenční listina'!F113=0,"",'Prezenční listina'!F113) ->  | C115: =IF('Prezenční listina'!F113=0,"",'Prezenční listina'!B113) ->  | D115: =IF('Prezenční listina'!F113=0,"",'Prezenční listina'!C113) ->  | E115: =IF('Prezenční listina'!F113=0,"",'Prezenční listina'!D113) ->  | F115: =IF('Prezenční listina'!F113=0,"",'Prezenční listina'!E113) ->  | G115: =IF('Prezenční listina'!F113=0,"",'Prezenční listina'!H113) -> 
B116: =IF('Prezenční listina'!F114=0,"",'Prezenční listina'!F114) ->  | C116: =IF('Prezenční listina'!F114=0,"",'Prezenční listina'!B114) ->  | D116: =IF('Prezenční listina'!F114=0,"",'Prezenční listina'!C114) ->  | E116: =IF('Prezenční listina'!F114=0,"",'Prezenční listina'!D114) ->  | F116: =IF('Prezenční listina'!F114=0,"",'Prezenční listina'!E114) ->  | G116: =IF('Prezenční listina'!F114=0,"",'Prezenční listina'!H114) -> 
B117: =IF('Prezenční listina'!F115=0,"",'Prezenční listina'!F115) ->  | C117: =IF('Prezenční listina'!F115=0,"",'Prezenční listina'!B115) ->  | D117: =IF('Prezenční listina'!F115=0,"",'Prezenční listina'!C115) ->  | E117: =IF('Prezenční listina'!F115=0,"",'Prezenční listina'!D115) ->  | F117: =IF('Prezenční listina'!F115=0,"",'Prezenční listina'!E115) ->  | G117: =IF('Prezenční listina'!F115=0,"",'Prezenční listina'!H115) -> 
B118: =IF('Prezenční listina'!F116=0,"",'Prezenční listina'!F116) ->  | C118: =IF('Prezenční listina'!F116=0,"",'Prezenční listina'!B116) ->  | D118: =IF('Prezenční listina'!F116=0,"",'Prezenční listina'!C116) ->  | E118: =IF('Prezenční listina'!F116=0,"",'Prezenční listina'!D116) ->  | F118: =IF('Prezenční listina'!F116=0,"",'Prezenční listina'!E116) ->  | G118: =IF('Prezenční listina'!F116=0,"",'Prezenční listina'!H116) -> 
B119: =IF('Prezenční listina'!F117=0,"",'Prezenční listina'!F117) ->  | C119: =IF('Prezenční listina'!F117=0,"",'Prezenční listina'!B117) ->  | D119: =IF('Prezenční listina'!F117=0,"",'Prezenční listina'!C117) ->  | E119: =IF('Prezenční listina'!F117=0,"",'Prezenční listina'!D117) ->  | F119: =IF('Prezenční listina'!F117=0,"",'Prezenční listina'!E117) ->  | G119: =IF('Prezenční listina'!F117=0,"",'Prezenční listina'!H117) -> 
B120: =IF('Prezenční listina'!F118=0,"",'Prezenční listina'!F118) ->  | C120: =IF('Prezenční listina'!F118=0,"",'Prezenční listina'!B118) ->  | D120: =IF('Prezenční listina'!F118=0,"",'Prezenční listina'!C118) ->  | E120: =IF('Prezenční listina'!F118=0,"",'Prezenční listina'!D118) ->  | F120: =IF('Prezenční listina'!F118=0,"",'Prezenční listina'!E118) ->  | G120: =IF('Prezenční listina'!F118=0,"",'Prezenční listina'!H118) -> 
B121: =IF('Prezenční listina'!F119=0,"",'Prezenční listina'!F119) ->  | C121: =IF('Prezenční listina'!F119=0,"",'Prezenční listina'!B119) ->  | D121: =IF('Prezenční listina'!F119=0,"",'Prezenční listina'!C119) ->  | E121: =IF('Prezenční listina'!F119=0,"",'Prezenční listina'!D119) ->  | F121: =IF('Prezenční listina'!F119=0,"",'Prezenční listina'!E119) ->  | G121: =IF('Prezenční listina'!F119=0,"",'Prezenční listina'!H119) -> 
B122: =IF('Prezenční listina'!F120=0,"",'Prezenční listina'!F120) ->  | C122: =IF('Prezenční listina'!F120=0,"",'Prezenční listina'!B120) ->  | D122: =IF('Prezenční listina'!F120=0,"",'Prezenční listina'!C120) ->  | E122: =IF('Prezenční listina'!F120=0,"",'Prezenční listina'!D120) ->  | F122: =IF('Prezenční listina'!F120=0,"",'Prezenční listina'!E120) ->  | G122: =IF('Prezenční listina'!F120=0,"",'Prezenční listina'!H120) -> 
B123: =IF('Prezenční listina'!F121=0,"",'Prezenční listina'!F121) ->  | C123: =IF('Prezenční listina'!F121=0,"",'Prezenční listina'!B121) ->  | D123: =IF('Prezenční listina'!F121=0,"",'Prezenční listina'!C121) ->  | E123: =IF('Prezenční listina'!F121=0,"",'Prezenční listina'!D121) ->  | F123: =IF('Prezenční listina'!F121=0,"",'Prezenční listina'!E121) ->  | G123: =IF('Prezenční listina'!F121=0,"",'Prezenční listina'!H121) -> 
B124: =IF('Prezenční listina'!F122=0,"",'Prezenční listina'!F122) ->  | C124: =IF('Prezenční listina'!F122=0,"",'Prezenční listina'!B122) ->  | D124: =IF('Prezenční listina'!F122=0,"",'Prezenční listina'!C122) ->  | E124: =IF('Prezenční listina'!F122=0,"",'Prezenční listina'!D122) ->  | F124: =IF('Prezenční listina'!F122=0,"",'Prezenční listina'!E122) ->  | G124: =IF('Prezenční listina'!F122=0,"",'Prezenční listina'!H122) -> 
B125: =IF('Prezenční listina'!F123=0,"",'Prezenční listina'!F123) ->  | C125: =IF('Prezenční listina'!F123=0,"",'Prezenční listina'!B123) ->  | D125: =IF('Prezenční listina'!F123=0,"",'Prezenční listina'!C123) ->  | E125: =IF('Prezenční listina'!F123=0,"",'Prezenční listina'!D123) ->  | F125: =IF('Prezenční listina'!F123=0,"",'Prezenční listina'!E123) ->  | G125: =IF('Prezenční listina'!F123=0,"",'Prezenční listina'!H123) -> 
B126: =IF('Prezenční listina'!F124=0,"",'Prezenční listina'!F124) ->  | C126: =IF('Prezenční listina'!F124=0,"",'Prezenční listina'!B124) ->  | D126: =IF('Prezenční listina'!F124=0,"",'Prezenční listina'!C124) ->  | E126: =IF('Prezenční listina'!F124=0,"",'Prezenční listina'!D124) ->  | F126: =IF('Prezenční listina'!F124=0,"",'Prezenční listina'!E124) ->  | G126: =IF('Prezenční listina'!F124=0,"",'Prezenční listina'!H124) -> 
B127: =IF('Prezenční listina'!F125=0,"",'Prezenční listina'!F125) ->  | C127: =IF('Prezenční listina'!F125=0,"",'Prezenční listina'!B125) ->  | D127: =IF('Prezenční listina'!F125=0,"",'Prezenční listina'!C125) ->  | E127: =IF('Prezenční listina'!F125=0,"",'Prezenční listina'!D125) ->  | F127: =IF('Prezenční listina'!F125=0,"",'Prezenční listina'!E125) ->  | G127: =IF('Prezenční listina'!F125=0,"",'Prezenční listina'!H125) -> 
B128: =IF('Prezenční listina'!F126=0,"",'Prezenční listina'!F126) ->  | C128: =IF('Prezenční listina'!F126=0,"",'Prezenční listina'!B126) ->  | D128: =IF('Prezenční listina'!F126=0,"",'Prezenční listina'!C126) ->  | E128: =IF('Prezenční listina'!F126=0,"",'Prezenční listina'!D126) ->  | F128: =IF('Prezenční listina'!F126=0,"",'Prezenční listina'!E126) ->  | G128: =IF('Prezenční listina'!F126=0,"",'Prezenční listina'!H126) -> 
B129: =IF('Prezenční listina'!F127=0,"",'Prezenční listina'!F127) ->  | C129: =IF('Prezenční listina'!F127=0,"",'Prezenční listina'!B127) ->  | D129: =IF('Prezenční listina'!F127=0,"",'Prezenční listina'!C127) ->  | E129: =IF('Prezenční listina'!F127=0,"",'Prezenční listina'!D127) ->  | F129: =IF('Prezenční listina'!F127=0,"",'Prezenční listina'!E127) ->  | G129: =IF('Prezenční listina'!F127=0,"",'Prezenční listina'!H127) -> 
B130: =IF('Prezenční listina'!F128=0,"",'Prezenční listina'!F128) ->  | C130: =IF('Prezenční listina'!F128=0,"",'Prezenční listina'!B128) ->  | D130: =IF('Prezenční listina'!F128=0,"",'Prezenční listina'!C128) ->  | E130: =IF('Prezenční listina'!F128=0,"",'Prezenční listina'!D128) ->  | F130: =IF('Prezenční listina'!F128=0,"",'Prezenční listina'!E128) ->  | G130: =IF('Prezenční listina'!F128=0,"",'Prezenční listina'!H128) -> 
B131: =IF('Prezenční listina'!F129=0,"",'Prezenční listina'!F129) ->  | C131: =IF('Prezenční listina'!F129=0,"",'Prezenční listina'!B129) ->  | D131: =IF('Prezenční listina'!F129=0,"",'Prezenční listina'!C129) ->  | E131: =IF('Prezenční listina'!F129=0,"",'Prezenční listina'!D129) ->  | F131: =IF('Prezenční listina'!F129=0,"",'Prezenční listina'!E129) ->  | G131: =IF('Prezenční listina'!F129=0,"",'Prezenční listina'!H129) -> 
B132: =IF('Prezenční listina'!F130=0,"",'Prezenční listina'!F130) ->  | C132: =IF('Prezenční listina'!F130=0,"",'Prezenční listina'!B130) ->  | D132: =IF('Prezenční listina'!F130=0,"",'Prezenční listina'!C130) ->  | E132: =IF('Prezenční listina'!F130=0,"",'Prezenční listina'!D130) ->  | F132: =IF('Prezenční listina'!F130=0,"",'Prezenční listina'!E130) ->  | G132: =IF('Prezenční listina'!F130=0,"",'Prezenční listina'!H130) -> 
B133: =IF('Prezenční listina'!F131=0,"",'Prezenční listina'!F131) ->  | C133: =IF('Prezenční listina'!F131=0,"",'Prezenční listina'!B131) ->  | D133: =IF('Prezenční listina'!F131=0,"",'Prezenční listina'!C131) ->  | E133: =IF('Prezenční listina'!F131=0,"",'Prezenční listina'!D131) ->  | F133: =IF('Prezenční listina'!F131=0,"",'Prezenční listina'!E131) ->  | G133: =IF('Prezenční listina'!F131=0,"",'Prezenční listina'!H131) -> 
B134: =IF('Prezenční listina'!F132=0,"",'Prezenční listina'!F132) ->  | C134: =IF('Prezenční listina'!F132=0,"",'Prezenční listina'!B132) ->  | D134: =IF('Prezenční listina'!F132=0,"",'Prezenční listina'!C132) ->  | E134: =IF('Prezenční listina'!F132=0,"",'Prezenční listina'!D132) ->  | F134: =IF('Prezenční listina'!F132=0,"",'Prezenční listina'!E132) ->  | G134: =IF('Prezenční listina'!F132=0,"",'Prezenční listina'!H132) -> 
B135: =IF('Prezenční listina'!F133=0,"",'Prezenční listina'!F133) ->  | C135: =IF('Prezenční listina'!F133=0,"",'Prezenční listina'!B133) ->  | D135: =IF('Prezenční listina'!F133=0,"",'Prezenční listina'!C133) ->  | E135: =IF('Prezenční listina'!F133=0,"",'Prezenční listina'!D133) ->  | F135: =IF('Prezenční listina'!F133=0,"",'Prezenční listina'!E133) ->  | G135: =IF('Prezenční listina'!F133=0,"",'Prezenční listina'!H133) -> 
B136: =IF('Prezenční listina'!F134=0,"",'Prezenční listina'!F134) ->  | C136: =IF('Prezenční listina'!F134=0,"",'Prezenční listina'!B134) ->  | D136: =IF('Prezenční listina'!F134=0,"",'Prezenční listina'!C134) ->  | E136: =IF('Prezenční listina'!F134=0,"",'Prezenční listina'!D134) ->  | F136: =IF('Prezenční listina'!F134=0,"",'Prezenční listina'!E134) ->  | G136: =IF('Prezenční listina'!F134=0,"",'Prezenční listina'!H134) -> 
B137: =IF('Prezenční listina'!F135=0,"",'Prezenční listina'!F135) ->  | C137: =IF('Prezenční listina'!F135=0,"",'Prezenční listina'!B135) ->  | D137: =IF('Prezenční listina'!F135=0,"",'Prezenční listina'!C135) ->  | E137: =IF('Prezenční listina'!F135=0,"",'Prezenční listina'!D135) ->  | F137: =IF('Prezenční listina'!F135=0,"",'Prezenční listina'!E135) ->  | G137: =IF('Prezenční listina'!F135=0,"",'Prezenční listina'!H135) -> 
B138: =IF('Prezenční listina'!F136=0,"",'Prezenční listina'!F136) ->  | C138: =IF('Prezenční listina'!F136=0,"",'Prezenční listina'!B136) ->  | D138: =IF('Prezenční listina'!F136=0,"",'Prezenční listina'!C136) ->  | E138: =IF('Prezenční listina'!F136=0,"",'Prezenční listina'!D136) ->  | F138: =IF('Prezenční listina'!F136=0,"",'Prezenční listina'!E136) ->  | G138: =IF('Prezenční listina'!F136=0,"",'Prezenční listina'!H136) -> 
B139: =IF('Prezenční listina'!F137=0,"",'Prezenční listina'!F137) ->  | C139: =IF('Prezenční listina'!F137=0,"",'Prezenční listina'!B137) ->  | D139: =IF('Prezenční listina'!F137=0,"",'Prezenční listina'!C137) ->  | E139: =IF('Prezenční listina'!F137=0,"",'Prezenční listina'!D137) ->  | F139: =IF('Prezenční listina'!F137=0,"",'Prezenční listina'!E137) ->  | G139: =IF('Prezenční listina'!F137=0,"",'Prezenční listina'!H137) -> 
B140: =IF('Prezenční listina'!F138=0,"",'Prezenční listina'!F138) ->  | C140: =IF('Prezenční listina'!F138=0,"",'Prezenční listina'!B138) ->  | D140: =IF('Prezenční listina'!F138=0,"",'Prezenční listina'!C138) ->  | E140: =IF('Prezenční listina'!F138=0,"",'Prezenční listina'!D138) ->  | F140: =IF('Prezenční listina'!F138=0,"",'Prezenční listina'!E138) ->  | G140: =IF('Prezenční listina'!F138=0,"",'Prezenční listina'!H138) -> 
B141: =IF('Prezenční listina'!F139=0,"",'Prezenční listina'!F139) ->  | C141: =IF('Prezenční listina'!F139=0,"",'Prezenční listina'!B139) ->  | D141: =IF('Prezenční listina'!F139=0,"",'Prezenční listina'!C139) ->  | E141: =IF('Prezenční listina'!F139=0,"",'Prezenční listina'!D139) ->  | F141: =IF('Prezenční listina'!F139=0,"",'Prezenční listina'!E139) ->  | G141: =IF('Prezenční listina'!F139=0,"",'Prezenční listina'!H139) -> 

Sheet Výsledková listina
A1: ="Výsledková listina - Malý svratecký maraton "&'Prezenční listina'!O2 -> Výsledková listina - Malý svratecký maraton 2019
A2: 2019-08-24 | K2: Poté, co jsou dopsány časy VŠECH běžců, stisknout tlačítko 1.řazení Ve sloupci B (Pořadí v kategorii) vytvořit posloupnou číselnou řadu pro každou kategorii a poté stisknout tlačítko 2.řazení !!! POZOR!!! Použití tlačítek je nevratný krok!
A3: ='Prezenční listina'!O2-1953&". ročník" -> 66. ročník
A4: Celkové pořadí | B4: Pořadí v kategorii | C4: Kategorie | D4: Startovní číslo | E4: Příjmení | F4: Jméno | G4: Narození | H4: Oddíl / Bydliště | I4: Čas
A5: 1 | B5: 1 | C5: ='Startovní listina'!G46 -> A | D5: ='Startovní listina'!B46 -> 43 | E5: ='Startovní listina'!C46 -> Exner | F5: ='Startovní listina'!D46 -> Jakub | G5: ='Startovní listina'!E46 -> 1983 | H5: ='Startovní listina'!F46 -> Swoboda-pteam | I5: 02:01:49
A6: 1 | B6: 1 | C6: ='Startovní listina'!G56 -> B | D6: ='Startovní listina'!B56 -> 53 | E6: ='Startovní listina'!C56 -> Orálek | F6: ='Startovní listina'!D56 -> Daniel | G6: ='Startovní listina'!E56 -> 1970 | H6: ='Startovní listina'!F56 -> behejbrno.com | I6: 02:09:13
A7: 1 | B7: 2 | C7: ='Startovní listina'!G47 -> B | D7: ='Startovní listina'!B47 -> 44 | E7: ='Startovní listina'!C47 -> Vintrlík | F7: ='Startovní listina'!D47 -> Martin | G7: ='Startovní listina'!E47 -> 1977 | H7: ='Startovní listina'!F47 -> Triatlon Křepice | I7: 02:14:56
A8: 1 | B8: 3 | C8: ='Startovní listina'!G35 -> B | D8: ='Startovní listina'!B35 -> 32 | E8: ='Startovní listina'!C35 -> Brázda | F8: ='Startovní listina'!D35 -> Richard | G8: ='Startovní listina'!E35 -> 1975 | H8: ='Startovní listina'!F35 -> Český běžecký klub, Brno | I8: 02:20:19
A9: 1 | B9: 4 | C9: ='Startovní listina'!G73 -> B | D9: ='Startovní listina'!B73 -> 70 | E9: ='Startovní listina'!C73 -> Konečný | F9: ='Startovní listina'!D73 -> Libor | G9: ='Startovní listina'!E73 -> 1971 | H9: ='Startovní listina'!F73 -> Kuřim | I9: 02:22:26
A10: 1 | B10: 2 | C10: ='Startovní listina'!G33 -> A | D10: ='Startovní listina'!B33 -> 30 | E10: ='Startovní listina'!C33 -> Příhoda | F10: ='Startovní listina'!D33 -> Jan | G10: ='Startovní listina'!E33 -> 1983 | H10: ='Startovní listina'!F33 -> Brno | I10: 02:23:20
A11: 1 | B11: 5 | C11: ='Startovní listina'!G51 -> B | D11: ='Startovní listina'!B51 -> 48 | E11: ='Startovní listina'!C51 -> Viščor | F11: ='Startovní listina'!D51 -> Pavel | G11: ='Startovní listina'!E51 -> 1974 | H11: ='Startovní listina'!F51 -> Brno | I11: 02:26:24
A12: 1 | B12: 6 | C12: ='Startovní listina'!G45 -> B | D12: ='Startovní listina'!B45 -> 42 | E12: ='Startovní listina'!C45 -> Šerák | F12: ='Startovní listina'!D45 -> Martin | G12: ='Startovní listina'!E45 -> 1978 | H12: ='Startovní listina'!F45 -> Sokol Bílovice nad Svitavou | I12: 02:28:34
A13: 1 | B13: 3 | C13: ='Startovní listina'!G55 -> A | D13: ='Startovní listina'!B55 -> 52 | E13: ='Startovní listina'!C55 -> Glier | F13: ='Startovní listina'!D55 -> Michal | G13: ='Startovní listina'!E55 -> 1982 | H13: ='Startovní listina'!F55 -> behejbrno.com | I13: 02:30:35
A14: 1 | B14: 4 | C14: ='Startovní listina'!G17 -> A | D14: ='Startovní listina'!B17 -> 13 | E14: ='Startovní listina'!C17 -> Fousek | F14: ='Startovní listina'!D17 -> Jan | G14: ='Startovní listina'!E17 -> 1991 | H14: ='Startovní listina'!F17 -> MKS Ostrava | I14: 02:31:06
A15: 1 | B15: 1 | C15: ='Startovní listina'!G53 -> D | D15: ='Startovní listina'!B53 -> 50 | E15: ='Startovní listina'!C53 -> Čuhel | F15: ='Startovní listina'!D53 -> Jiří | G15: ='Startovní listina'!E53 -> 1958 | H15: ='Startovní listina'!F53 -> Křtěnov | I15: 02:31:55
A16: 1 | B16: 7 | C16: ='Startovní listina'!G48 -> B | D16: ='Startovní listina'!B48 -> 45 | E16: ='Startovní listina'!C48 -> Kropáček | F16: ='Startovní listina'!D48 -> Jaroslav | G16: ='Startovní listina'!E48 -> 1970 | H16: ='Startovní listina'!F48 -> Triatlon Křepice | I16: 02:35:47
A17: 1 | B17: 1 | C17: ='Startovní listina'!G41 -> C | D17: ='Startovní listina'!B41 -> 38 | E17: ='Startovní listina'!C41 -> Svoboda | F17: ='Startovní listina'!D41 -> Petr | G17: ='Startovní listina'!E41 -> 1968 | H17: ='Startovní listina'!F41 -> AC Moravská Slavia Brno | I17: 02:38:18
A18: 1 | B18: 2 | C18: ='Startovní listina'!G27 -> C | D18: ='Startovní listina'!B27 -> 24 | E18: ='Startovní listina'!C27 -> Koutník | F18: ='Startovní listina'!D27 -> Lumír | G18: ='Startovní listina'!E27 -> 1967 | H18: ='Startovní listina'!F27 -> A.O. Spartak Vrchlabí | I18: 02:38:36
A19: 1 | B19: 8 | C19: ='Startovní listina'!G70 -> B | D19: ='Startovní listina'!B70 -> 67 | E19: ='Startovní listina'!C70 -> Dušil | F19: ='Startovní listina'!D70 -> Jarda | G19: ='Startovní listina'!E70 -> 1970 | H19: ='Startovní listina'!F70 -> Slaměnka (Brno) | I19: 02:39:48
A20: 1 | B20: 9 | C20: ='Startovní listina'!G29 -> B | D20: ='Startovní listina'!B29 -> 26 | E20: ='Startovní listina'!C29 -> Koudelka | F20: ='Startovní listina'!D29 -> Drahomír | G20: ='Startovní listina'!E29 -> 1971 | H20: ='Startovní listina'!F29 -> Meixner Consulting (Pětihosty) | I20: 02:40:32
A21: 1 | B21: 3 | C21: ='Startovní listina'!G65 -> C | D21: ='Startovní listina'!B65 -> 62 | E21: ='Startovní listina'!C65 -> Jílek | F21: ='Startovní listina'!D65 -> Jaroslav | G21: ='Startovní listina'!E65 -> 1966 | H21: ='Startovní listina'!F65 -> Bystřice nad Pernštejnem | I21: 02:40:41
A22: 1 | B22: 2 | C22: ='Startovní listina'!G34 -> D | D22: ='Startovní listina'!B34 -> 31 | E22: ='Startovní listina'!C34 -> Bělehrádek | F22: ='Startovní listina'!D34 -> Pavel | G22: ='Startovní listina'!E34 -> 1958 | H22: ='Startovní listina'!F34 -> TJ Čolek (Velké Tresné) | I22: 02:41:29
A23: 1 | B23: 10 | C23: ='Startovní listina'!G28 -> B | D23: ='Startovní listina'!B28 -> 25 | E23: ='Startovní listina'!C28 -> Kratochvíl | F23: ='Startovní listina'!D28 -> Jaroslav | G23: ='Startovní listina'!E28 -> 1977 | H23: ='Startovní listina'!F28 -> SDH Hluboké | I23: 02:41:37
A24: 1 | B24: 1 | C24: ='Startovní listina'!G8 -> H | D24: ='Startovní listina'!B8 -> 4 | E24: ='Startovní listina'!C8 -> Komárková | F24: ='Startovní listina'!D8 -> Zdeňka | G24: ='Startovní listina'!E8 -> 1974 | H24: ='Startovní listina'!F8 -> SDH Bolešín | I24: 02:42:32
A25: 1 | B25: 4 | C25: ='Startovní listina'!G62 -> C | D25: ='Startovní listina'!B62 -> 59 | E25: ='Startovní listina'!C62 -> Havlíček | F25: ='Startovní listina'!D62 -> Ivo | G25: ='Startovní listina'!E62 -> 1966 | H25: ='Startovní listina'!F62 -> Lánov Krkonoše | I25: 02:44:12
A26: 1 | B26: 11 | C26: ='Startovní listina'!G59 -> B | D26: ='Startovní listina'!B59 -> 56 | E26: ='Startovní listina'!C59 -> Vykoupil | F26: ='Startovní listina'!D59 -> Miloslav | G26: ='Startovní listina'!E59 -> 1972 | H26: ='Startovní listina'!F59 -> Veverská Bitýška | I26: 02:47:04
A27: 1 | B27: 5 | C27: ='Startovní listina'!G44 -> C | D27: ='Startovní listina'!B44 -> 41 | E27: ='Startovní listina'!C44 -> Otta | F27: ='Startovní listina'!D44 -> Roman | G27: ='Startovní listina'!E44 -> 1961 | H27: ='Startovní listina'!F44 -> Q Sport Vrchlabí | I27: 02:54:31
A28: 1 | B28: 3 | C28: ='Startovní listina'!G31 -> D | D28: ='Startovní listina'!B31 -> 28 | E28: ='Startovní listina'!C31 -> Fikejs | F28: ='Startovní listina'!D31 -> Vladimír | G28: ='Startovní listina'!E31 -> 1957 | H28: ='Startovní listina'!F31 -> 3D Finess Race Team (Žamberk) | I28: 02:55:53
A29: 1 | B29: 12 | C29: ='Startovní listina'!G43 -> B | D29: ='Startovní listina'!B43 -> 40 | E29: ='Startovní listina'!C43 -> Řezníček | F29: ='Startovní listina'!D43 -> Petr | G29: ='Startovní listina'!E43 -> 1973 | H29: ='Startovní listina'!F43 -> Polnička | I29: 02:56:53
A30: 1 | B30: 13 | C30: ='Startovní listina'!G36 -> B | D30: ='Startovní listina'!B36 -> 33 | E30: ='Startovní listina'!C36 -> Krátký | F30: ='Startovní listina'!D36 -> Pavel | G30: ='Startovní listina'!E36 -> 1974 | H30: ='Startovní listina'!F36 -> TS Jan Kohut (Olomučany) | I30: 02:58:33
A31: 1 | B31: 6 | C31: ='Startovní listina'!G39 -> C | D31: ='Startovní listina'!B39 -> 36 | E31: ='Startovní listina'!C39 -> Dvořáček | F31: ='Startovní listina'!D39 -> Jiří | G31: ='Startovní listina'!E39 -> 1968 | H31: ='Startovní listina'!F39 -> Petrovice | I31: 03:01:47
A32: 1 | B32: 7 | C32: ='Startovní listina'!G19 -> C | D32: ='Startovní listina'!B19 -> 15 | E32: ='Startovní listina'!C19 -> Dvorský | F32: ='Startovní listina'!D19 -> Ladislav | G32: ='Startovní listina'!E19 -> 1965 | H32: ='Startovní listina'!F19 -> MKS Ostrava | I32: 03:02:05
A33: 1 | B33: 1 | C33: ='Startovní listina'!G18 -> E | D33: ='Startovní listina'!B18 -> 14 | E33: ='Startovní listina'!C18 -> Vytisk | F33: ='Startovní listina'!D18 -> Alfons | G33: ='Startovní listina'!E18 -> 1949 | H33: ='Startovní listina'!F18 -> MKS Ostrava | I33: 03:04:40
A34: 1 | B34: 5 | C34: ='Startovní listina'!G20 -> A | D34: ='Startovní listina'!B20 -> 16 | E34: ='Startovní listina'!C20 -> Berák | F34: ='Startovní listina'!D20 -> Lukáš | G34: ='Startovní listina'!E20 -> 1984 | H34: ='Startovní listina'!F20 -> Chotěvice | I34: 03:05:27
A35: 1 | B35: 14 | C35: ='Startovní listina'!G54 -> B | D35: ='Startovní listina'!B54 -> 51 | E35: ='Startovní listina'!C54 -> Weis | F35: ='Startovní listina'!D54 -> Josef | G35: ='Startovní listina'!E54 -> 1974 | H35: ='Startovní listina'!F54 -> Elite Sport Boskovice | I35: 03:05:47
A36: 1 | B36: 6 | C36: ='Startovní listina'!G6 -> A | D36: ='Startovní listina'!B6 -> 2 | E36: ='Startovní listina'!C6 -> Psula | F36: ='Startovní listina'!D6 -> Roman | G36: ='Startovní listina'!E6 -> 1984 | H36: ='Startovní listina'!F6 -> Ladermon Team (Olomouc) | I36: 03:09:12
A37: 1 | B37: 1 | C37: ='Startovní listina'!G7 -> F | D37: ='Startovní listina'!B7 -> 3 | E37: ='Startovní listina'!C7 -> Timmermansá | F37: ='Startovní listina'!D7 -> Aniek | G37: ='Startovní listina'!E7 -> 1985 | H37: ='Startovní listina'!F7 -> Autocamp Na Kopci | I37: 03:10:02
A38: 1 | B38: 8 | C38: ='Startovní listina'!G10 -> C | D38: ='Startovní listina'!B10 -> 6 | E38: ='Startovní listina'!C10 -> Rychecký | F38: ='Startovní listina'!D10 -> Tomáš | G38: ='Startovní listina'!E10 -> 1966 | H38: ='Startovní listina'!F10 -> HH Smíchov | I38: 03:10:06
A39: 1 | B39: 15 | C39: ='Startovní listina'!G11 -> B | D39: ='Startovní listina'!B11 -> 7 | E39: ='Startovní listina'!C11 -> Kalaš | F39: ='Startovní listina'!D11 -> Rudolf | G39: ='Startovní listina'!E11 -> 1971 | H39: ='Startovní listina'!F11 -> Boskovice | I39: 03:11:11
A40: 1 | B40: 16 | C40: ='Startovní listina'!G57 -> B | D40: ='Startovní listina'!B57 -> 54 | E40: ='Startovní listina'!C57 -> Sajdl | F40: ='Startovní listina'!D57 -> Ondřej | G40: ='Startovní listina'!E57 -> 1978 | H40: ='Startovní listina'!F57 -> Brno | I40: 03:12:16
A41: 1 | B41: 4 | C41: ='Startovní listina'!G71 -> D | D41: ='Startovní listina'!B71 -> 68 | E41: ='Startovní listina'!C71 -> Sedláček | F41: ='Startovní listina'!D71 -> Svatopluk | G41: ='Startovní listina'!E71 -> 1957 | H41: ='Startovní listina'!F71 -> AC Moravská Slavia Brno | I41: 03:12:40
A42: 1 | B42: 17 | C42: ='Startovní listina'!G52 -> B | D42: ='Startovní listina'!B52 -> 49 | E42: ='Startovní listina'!C52 -> Kovačič | F42: ='Startovní listina'!D52 -> Sebastian | G42: ='Startovní listina'!E52 -> 1978 | H42: ='Startovní listina'!F52 -> Bílovice nad Svitavou | I42: 03:12:50
A43: 1 | B43: 18 | C43: ='Startovní listina'!G67 -> B | D43: ='Startovní listina'!B67 -> 64 | E43: ='Startovní listina'!C67 -> Bezchleba | F43: ='Startovní listina'!D67 -> Petr | G43: ='Startovní listina'!E67 -> 1978 | H43: ='Startovní listina'!F67 -> SK TRI CYKLOCHLUBNA | I43: 03:13:11
A44: 1 | B44: 9 | C44: ='Startovní listina'!G69 -> C | D44: ='Startovní listina'!B69 -> 66 | E44: ='Startovní listina'!C69 -> Prokop | F44: ='Startovní listina'!D69 -> Ondřej | G44: ='Startovní listina'!E69 -> 1962 | H44: ='Startovní listina'!F69 -> ČAU, Brno | I44: 03:15:05
A45: 1 | B45: 19 | C45: ='Startovní listina'!G60 -> B | D45: ='Startovní listina'!B60 -> 57 | E45: ='Startovní listina'!C60 -> Lorenčík | F45: ='Startovní listina'!D60 -> Aleš | G45: ='Startovní listina'!E60 -> 1973 | H45: ='Startovní listina'!F60 -> Chrudim | I45: 03:15:49
A46: 1 | B46: 10 | C46: ='Startovní listina'!G58 -> C | D46: ='Startovní listina'!B58 -> 55 | E46: ='Startovní listina'!C58 -> Šůstek | F46: ='Startovní listina'!D58 -> Roman | G46: ='Startovní listina'!E58 -> 1968 | H46: ='Startovní listina'!F58 -> Brno | I46: 03:16:18
A47: 1 | B47: 11 | C47: ='Startovní listina'!G68 -> C | D47: ='Startovní listina'!B68 -> 65 | E47: ='Startovní listina'!C68 -> Čapka | F47: ='Startovní listina'!D68 -> František | G47: ='Startovní listina'!E68 -> 1968 | H47: ='Startovní listina'!F68 -> Minerva Boskovice | I47: 03:18:12
A48: 1 | B48: 1 | C48: ='Startovní listina'!G61 -> G | D48: ='Startovní listina'!B61 -> 58 | E48: ='Startovní listina'!C61 -> Jurgová | F48: ='Startovní listina'!D61 -> Martina | G48: ='Startovní listina'!E61 -> 1979 | H48: ='Startovní listina'!F61 -> Brno | I48: 03:18:32
A49: 1 | B49: 20 | C49: ='Startovní listina'!G49 -> B | D49: ='Startovní listina'!B49 -> 46 | E49: ='Startovní listina'!C49 -> Bracek | F49: ='Startovní listina'!D49 -> Petr | G49: ='Startovní listina'!E49 -> 1979 | H49: ='Startovní listina'!F49 -> Kuřim | I49: 03:19:13
A50: 1 | B50: 21 | C50: ='Startovní listina'!G9 -> B | D50: ='Startovní listina'!B9 -> 5 | E50: ='Startovní listina'!C9 -> Eliáš | F50: ='Startovní listina'!D9 -> Lukáš | G50: ='Startovní listina'!E9 -> 1979 | H50: ='Startovní listina'!F9 -> Ledová stěna Vír | I50: 03:23:40
A51: 1 | B51: 5 | C51: ='Startovní listina'!G30 -> D | D51: ='Startovní listina'!B30 -> 27 | E51: ='Startovní listina'!C30 -> Kubík | F51: ='Startovní listina'!D30 -> Jaromír | G51: ='Startovní listina'!E30 -> 1955 | H51: ='Startovní listina'!F30 -> Blansko | I51: 03:29:29
A52: 1 | B52: 7 | C52: ='Startovní listina'!G13 -> A | D52: ='Startovní listina'!B13 -> 9 | E52: ='Startovní listina'!C13 -> Pivec | F52: ='Startovní listina'!D13 -> Jan | G52: ='Startovní listina'!E13 -> 1981 | H52: ='Startovní listina'!F13 -> HALL 3000 | I52: 03:31:09
A53: 1 | B53: 12 | C53: ='Startovní listina'!G50 -> C | D53: ='Startovní listina'!B50 -> 47 | E53: ='Startovní listina'!C50 -> Plachý | F53: ='Startovní listina'!D50 -> Martin | G53: ='Startovní listina'!E50 -> 1965 | H53: ='Startovní listina'!F50 -> MK Prostějov | I53: 03:33:23
A54: 1 | B54: 6 | C54: ='Startovní listina'!G66 -> D | D54: ='Startovní listina'!B66 -> 63 | E54: ='Startovní listina'!C66 -> Boháč | F54: ='Startovní listina'!D66 -> Jiří | G54: ='Startovní listina'!E66 -> 1954 | H54: ='Startovní listina'!F66 -> behejbrno.com | I54: 03:39:41
A55: 1 | B55: 13 | C55: ='Startovní listina'!G14 -> C | D55: ='Startovní listina'!B14 -> 10 | E55: ='Startovní listina'!C14 -> Bečička | F55: ='Startovní listina'!D14 -> Petr | G55: ='Startovní listina'!E14 -> 1960 | H55: ='Startovní listina'!F14 -> HALL 3000 | I55: 03:42:06
A56: 1 | B56: 8 | C56: ='Startovní listina'!G37 -> A | D56: ='Startovní listina'!B37 -> 34 | E56: ='Startovní listina'!C37 -> Dvořák | F56: ='Startovní listina'!D37 -> Petr | G56: ='Startovní listina'!E37 -> 1986 | H56: ='Startovní listina'!F37 -> Brno | I56: 03:42:45
A57: 1 | B57: 9 | C57: ='Startovní listina'!G24 -> A | D57: ='Startovní listina'!B24 -> 21 | E57: ='Startovní listina'!C24 -> Podsedník | F57: ='Startovní listina'!D24 -> Marek | G57: ='Startovní listina'!E24 -> 1985 | H57: ='Startovní listina'!F24 -> Brno | I57: 03:44:07
A58: 1 | B58: 2 | C58: ='Startovní listina'!G23 -> G | D58: ='Startovní listina'!B23 -> 20 | E58: ='Startovní listina'!C23 -> Ježová | F58: ='Startovní listina'!D23 -> Martina | G58: ='Startovní listina'!E23 -> 1975 | H58: ='Startovní listina'!F23 -> Brno | I58: 03:45:47
A59: 1 | B59: 22 | C59: ='Startovní listina'!G42 -> B | D59: ='Startovní listina'!B42 -> 39 | E59: ='Startovní listina'!C42 -> Faja | F59: ='Startovní listina'!D42 -> Ondřej | G59: ='Startovní listina'!E42 -> 1976 | H59: ='Startovní listina'!F42 -> Brno | I59: 03:46:41
A60: 1 | B60: 3 | C60: ='Startovní listina'!G64 -> G | D60: ='Startovní listina'!B64 -> 61 | E60: ='Startovní listina'!C64 -> Munzarová | F60: ='Startovní listina'!D64 -> Věra | G60: ='Startovní listina'!E64 -> 1980 | H60: ='Startovní listina'!F64 -> Dalečín | I60: 03:47:40
A61: 1 | B61: 10 | C61: ='Startovní listina'!G63 -> A | D61: ='Startovní listina'!B63 -> 60 | E61: ='Startovní listina'!C63 -> Zedník | F61: ='Startovní listina'!D63 -> Petr | G61: ='Startovní listina'!E63 -> 1982 | H61: ='Startovní listina'!F63 -> Dalečín | I61: 03:47:42
A62: 1 | B62: 2 | C62: ='Startovní listina'!G16 -> E | D62: ='Startovní listina'!B16 -> 12 | E62: ='Startovní listina'!C16 -> Glier | F62: ='Startovní listina'!D16 -> Miroslav | G62: ='Startovní listina'!E16 -> 1949 | H62: ='Startovní listina'!F16 -> Ústí nad Labem | I62: 03:49:16
A63: 1 | B63: 7 | C63: ='Startovní listina'!G22 -> D | D63: ='Startovní listina'!B22 -> 18 | E63: ='Startovní listina'!C22 -> Bouček | F63: ='Startovní listina'!D22 -> Zdeněk | G63: ='Startovní listina'!E22 -> 1956 | H63: ='Startovní listina'!F22 -> Velké Meziříčí | I63: 03:50:30
A64: 1 | B64: 4 | C64: ='Startovní listina'!G12 -> G | D64: ='Startovní listina'!B12 -> 8 | E64: ='Startovní listina'!C12 -> Dostálová | F64: ='Startovní listina'!D12 -> Vendula | G64: ='Startovní listina'!E12 -> 1981 | H64: ='Startovní listina'!F12 -> HALL 3000 | I64: 03:52:07
A65: 1 | B65: 23 | C65: ='Startovní listina'!G72 -> B | D65: ='Startovní listina'!B72 -> 69 | E65: ='Startovní listina'!C72 -> Crha | F65: ='Startovní listina'!D72 -> Radek | G65: ='Startovní listina'!E72 -> 1979 | H65: ='Startovní listina'!F72 -> NON AUTOS Radek CRHA (Vidonín) | I65: 04:03:55
A66: 1 | B66: 14 | C66: ='Startovní listina'!G21 -> C | D66: ='Startovní listina'!B21 -> 17 | E66: ='Startovní listina'!C21 -> Tůma | F66: ='Startovní listina'!D21 -> Petr | G66: ='Startovní listina'!E21 -> 1968 | H66: ='Startovní listina'!F21 -> Slatinští šneci (Slatina) | I66: 04:06:46
A67: 1 | B67: 3 | C67: ='Startovní listina'!G26 -> E | D67: ='Startovní listina'!B26 -> 23 | E67: ='Startovní listina'!C26 -> Holý | F67: ='Startovní listina'!D26 -> Josef | G67: ='Startovní listina'!E26 -> 1941 | H67: ='Startovní listina'!F26 -> AC Moravská Slavia Brno | I67: 04:22:22
A68: 1 | B68: 8 | C68: ='Startovní listina'!G25 -> D | D68: ='Startovní listina'!B25 -> 22 | E68: ='Startovní listina'!C25 -> Zejda | F68: ='Startovní listina'!D25 -> Ivo | G68: ='Startovní listina'!E25 -> 1956 | H68: ='Startovní listina'!F25 -> AC Moravská Slavia Brno | I68: 04:28:48
A69: 1 | B69: 15 | C69: ='Startovní listina'!G38 -> C | D69: ='Startovní listina'!B38 -> 35 | E69: ='Startovní listina'!C38 -> Krátký | F69: ='Startovní listina'!D38 -> Josef | G69: ='Startovní listina'!E38 -> 1965 | H69: ='Startovní listina'!F38 -> Hvězda Pardubice | I69: 04:29:51
A70: 1 | B70: 11 | C70: ='Startovní listina'!G5 -> A | D70: ='Startovní listina'!B5 -> 1 | E70: ='Startovní listina'!C5 -> Hanák | F70: ='Startovní listina'!D5 -> Martin | G70: ='Startovní listina'!E5 -> 1993 | H70: ='Startovní listina'!F5 -> Ujčov | I70: DNF
A71: 1 | B71: 9 | C71: ='Startovní listina'!G32 -> D | D71: ='Startovní listina'!B32 -> 29 | E71: ='Startovní listina'!C32 -> Novotný | F71: ='Startovní listina'!D32 -> Jaroslav | G71: ='Startovní listina'!E32 -> 1955 | H71: ='Startovní listina'!F32 -> TEP Trutnov | I71: DNF
A72: 1 | B72: 10 | C72: ='Startovní listina'!G40 -> D | D72: ='Startovní listina'!B40 -> 37 | E72: ='Startovní listina'!C40 -> Mareš | F72: ='Startovní listina'!D40 -> Bohumil | G72: ='Startovní listina'!E40 -> 1951 | H72: ='Startovní listina'!F40 -> Posilovna Průvan Brno | I72: DNF
A73: 1 | B73: 5 | C73: ='Startovní listina'!G15 -> G | D73: ='Startovní listina'!B15 -> 11 | E73: ='Startovní listina'!C15 -> Komblisá | F73: ='Startovní listina'!D15 -> Michaela | G73: ='Startovní listina'!E15 -> 1981 | H73: ='Startovní listina'!F15 -> Izrael | I73: DNF
A74: 1 | C74: ='Startovní listina'!G74 ->  | D74: ='Startovní listina'!B74 ->  | E74: ='Startovní listina'!C74 ->  | F74: ='Startovní listina'!D74 ->  | G74: ='Startovní listina'!E74 ->  | H74: ='Startovní listina'!F74 -> 
A75: 1 | C75: ='Startovní listina'!G75 ->  | D75: ='Startovní listina'!B75 ->  | E75: ='Startovní listina'!C75 ->  | F75: ='Startovní listina'!D75 ->  | G75: ='Startovní listina'!E75 ->  | H75: ='Startovní listina'!F75 -> 
A76: 1 | C76: ='Startovní listina'!G76 ->  | D76: ='Startovní listina'!B76 ->  | E76: ='Startovní listina'!C76 ->  | F76: ='Startovní listina'!D76 ->  | G76: ='Startovní listina'!E76 ->  | H76: ='Startovní listina'!F76 -> 
A77: 1 | C77: ='Startovní listina'!G77 ->  | D77: ='Startovní listina'!B77 ->  | E77: ='Startovní listina'!C77 ->  | F77: ='Startovní listina'!D77 ->  | G77: ='Startovní listina'!E77 ->  | H77: ='Startovní listina'!F77 -> 
A78: 1 | C78: ='Startovní listina'!G78 ->  | D78: ='Startovní listina'!B78 ->  | E78: ='Startovní listina'!C78 ->  | F78: ='Startovní listina'!D78 ->  | G78: ='Startovní listina'!E78 ->  | H78: ='Startovní listina'!F78 -> 
A79: 1 | C79: ='Startovní listina'!G79 ->  | D79: ='Startovní listina'!B79 ->  | E79: ='Startovní listina'!C79 ->  | F79: ='Startovní listina'!D79 ->  | G79: ='Startovní listina'!E79 ->  | H79: ='Startovní listina'!F79 -> 
A80: 1 | C80: ='Startovní listina'!G80 ->  | D80: ='Startovní listina'!B80 ->  | E80: ='Startovní listina'!C80 ->  | F80: ='Startovní listina'!D80 ->  | G80: ='Startovní listina'!E80 ->  | H80: ='Startovní listina'!F80 -> 
A81: 1 | C81: ='Startovní listina'!G81 ->  | D81: ='Startovní listina'!B81 ->  | E81: ='Startovní listina'!C81 ->  | F81: ='Startovní listina'!D81 ->  | G81: ='Startovní listina'!E81 ->  | H81: ='Startovní listina'!F81 -> 
A82: 1 | C82: ='Startovní listina'!G82 ->  | D82: ='Startovní listina'!B82 ->  | E82: ='Startovní listina'!C82 ->  | F82: ='Startovní listina'!D82 ->  | G82: ='Startovní listina'!E82 ->  | H82: ='Startovní listina'!F82 -> 
A83: 1 | C83: ='Startovní listina'!G83 ->  | D83: ='Startovní listina'!B83 ->  | E83: ='Startovní listina'!C83 ->  | F83: ='Startovní listina'!D83 ->  | G83: ='Startovní listina'!E83 ->  | H83: ='Startovní listina'!F83 -> 
A84: 1 | C84: ='Startovní listina'!G84 ->  | D84: ='Startovní listina'!B84 ->  | E84: ='Startovní listina'!C84 ->  | F84: ='Startovní listina'!D84 ->  | G84: ='Startovní listina'!E84 ->  | H84: ='Startovní listina'!F84 -> 
A85: 1 | C85: ='Startovní listina'!G85 ->  | D85: ='Startovní listina'!B85 ->  | E85: ='Startovní listina'!C85 ->  | F85: ='Startovní listina'!D85 ->  | G85: ='Startovní listina'!E85 ->  | H85: ='Startovní listina'!F85 -> 
A86: 1 | C86: ='Startovní listina'!G86 ->  | D86: ='Startovní listina'!B86 ->  | E86: ='Startovní listina'!C86 ->  | F86: ='Startovní listina'!D86 ->  | G86: ='Startovní listina'!E86 ->  | H86: ='Startovní listina'!F86 -> 
A87: 1 | C87: ='Startovní listina'!G87 ->  | D87: ='Startovní listina'!B87 ->  | E87: ='Startovní listina'!C87 ->  | F87: ='Startovní listina'!D87 ->  | G87: ='Startovní listina'!E87 ->  | H87: ='Startovní listina'!F87 -> 
A88: 1 | C88: ='Startovní listina'!G88 ->  | D88: ='Startovní listina'!B88 ->  | E88: ='Startovní listina'!C88 ->  | F88: ='Startovní listina'!D88 ->  | G88: ='Startovní listina'!E88 ->  | H88: ='Startovní listina'!F88 -> 
A89: 1 | C89: ='Startovní listina'!G89 ->  | D89: ='Startovní listina'!B89 ->  | E89: ='Startovní listina'!C89 ->  | F89: ='Startovní listina'!D89 ->  | G89: ='Startovní listina'!E89 ->  | H89: ='Startovní listina'!F89 -> 
A90: 1 | C90: ='Startovní listina'!G90 ->  | D90: ='Startovní listina'!B90 ->  | E90: ='Startovní listina'!C90 ->  | F90: ='Startovní listina'!D90 ->  | G90: ='Startovní listina'!E90 ->  | H90: ='Startovní listina'!F90 -> 
A91: 1 | C91: ='Startovní listina'!G91 ->  | D91: ='Startovní listina'!B91 ->  | E91: ='Startovní listina'!C91 ->  | F91: ='Startovní listina'!D91 ->  | G91: ='Startovní listina'!E91 ->  | H91: ='Startovní listina'!F91 -> 
A92: 1 | C92: ='Startovní listina'!G92 ->  | D92: ='Startovní listina'!B92 ->  | E92: ='Startovní listina'!C92 ->  | F92: ='Startovní listina'!D92 ->  | G92: ='Startovní listina'!E92 ->  | H92: ='Startovní listina'!F92 -> 
A93: 1 | C93: ='Startovní listina'!G93 ->  | D93: ='Startovní listina'!B93 ->  | E93: ='Startovní listina'!C93 ->  | F93: ='Startovní listina'!D93 ->  | G93: ='Startovní listina'!E93 ->  | H93: ='Startovní listina'!F93 -> 
A94: 1 | C94: ='Startovní listina'!G94 ->  | D94: ='Startovní listina'!B94 ->  | E94: ='Startovní listina'!C94 ->  | F94: ='Startovní listina'!D94 ->  | G94: ='Startovní listina'!E94 ->  | H94: ='Startovní listina'!F94 -> 
A95: 1 | C95: ='Startovní listina'!G95 ->  | D95: ='Startovní listina'!B95 ->  | E95: ='Startovní listina'!C95 ->  | F95: ='Startovní listina'!D95 ->  | G95: ='Startovní listina'!E95 ->  | H95: ='Startovní listina'!F95 -> 
A96: 1 | C96: ='Startovní listina'!G96 ->  | D96: ='Startovní listina'!B96 ->  | E96: ='Startovní listina'!C96 ->  | F96: ='Startovní listina'!D96 ->  | G96: ='Startovní listina'!E96 ->  | H96: ='Startovní listina'!F96 -> 
A97: 1 | C97: ='Startovní listina'!G97 ->  | D97: ='Startovní listina'!B97 ->  | E97: ='Startovní listina'!C97 ->  | F97: ='Startovní listina'!D97 ->  | G97: ='Startovní listina'!E97 ->  | H97: ='Startovní listina'!F97 -> 
A98: 1 | C98: ='Startovní listina'!G98 ->  | D98: ='Startovní listina'!B98 ->  | E98: ='Startovní listina'!C98 ->  | F98: ='Startovní listina'!D98 ->  | G98: ='Startovní listina'!E98 ->  | H98: ='Startovní listina'!F98 -> 
A99: 1 | C99: ='Startovní listina'!G99 ->  | D99: ='Startovní listina'!B99 ->  | E99: ='Startovní listina'!C99 ->  | F99: ='Startovní listina'!D99 ->  | G99: ='Startovní listina'!E99 ->  | H99: ='Startovní listina'!F99 -> 
A100: 1 | C100: ='Startovní listina'!G100 ->  | D100: ='Startovní listina'!B100 ->  | E100: ='Startovní listina'!C100 ->  | F100: ='Startovní listina'!D100 ->  | G100: ='Startovní listina'!E100 ->  | H100: ='Startovní listina'!F100 -> 
A101: 1 | C101: ='Startovní listina'!G101 ->  | D101: ='Startovní listina'!B101 ->  | E101: ='Startovní listina'!C101 ->  | F101: ='Startovní listina'!D101 ->  | G101: ='Startovní listina'!E101 ->  | H101: ='Startovní listina'!F101 -> 
A102: 1 | C102: ='Startovní listina'!G102 ->  | D102: ='Startovní listina'!B102 ->  | E102: ='Startovní listina'!C102 ->  | F102: ='Startovní listina'!D102 ->  | G102: ='Startovní listina'!E102 ->  | H102: ='Startovní listina'!F102 -> 
A103: 1 | C103: ='Startovní listina'!G103 ->  | D103: ='Startovní listina'!B103 ->  | E103: ='Startovní listina'!C103 ->  | F103: ='Startovní listina'!D103 ->  | G103: ='Startovní listina'!E103 ->  | H103: ='Startovní listina'!F103 -> 
A104: 1 | C104: ='Startovní listina'!G104 ->  | D104: ='Startovní listina'!B104 ->  | E104: ='Startovní listina'!C104 ->  | F104: ='Startovní listina'!D104 ->  | G104: ='Startovní listina'!E104 ->  | H104: ='Startovní listina'!F104 -> 

Sheet Družstva
B1: ="Výsledková listina - Malý svratecký maratón "&'Prezenční listina'!O2&" - družstva" -> Výsledková listina - Malý svratecký maratón 2019 - družstva
B2: ='Prezenční listina'!O2-1953&". ročník" -> 66. ročník
B3: Pořadí | C3: Startovní číslo | D3: Příjmení | E3: Jméno | F3: Narození | G3: Oddíl / Bydliště | H3: Čas | I3: Výsledný čas
B4: 1. | C4: 44 | D4: =IF(ISERROR(VLOOKUP(C4,'Startovní listina'!$B$5:$F$141,2)),"",VLOOKUP(C4,'Startovní listina'!$B$5:$F$141,2)) -> Vintrlík | E4: =IF(ISERROR(VLOOKUP(C4,'Startovní listina'!$B$5:$F$141,3)),"",VLOOKUP(C4,'Startovní listina'!$B$5:$F$141,3)) -> Martin | F4: =IF(ISERROR(VLOOKUP(C4,'Startovní listina'!$B$5:$F$141,4)),"",VLOOKUP(C4,'Startovní listina'!$B$5:$F$141,4)) -> 1977 | G4: =IF(K4=K5,K4,"RŮZNÉ ODDÍLY !!!") -> Triatlon Křepice | H4: 02:14:56 | I4: =H4+H5 -> 04:50:43 | K4: =IF(ISERROR(VLOOKUP(C4,'Startovní listina'!$B$5:$F$141,5)),"",VLOOKUP(C4,'Startovní listina'!$B$5:$F$141,5)) -> Triatlon Křepice
C5: 45 | D5: =IF(ISERROR(VLOOKUP(C5,'Startovní listina'!$B$5:$F$141,2)),"",VLOOKUP(C5,'Startovní listina'!$B$5:$F$141,2)) -> Kropáček | E5: =IF(ISERROR(VLOOKUP(C5,'Startovní listina'!$B$5:$F$141,3)),"",VLOOKUP(C5,'Startovní listina'!$B$5:$F$141,3)) -> Jaroslav | F5: =IF(ISERROR(VLOOKUP(C5,'Startovní listina'!$B$5:$F$141,4)),"",VLOOKUP(C5,'Startovní listina'!$B$5:$F$141,4)) -> 1970 | H5: 02:35:47 | K5: =IF(ISERROR(VLOOKUP(C5,'Startovní listina'!$B$5:$F$141,5)),"",VLOOKUP(C5,'Startovní listina'!$B$5:$F$141,5)) -> Triatlon Křepice
B6: 2. | C6: 52 | D6: =IF(ISERROR(VLOOKUP(C6,'Startovní listina'!$B$5:$F$141,2)),"",VLOOKUP(C6,'Startovní listina'!$B$5:$F$141,2)) -> Glier | E6: =IF(ISERROR(VLOOKUP(C6,'Startovní listina'!$B$5:$F$141,3)),"",VLOOKUP(C6,'Startovní listina'!$B$5:$F$141,3)) -> Michal | F6: =IF(ISERROR(VLOOKUP(C6,'Startovní listina'!$B$5:$F$141,4)),"",VLOOKUP(C6,'Startovní listina'!$B$5:$F$141,4)) -> 1982 | G6: =IF(K6=K7,K6,"RŮZNÉ ODDÍLY !!!") -> behejbrno.com | H6: 02:30:35 | I6: =H6+H7 -> 04:39:48 | K6: =IF(ISERROR(VLOOKUP(C6,'Startovní listina'!$B$5:$F$141,5)),"",VLOOKUP(C6,'Startovní listina'!$B$5:$F$141,5)) -> behejbrno.com
C7: 53 | D7: =IF(ISERROR(VLOOKUP(C7,'Startovní listina'!$B$5:$F$141,2)),"",VLOOKUP(C7,'Startovní listina'!$B$5:$F$141,2)) -> Orálek | E7: =IF(ISERROR(VLOOKUP(C7,'Startovní listina'!$B$5:$F$141,3)),"",VLOOKUP(C7,'Startovní listina'!$B$5:$F$141,3)) -> Daniel | F7: =IF(ISERROR(VLOOKUP(C7,'Startovní listina'!$B$5:$F$141,4)),"",VLOOKUP(C7,'Startovní listina'!$B$5:$F$141,4)) -> 1970 | H7: 02:09:13 | K7: =IF(ISERROR(VLOOKUP(C7,'Startovní listina'!$B$5:$F$141,5)),"",VLOOKUP(C7,'Startovní listina'!$B$5:$F$141,5)) -> behejbrno.com
B8: 3. | D8: =IF(ISERROR(VLOOKUP(C8,'Startovní listina'!$B$5:$F$141,2)),"",VLOOKUP(C8,'Startovní listina'!$B$5:$F$141,2)) ->  | E8: =IF(ISERROR(VLOOKUP(C8,'Startovní listina'!$B$5:$F$141,3)),"",VLOOKUP(C8,'Startovní listina'!$B$5:$F$141,3)) ->  | F8: =IF(ISERROR(VLOOKUP(C8,'Startovní listina'!$B$5:$F$141,4)),"",VLOOKUP(C8,'Startovní listina'!$B$5:$F$141,4)) ->  | G8: =IF(K8=K9,K8,"RŮZNÉ ODDÍLY !!!") ->  | I8: =H8+H9 -> 00:00:00 | K8: =IF(ISERROR(VLOOKUP(C8,'Startovní listina'!$B$5:$F$141,5)),"",VLOOKUP(C8,'Startovní listina'!$B$5:$F$141,5)) -> 
D9: =IF(ISERROR(VLOOKUP(C9,'Startovní listina'!$B$5:$F$141,2)),"",VLOOKUP(C9,'Startovní listina'!$B$5:$F$141,2)) ->  | E9: =IF(ISERROR(VLOOKUP(C9,'Startovní listina'!$B$5:$F$141,3)),"",VLOOKUP(C9,'Startovní listina'!$B$5:$F$141,3)) ->  | F9: =IF(ISERROR(VLOOKUP(C9,'Startovní listina'!$B$5:$F$141,4)),"",VLOOKUP(C9,'Startovní listina'!$B$5:$F$141,4)) ->  | K9: =IF(ISERROR(VLOOKUP(C9,'Startovní listina'!$B$5:$F$141,5)),"",VLOOKUP(C9,'Startovní listina'!$B$5:$F$141,5)) -> 
B10: 4. | D10: =IF(ISERROR(VLOOKUP(C10,'Startovní listina'!$B$5:$F$141,2)),"",VLOOKUP(C10,'Startovní listina'!$B$5:$F$141,2)) ->  | E10: =IF(ISERROR(VLOOKUP(C10,'Startovní listina'!$B$5:$F$141,3)),"",VLOOKUP(C10,'Startovní listina'!$B$5:$F$141,3)) ->  | F10: =IF(ISERROR(VLOOKUP(C10,'Startovní listina'!$B$5:$F$141,4)),"",VLOOKUP(C10,'Startovní listina'!$B$5:$F$141,4)) ->  | G10: =IF(K10=K11,K10,"RŮZNÉ ODDÍLY !!!") ->  | I10: =H10+H11 -> 00:00:00 | K10: =IF(ISERROR(VLOOKUP(C10,'Startovní listina'!$B$5:$F$141,5)),"",VLOOKUP(C10,'Startovní listina'!$B$5:$F$141,5)) -> 
D11: =IF(ISERROR(VLOOKUP(C11,'Startovní listina'!$B$5:$F$141,2)),"",VLOOKUP(C11,'Startovní listina'!$B$5:$F$141,2)) ->  | E11: =IF(ISERROR(VLOOKUP(C11,'Startovní listina'!$B$5:$F$141,3)),"",VLOOKUP(C11,'Startovní listina'!$B$5:$F$141,3)) ->  | F11: =IF(ISERROR(VLOOKUP(C11,'Startovní listina'!$B$5:$F$141,4)),"",VLOOKUP(C11,'Startovní listina'!$B$5:$F$141,4)) ->  | K11: =IF(ISERROR(VLOOKUP(C11,'Startovní listina'!$B$5:$F$141,5)),"",VLOOKUP(C11,'Startovní listina'!$B$5:$F$141,5)) -> 
B12: 5. | D12: =IF(ISERROR(VLOOKUP(C12,'Startovní listina'!$B$5:$F$141,2)),"",VLOOKUP(C12,'Startovní listina'!$B$5:$F$141,2)) ->  | E12: =IF(ISERROR(VLOOKUP(C12,'Startovní listina'!$B$5:$F$141,3)),"",VLOOKUP(C12,'Startovní listina'!$B$5:$F$141,3)) ->  | F12: =IF(ISERROR(VLOOKUP(C12,'Startovní listina'!$B$5:$F$141,4)),"",VLOOKUP(C12,'Startovní listina'!$B$5:$F$141,4)) ->  | G12: =IF(K12=K13,K12,"RŮZNÉ ODDÍLY !!!") ->  | I12: =H12+H13 -> 00:00:00 | K12: =IF(ISERROR(VLOOKUP(C12,'Startovní listina'!$B$5:$F$141,5)),"",VLOOKUP(C12,'Startovní listina'!$B$5:$F$141,5)) -> 
D13: =IF(ISERROR(VLOOKUP(C13,'Startovní listina'!$B$5:$F$141,2)),"",VLOOKUP(C13,'Startovní listina'!$B$5:$F$141,2)) ->  | E13: =IF(ISERROR(VLOOKUP(C13,'Startovní listina'!$B$5:$F$141,3)),"",VLOOKUP(C13,'Startovní listina'!$B$5:$F$141,3)) ->  | F13: =IF(ISERROR(VLOOKUP(C13,'Startovní listina'!$B$5:$F$141,4)),"",VLOOKUP(C13,'Startovní listina'!$B$5:$F$141,4)) ->  | K13: =IF(ISERROR(VLOOKUP(C13,'Startovní listina'!$B$5:$F$141,5)),"",VLOOKUP(C13,'Startovní listina'!$B$5:$F$141,5)) -> 
B14: 6. | D14: =IF(ISERROR(VLOOKUP(C14,'Startovní listina'!$B$5:$F$141,2)),"",VLOOKUP(C14,'Startovní listina'!$B$5:$F$141,2)) ->  | E14: =IF(ISERROR(VLOOKUP(C14,'Startovní listina'!$B$5:$F$141,3)),"",VLOOKUP(C14,'Startovní listina'!$B$5:$F$141,3)) ->  | F14: =IF(ISERROR(VLOOKUP(C14,'Startovní listina'!$B$5:$F$141,4)),"",VLOOKUP(C14,'Startovní listina'!$B$5:$F$141,4)) ->  | G14: =IF(K14=K15,K14,"RŮZNÉ ODDÍLY !!!") ->  | I14: =H14+H15 -> 00:00:00 | K14: =IF(ISERROR(VLOOKUP(C14,'Startovní listina'!$B$5:$F$141,5)),"",VLOOKUP(C14,'Startovní listina'!$B$5:$F$141,5)) -> 
D15: =IF(ISERROR(VLOOKUP(C15,'Startovní listina'!$B$5:$F$141,2)),"",VLOOKUP(C15,'Startovní listina'!$B$5:$F$141,2)) ->  | E15: =IF(ISERROR(VLOOKUP(C15,'Startovní listina'!$B$5:$F$141,3)),"",VLOOKUP(C15,'Startovní listina'!$B$5:$F$141,3)) ->  | F15: =IF(ISERROR(VLOOKUP(C15,'Startovní listina'!$B$5:$F$141,4)),"",VLOOKUP(C15,'Startovní listina'!$B$5:$F$141,4)) ->  | K15: =IF(ISERROR(VLOOKUP(C15,'Startovní listina'!$B$5:$F$141,5)),"",VLOOKUP(C15,'Startovní listina'!$B$5:$F$141,5)) -> 
B16: 7. | D16: =IF(ISERROR(VLOOKUP(C16,'Startovní listina'!$B$5:$F$141,2)),"",VLOOKUP(C16,'Startovní listina'!$B$5:$F$141,2)) ->  | E16: =IF(ISERROR(VLOOKUP(C16,'Startovní listina'!$B$5:$F$141,3)),"",VLOOKUP(C16,'Startovní listina'!$B$5:$F$141,3)) ->  | F16: =IF(ISERROR(VLOOKUP(C16,'Startovní listina'!$B$5:$F$141,4)),"",VLOOKUP(C16,'Startovní listina'!$B$5:$F$141,4)) ->  | G16: =IF(K16=K17,K16,"RŮZNÉ ODDÍLY !!!") ->  | I16: =H16+H17 -> 00:00:00 | K16: =IF(ISERROR(VLOOKUP(C16,'Startovní listina'!$B$5:$F$141,5)),"",VLOOKUP(C16,'Startovní listina'!$B$5:$F$141,5)) -> 
D17: =IF(ISERROR(VLOOKUP(C17,'Startovní listina'!$B$5:$F$141,2)),"",VLOOKUP(C17,'Startovní listina'!$B$5:$F$141,2)) ->  | E17: =IF(ISERROR(VLOOKUP(C17,'Startovní listina'!$B$5:$F$141,3)),"",VLOOKUP(C17,'Startovní listina'!$B$5:$F$141,3)) ->  | F17: =IF(ISERROR(VLOOKUP(C17,'Startovní listina'!$B$5:$F$141,4)),"",VLOOKUP(C17,'Startovní listina'!$B$5:$F$141,4)) ->  | K17: =IF(ISERROR(VLOOKUP(C17,'Startovní listina'!$B$5:$F$141,5)),"",VLOOKUP(C17,'Startovní listina'!$B$5:$F$141,5)) -> 
B18: 8. | E18: =IF(ISERROR(VLOOKUP(C18,'Startovní listina'!$B$5:$F$141,3)),"",VLOOKUP(C18,'Startovní listina'!$B$5:$F$141,3)) ->  | I18: =H18+H19 -> 00:00:00 | K18: =IF(ISERROR(VLOOKUP(C18,'Startovní listina'!$B$5:$F$141,5)),"",VLOOKUP(C18,'Startovní listina'!$B$5:$F$141,5)) -> 
E19: =IF(ISERROR(VLOOKUP(C19,'Startovní listina'!$B$5:$F$141,3)),"",VLOOKUP(C19,'Startovní listina'!$B$5:$F$141,3)) ->  | K19: =IF(ISERROR(VLOOKUP(C19,'Startovní listina'!$B$5:$F$141,5)),"",VLOOKUP(C19,'Startovní listina'!$B$5:$F$141,5)) -> 
B20: 9. | E20: =IF(ISERROR(VLOOKUP(C20,'Startovní listina'!$B$5:$F$141,3)),"",VLOOKUP(C20,'Startovní listina'!$B$5:$F$141,3)) ->  | I20: =H20+H21 -> 00:00:00 | K20: =IF(ISERROR(VLOOKUP(C20,'Startovní listina'!$B$5:$F$141,5)),"",VLOOKUP(C20,'Startovní listina'!$B$5:$F$141,5)) -> 
E21: =IF(ISERROR(VLOOKUP(C21,'Startovní listina'!$B$5:$F$141,3)),"",VLOOKUP(C21,'Startovní listina'!$B$5:$F$141,3)) ->  | K21: =IF(ISERROR(VLOOKUP(C21,'Startovní listina'!$B$5:$F$141,5)),"",VLOOKUP(C21,'Startovní listina'!$B$5:$F$141,5)) -> 

Sheet Běh Vírem
A1: ="Běh Vírem "&'Prezenční listina'!O2 -> Běh Vírem 2019 | J1: ročník 2001 a mladší
A2: ='Prezenční listina'!O2-1966&".ročník" -> 53.ročník
B3: Příjmení | C3: Jméno | D3: Narození | E3: Oddíl / Bydliště | F3: Startovní číslo | G3: Čas | H3: Pohlaví
A4: 1 | B4: Lorenčík | C4: Kryštof | D4: 2004 | E4: Atletika Chrudim | F4: 10 | G4: 00:12:26 | H4: =IF(LEN(B4)=0," ",IF(MID(B4,LEN(B4),1)="á","Ž","M")) -> M
A5: =IF(B4<>0,A4+1,"") -> 2 | B5: Jílek | C5: František | D5: 2004 | E5: Velké Tresné | F5: 9 | G5: 00:12:53 | H5: =IF(LEN(B5)=0," ",IF(MID(B5,LEN(B5),1)="á","Ž","M")) -> M
A6: =IF(B5<>0,A5+1,"") -> 3 | B6: Jílek | C6: Benedikt | D6: 2006 | E6: Velké Tresné | F6: 22 | G6: 00:13:02 | H6: =IF(LEN(B6)=0," ",IF(MID(B6,LEN(B6),1)="á","Ž","M")) -> M
A7: 4 | B7: Kratochvíl | C7: Tomáš | D7: 2008 | E7: Moravany u Brna | F7: 40 | G7: 00:13:10 | H7: =IF(LEN(B7)=0," ",IF(MID(B7,LEN(B7),1)="á","Ž","M")) -> M
A8: 5 | B8: Zeman | C8: Martin | D8: 2008 | E8: Moravská Slavia Brno | F8: 33 | G8: 00:13:13 | H8: =IF(LEN(B8)=0," ",IF(MID(B8,LEN(B8),1)="á","Ž","M")) -> M
A9: 6 | B9: Štourač | C9: Tomáš | D9: 2003 | E9: Vír | F9: 6 | G9: 00:14:07 | H9: =IF(LEN(B9)=0," ",IF(MID(B9,LEN(B9),1)="á","Ž","M")) -> M
A10: 7 | B10: Kincová | C10: Kateřina | D10: 2003 | E10: Štěpánov nad Svratkou | F10: 14 | G10: 00:15:22 | H10: =IF(LEN(B10)=0," ",IF(MID(B10,LEN(B10),1)="á","Ž","M")) -> Ž
A11: 8 | B11: Kubíková | C11: Vanesa | D11: 2009 | E11: Vír | F11: 58 | G11: 00:16:23 | H11: =IF(LEN(B11)=0," ",IF(MID(B11,LEN(B11),1)="á","Ž","M")) -> Ž | L11: ;
A12: 9 | B12: Resová | C12: Martina | D12: 2003 | E12: Vír | F12: 3 | G12: 00:18:27 | H12: =IF(LEN(B12)=0," ",IF(MID(B12,LEN(B12),1)="á","Ž","M")) -> Ž
A13: 10 | B13: Klujová | C13: Valentýna | D13: 2007 | E13: Vír | F13: 4 | G13: 00:18:28 | H13: =IF(LEN(B13)=0," ",IF(MID(B13,LEN(B13),1)="á","Ž","M")) -> Ž
A14: 11 | H14: =IF(LEN(B14)=0," ",IF(MID(B14,LEN(B14),1)="á","Ž","M")) -> 
H15: =IF(LEN(B15)=0," ",IF(MID(B15,LEN(B15),1)="á","Ž","M")) -> 
H16: =IF(LEN(B16)=0," ",IF(MID(B16,LEN(B16),1)="á","Ž","M")) -> 
H17: =IF(LEN(B17)=0," ",IF(MID(B17,LEN(B17),1)="á","Ž","M")) -> 
H18: =IF(LEN(B18)=0," ",IF(MID(B18,LEN(B18),1)="á","Ž","M")) -> 
H19: =IF(LEN(B19)=0," ",IF(MID(B19,LEN(B19),1)="á","Ž","M")) -> 
H20: =IF(LEN(B20)=0," ",IF(MID(B20,LEN(B20),1)="á","Ž","M")) -> 
H21: =IF(LEN(B21)=0," ",IF(MID(B21,LEN(B21),1)="á","Ž","M")) -> 
H22: =IF(LEN(B22)=0," ",IF(MID(B22,LEN(B22),1)="á","Ž","M")) -> 
H23: =IF(LEN(B23)=0," ",IF(MID(B23,LEN(B23),1)="á","Ž","M")) -> 
H24: =IF(LEN(B24)=0," ",IF(MID(B24,LEN(B24),1)="á","Ž","M")) -> 
H25: =IF(LEN(B25)=0," ",IF(MID(B25,LEN(B25),1)="á","Ž","M")) -> 
H26: =IF(LEN(B26)=0," ",IF(MID(B26,LEN(B26),1)="á","Ž","M")) -> 
H27: =IF(LEN(B27)=0," ",IF(MID(B27,LEN(B27),1)="á","Ž","M")) -> 
H28: =IF(LEN(B28)=0," ",IF(MID(B28,LEN(B28),1)="á","Ž","M")) -> 
H29: =IF(LEN(B29)=0," ",IF(MID(B29,LEN(B29),1)="á","Ž","M")) -> 
H30: =IF(LEN(B30)=0," ",IF(MID(B30,LEN(B30),1)="á","Ž","M")) -> 
H31: =IF(LEN(B31)=0," ",IF(MID(B31,LEN(B31),1)="á","Ž","M")) -> 
H32: =IF(LEN(B32)=0," ",IF(MID(B32,LEN(B32),1)="á","Ž","M")) -> 
H33: =IF(LEN(B33)=0," ",IF(MID(B33,LEN(B33),1)="á","Ž","M")) -> 
H34: =IF(LEN(B34)=0," ",IF(MID(B34,LEN(B34),1)="á","Ž","M")) -> 
H35: =IF(LEN(B35)=0," ",IF(MID(B35,LEN(B35),1)="á","Ž","M")) -> 
H36: =IF(LEN(B36)=0," ",IF(MID(B36,LEN(B36),1)="á","Ž","M")) -> 
H37: =IF(LEN(B37)=0," ",IF(MID(B37,LEN(B37),1)="á","Ž","M")) -> 
H38: =IF(LEN(B38)=0," ",IF(MID(B38,LEN(B38),1)="á","Ž","M")) -> 
H39: =IF(LEN(B39)=0," ",IF(MID(B39,LEN(B39),1)="á","Ž","M")) -> 
H40: =IF(LEN(B40)=0," ",IF(MID(B40,LEN(B40),1)="á","Ž","M")) -> 
H41: =IF(LEN(B41)=0," ",IF(MID(B41,LEN(B41),1)="á","Ž","M")) -> 
H42: =IF(LEN(B42)=0," ",IF(MID(B42,LEN(B42),1)="á","Ž","M")) -> 
H43: =IF(LEN(B43)=0," ",IF(MID(B43,LEN(B43),1)="á","Ž","M")) -> 
H44: =IF(LEN(B44)=0," ",IF(MID(B44,LEN(B44),1)="á","Ž","M")) -> 
H45: =IF(LEN(B45)=0," ",IF(MID(B45,LEN(B45),1)="á","Ž","M")) -> 
H46: =IF(LEN(B46)=0," ",IF(MID(B46,LEN(B46),1)="á","Ž","M")) -> 
H47: =IF(LEN(B47)=0," ",IF(MID(B47,LEN(B47),1)="á","Ž","M")) -> 
H48: =IF(LEN(B48)=0," ",IF(MID(B48,LEN(B48),1)="á","Ž","M")) -> 
H49: =IF(LEN(B49)=0," ",IF(MID(B49,LEN(B49),1)="á","Ž","M")) -> 

Sheet mezičasy
A1: 5. km | C1: 10. km | E1: 16. km | G1: 25. km
A2: číslo | B2: čas | C2: číslo | D2: čas | E2: číslo | F2: čas | G2: číslo | H2: čas
B3: : : | D3: : : | F3: : : | H3: : :
B4: : : | D4: : : | F4: : : | H4: : :
B5: : : | D5: : : | F5: : : | H5: : :
B6: : : | D6: : : | F6: : : | H6: : :
B7: : : | D7: : : | F7: : : | H7: : :
B8: : : | D8: : : | F8: : : | H8: : :
B9: : : | D9: : : | F9: : : | H9: : :
B10: : : | D10: : : | F10: : : | H10: : :
B11: : : | D11: : : | F11: : : | H11: : :
B12: : : | D12: : : | F12: : : | H12: : :
B13: : : | D13: : : | F13: : : | H13: : :
B14: : : | D14: : : | F14: : : | H14: : :
B15: : : | D15: : : | F15: : : | H15: : :
B16: : : | D16: : : | F16: : : | H16: : :
B17: : : | D17: : : | F17: : : | H17: : :
B18: : : | D18: : : | F18: : : | H18: : :
B19: : : | D19: : : | F19: : : | H19: : :
B20: : : | D20: : : | F20: : : | H20: : :
B21: : : | D21: : : | F21: : : | H21: : :
B22: : : | D22: : : | F22: : : | H22: : :
B23: : : | D23: : : | F23: : : | H23: : :
B24: : : | D24: : : | F24: : : | H24: : :
B25: : : | D25: : : | F25: : : | H25: : :
B26: : : | D26: : : | F26: : : | H26: : :
B27: : : | D27: : : | F27: : : | H27: : :
B28: : : | D28: : : | F28: : : | H28: : :
B29: : : | D29: : : | F29: : : | H29: : :
B30: : : | D30: : : | F30: : : | H30: : :

Sheet Výsledková listina (3)
A1: ="Výsledková listina - Malý svratecký maraton "&'Prezenční listina'!O2 -> Výsledková listina - Malý svratecký maraton 2019
A2: 2019-08-24 | K2: Poté, co jsou dopsány časy VŠECH běžců, stisknout tlačítko 1.řazení Ve sloupci B (Pořadí v kategorii) vytvořit posloupnou číselnou řadu pro každou kategorii a poté stisknout tlačítko 2.řazení !!! POZOR!!! Použití tlačítek je nevratný krok!
A3: ='Prezenční listina'!O2-1953&". ročník" -> 66. ročník
A4: Celkové pořadí | B4: Pořadí v kategorii | C4: Kategorie | D4: Startovní číslo | E4: Příjmení | F4: Jméno | G4: Narození | H4: Oddíl / Bydliště | I4: Čas
A5: 1 | C5: ='Startovní listina'!G5 -> A | D5: ='Startovní listina'!B5 -> 1 | E5: ='Startovní listina'!C5 -> Hanák | F5: ='Startovní listina'!D5 -> Martin | G5: ='Startovní listina'!E5 -> 1993 | H5: ='Startovní listina'!F5 -> Ujčov | I5: DNF
A6: 1 | C6: ='Startovní listina'!G6 -> A | D6: ='Startovní listina'!B6 -> 2 | E6: ='Startovní listina'!C6 -> Psula | F6: ='Startovní listina'!D6 -> Roman | G6: ='Startovní listina'!E6 -> 1984 | H6: ='Startovní listina'!F6 -> Ladermon Team (Olomouc) | I6: 03:09:12
A7: 1 | C7: ='Startovní listina'!G7 -> F | D7: ='Startovní listina'!B7 -> 3 | E7: ='Startovní listina'!C7 -> Timmermansá | F7: ='Startovní listina'!D7 -> Aniek | G7: ='Startovní listina'!E7 -> 1985 | H7: ='Startovní listina'!F7 -> Autocamp Na Kopci | I7: 03:10:02
A8: 1 | C8: ='Startovní listina'!G8 -> H | D8: ='Startovní listina'!B8 -> 4 | E8: ='Startovní listina'!C8 -> Komárková | F8: ='Startovní listina'!D8 -> Zdeňka | G8: ='Startovní listina'!E8 -> 1974 | H8: ='Startovní listina'!F8 -> SDH Bolešín | I8: 02:42:32
A9: 1 | C9: ='Startovní listina'!G9 -> B | D9: ='Startovní listina'!B9 -> 5 | E9: ='Startovní listina'!C9 -> Eliáš | F9: ='Startovní listina'!D9 -> Lukáš | G9: ='Startovní listina'!E9 -> 1979 | H9: ='Startovní listina'!F9 -> Ledová stěna Vír | I9: 03:23:40
A10: 1 | C10: ='Startovní listina'!G10 -> C | D10: ='Startovní listina'!B10 -> 6 | E10: ='Startovní listina'!C10 -> Rychecký | F10: ='Startovní listina'!D10 -> Tomáš | G10: ='Startovní listina'!E10 -> 1966 | H10: ='Startovní listina'!F10 -> HH Smíchov | I10: 03:10:06
A11: 1 | C11: ='Startovní listina'!G11 -> B | D11: ='Startovní listina'!B11 -> 7 | E11: ='Startovní listina'!C11 -> Kalaš | F11: ='Startovní listina'!D11 -> Rudolf | G11: ='Startovní listina'!E11 -> 1971 | H11: ='Startovní listina'!F11 -> Boskovice | I11: 03:11:11
A12: 1 | C12: ='Startovní listina'!G12 -> G | D12: ='Startovní listina'!B12 -> 8 | E12: ='Startovní listina'!C12 -> Dostálová | F12: ='Startovní listina'!D12 -> Vendula | G12: ='Startovní listina'!E12 -> 1981 | H12: ='Startovní listina'!F12 -> HALL 3000 | I12: 03:52:07
A13: 1 | C13: ='Startovní listina'!G13 -> A | D13: ='Startovní listina'!B13 -> 9 | E13: ='Startovní listina'!C13 -> Pivec | F13: ='Startovní listina'!D13 -> Jan | G13: ='Startovní listina'!E13 -> 1981 | H13: ='Startovní listina'!F13 -> HALL 3000 | I13: 03:31:09
A14: 1 | C14: ='Startovní listina'!G14 -> C | D14: ='Startovní listina'!B14 -> 10 | E14: ='Startovní listina'!C14 -> Bečička | F14: ='Startovní listina'!D14 -> Petr | G14: ='Startovní listina'!E14 -> 1960 | H14: ='Startovní listina'!F14 -> HALL 3000 | I14: 03:42:06
A15: 1 | C15: ='Startovní listina'!G15 -> G | D15: ='Startovní listina'!B15 -> 11 | E15: ='Startovní listina'!C15 -> Komblisá | F15: ='Startovní listina'!D15 -> Michaela | G15: ='Startovní listina'!E15 -> 1981 | H15: ='Startovní listina'!F15 -> Izrael | I15: DNF
A16: 1 | C16: ='Startovní listina'!G16 -> E | D16: ='Startovní listina'!B16 -> 12 | E16: ='Startovní listina'!C16 -> Glier | F16: ='Startovní listina'!D16 -> Miroslav | G16: ='Startovní listina'!E16 -> 1949 | H16: ='Startovní listina'!F16 -> Ústí nad Labem | I16: 03:49:16
A17: 1 | C17: ='Startovní listina'!G17 -> A | D17: ='Startovní listina'!B17 -> 13 | E17: ='Startovní listina'!C17 -> Fousek | F17: ='Startovní listina'!D17 -> Jan | G17: ='Startovní listina'!E17 -> 1991 | H17: ='Startovní listina'!F17 -> MKS Ostrava | I17: 02:31:06
A18: 1 | C18: ='Startovní listina'!G18 -> E | D18: ='Startovní listina'!B18 -> 14 | E18: ='Startovní listina'!C18 -> Vytisk | F18: ='Startovní listina'!D18 -> Alfons | G18: ='Startovní listina'!E18 -> 1949 | H18: ='Startovní listina'!F18 -> MKS Ostrava | I18: 03:04:40
A19: 1 | C19: ='Startovní listina'!G19 -> C | D19: ='Startovní listina'!B19 -> 15 | E19: ='Startovní listina'!C19 -> Dvorský | F19: ='Startovní listina'!D19 -> Ladislav | G19: ='Startovní listina'!E19 -> 1965 | H19: ='Startovní listina'!F19 -> MKS Ostrava | I19: 03:02:05
A20: 1 | C20: ='Startovní listina'!G20 -> A | D20: ='Startovní listina'!B20 -> 16 | E20: ='Startovní listina'!C20 -> Berák | F20: ='Startovní listina'!D20 -> Lukáš | G20: ='Startovní listina'!E20 -> 1984 | H20: ='Startovní listina'!F20 -> Chotěvice | I20: 03:05:27
A21: 1 | C21: ='Startovní listina'!G21 -> C | D21: ='Startovní listina'!B21 -> 17 | E21: ='Startovní listina'!C21 -> Tůma | F21: ='Startovní listina'!D21 -> Petr | G21: ='Startovní listina'!E21 -> 1968 | H21: ='Startovní listina'!F21 -> Slatinští šneci (Slatina) | I21: 04:06:46
A22: 1 | C22: ='Startovní listina'!G22 -> D | D22: ='Startovní listina'!B22 -> 18 | E22: ='Startovní listina'!C22 -> Bouček | F22: ='Startovní listina'!D22 -> Zdeněk | G22: ='Startovní listina'!E22 -> 1956 | H22: ='Startovní listina'!F22 -> Velké Meziříčí | I22: 03:50:30
A23: 1 | C23: ='Startovní listina'!G23 -> G | D23: ='Startovní listina'!B23 -> 20 | E23: ='Startovní listina'!C23 -> Ježová | F23: ='Startovní listina'!D23 -> Martina | G23: ='Startovní listina'!E23 -> 1975 | H23: ='Startovní listina'!F23 -> Brno | I23: 03:45:47
A24: 1 | C24: ='Startovní listina'!G24 -> A | D24: ='Startovní listina'!B24 -> 21 | E24: ='Startovní listina'!C24 -> Podsedník | F24: ='Startovní listina'!D24 -> Marek | G24: ='Startovní listina'!E24 -> 1985 | H24: ='Startovní listina'!F24 -> Brno | I24: 03:44:07
A25: 1 | C25: ='Startovní listina'!G25 -> D | D25: ='Startovní listina'!B25 -> 22 | E25: ='Startovní listina'!C25 -> Zejda | F25: ='Startovní listina'!D25 -> Ivo | G25: ='Startovní listina'!E25 -> 1956 | H25: ='Startovní listina'!F25 -> AC Moravská Slavia Brno | I25: 04:28:48
A26: 1 | C26: ='Startovní listina'!G26 -> E | D26: ='Startovní listina'!B26 -> 23 | E26: ='Startovní listina'!C26 -> Holý | F26: ='Startovní listina'!D26 -> Josef | G26: ='Startovní listina'!E26 -> 1941 | H26: ='Startovní listina'!F26 -> AC Moravská Slavia Brno | I26: 04:22:22
A27: 1 | C27: ='Startovní listina'!G27 -> C | D27: ='Startovní listina'!B27 -> 24 | E27: ='Startovní listina'!C27 -> Koutník | F27: ='Startovní listina'!D27 -> Lumír | G27: ='Startovní listina'!E27 -> 1967 | H27: ='Startovní listina'!F27 -> A.O. Spartak Vrchlabí | I27: 02:38:36
A28: 1 | C28: ='Startovní listina'!G28 -> B | D28: ='Startovní listina'!B28 -> 25 | E28: ='Startovní listina'!C28 -> Kratochvíl | F28: ='Startovní listina'!D28 -> Jaroslav | G28: ='Startovní listina'!E28 -> 1977 | H28: ='Startovní listina'!F28 -> SDH Hluboké | I28: 02:41:37
A29: 1 | C29: ='Startovní listina'!G29 -> B | D29: ='Startovní listina'!B29 -> 26 | E29: ='Startovní listina'!C29 -> Koudelka | F29: ='Startovní listina'!D29 -> Drahomír | G29: ='Startovní listina'!E29 -> 1971 | H29: ='Startovní listina'!F29 -> Meixner Consulting (Pětihosty) | I29: 02:40:32
A30: 1 | C30: ='Startovní listina'!G30 -> D | D30: ='Startovní listina'!B30 -> 27 | E30: ='Startovní listina'!C30 -> Kubík | F30: ='Startovní listina'!D30 -> Jaromír | G30: ='Startovní listina'!E30 -> 1955 | H30: ='Startovní listina'!F30 -> Blansko | I30: 03:29:29
A31: 1 | C31: ='Startovní listina'!G31 -> D | D31: ='Startovní listina'!B31 -> 28 | E31: ='Startovní listina'!C31 -> Fikejs | F31: ='Startovní listina'!D31 -> Vladimír | G31: ='Startovní listina'!E31 -> 1957 | H31: ='Startovní listina'!F31 -> 3D Finess Race Team (Žamberk) | I31: 02:55:53
A32: 1 | C32: ='Startovní listina'!G32 -> D | D32: ='Startovní listina'!B32 -> 29 | E32: ='Startovní listina'!C32 -> Novotný | F32: ='Startovní listina'!D32 -> Jaroslav | G32: ='Startovní listina'!E32 -> 1955 | H32: ='Startovní listina'!F32 -> TEP Trutnov | I32: DNF
A33: 1 | C33: ='Startovní listina'!G33 -> A | D33: ='Startovní listina'!B33 -> 30 | E33: ='Startovní listina'!C33 -> Příhoda | F33: ='Startovní listina'!D33 -> Jan | G33: ='Startovní listina'!E33 -> 1983 | H33: ='Startovní listina'!F33 -> Brno | I33: 02:23:20
A34: 1 | C34: ='Startovní listina'!G34 -> D | D34: ='Startovní listina'!B34 -> 31 | E34: ='Startovní listina'!C34 -> Bělehrádek | F34: ='Startovní listina'!D34 -> Pavel | G34: ='Startovní listina'!E34 -> 1958 | H34: ='Startovní listina'!F34 -> TJ Čolek (Velké Tresné) | I34: 02:41:29
A35: 1 | C35: ='Startovní listina'!G35 -> B | D35: ='Startovní listina'!B35 -> 32 | E35: ='Startovní listina'!C35 -> Brázda | F35: ='Startovní listina'!D35 -> Richard | G35: ='Startovní listina'!E35 -> 1975 | H35: ='Startovní listina'!F35 -> Český běžecký klub, Brno | I35: 02:20:19
A36: 1 | C36: ='Startovní listina'!G36 -> B | D36: ='Startovní listina'!B36 -> 33 | E36: ='Startovní listina'!C36 -> Krátký | F36: ='Startovní listina'!D36 -> Pavel | G36: ='Startovní listina'!E36 -> 1974 | H36: ='Startovní listina'!F36 -> TS Jan Kohut (Olomučany) | I36: 02:58:33
A37: 1 | C37: ='Startovní listina'!G37 -> A | D37: ='Startovní listina'!B37 -> 34 | E37: ='Startovní listina'!C37 -> Dvořák | F37: ='Startovní listina'!D37 -> Petr | G37: ='Startovní listina'!E37 -> 1986 | H37: ='Startovní listina'!F37 -> Brno | I37: 03:42:45
A38: 1 | C38: ='Startovní listina'!G38 -> C | D38: ='Startovní listina'!B38 -> 35 | E38: ='Startovní listina'!C38 -> Krátký | F38: ='Startovní listina'!D38 -> Josef | G38: ='Startovní listina'!E38 -> 1965 | H38: ='Startovní listina'!F38 -> Hvězda Pardubice | I38: 04:29:51
A39: 1 | C39: ='Startovní listina'!G39 -> C | D39: ='Startovní listina'!B39 -> 36 | E39: ='Startovní listina'!C39 -> Dvořáček | F39: ='Startovní listina'!D39 -> Jiří | G39: ='Startovní listina'!E39 -> 1968 | H39: ='Startovní listina'!F39 -> Petrovice | I39: 03:01:47
A40: 1 | C40: ='Startovní listina'!G40 -> D | D40: ='Startovní listina'!B40 -> 37 | E40: ='Startovní listina'!C40 -> Mareš | F40: ='Startovní listina'!D40 -> Bohumil | G40: ='Startovní listina'!E40 -> 1951 | H40: ='Startovní listina'!F40 -> Posilovna Průvan Brno | I40: DNF
A41: 1 | C41: ='Startovní listina'!G41 -> C | D41: ='Startovní listina'!B41 -> 38 | E41: ='Startovní listina'!C41 -> Svoboda | F41: ='Startovní listina'!D41 -> Petr | G41: ='Startovní listina'!E41 -> 1968 | H41: ='Startovní listina'!F41 -> AC Moravská Slavia Brno | I41: 02:38:18
A42: 1 | C42: ='Startovní listina'!G42 -> B | D42: ='Startovní listina'!B42 -> 39 | E42: ='Startovní listina'!C42 -> Faja | F42: ='Startovní listina'!D42 -> Ondřej | G42: ='Startovní listina'!E42 -> 1976 | H42: ='Startovní listina'!F42 -> Brno | I42: 03:46:41
A43: 1 | C43: ='Startovní listina'!G43 -> B | D43: ='Startovní listina'!B43 -> 40 | E43: ='Startovní listina'!C43 -> Řezníček | F43: ='Startovní listina'!D43 -> Petr | G43: ='Startovní listina'!E43 -> 1973 | H43: ='Startovní listina'!F43 -> Polnička | I43: 02:56:53
A44: 1 | C44: ='Startovní listina'!G44 -> C | D44: ='Startovní listina'!B44 -> 41 | E44: ='Startovní listina'!C44 -> Otta | F44: ='Startovní listina'!D44 -> Roman | G44: ='Startovní listina'!E44 -> 1961 | H44: ='Startovní listina'!F44 -> Q Sport Vrchlabí | I44: 02:54:31
A45: 1 | C45: ='Startovní listina'!G45 -> B | D45: ='Startovní listina'!B45 -> 42 | E45: ='Startovní listina'!C45 -> Šerák | F45: ='Startovní listina'!D45 -> Martin | G45: ='Startovní listina'!E45 -> 1978 | H45: ='Startovní listina'!F45 -> Sokol Bílovice nad Svitavou | I45: 02:28:34
A46: 1 | C46: ='Startovní listina'!G46 -> A | D46: ='Startovní listina'!B46 -> 43 | E46: ='Startovní listina'!C46 -> Exner | F46: ='Startovní listina'!D46 -> Jakub | G46: ='Startovní listina'!E46 -> 1983 | H46: ='Startovní listina'!F46 -> Swoboda-pteam | I46: 02:01:49
A47: 1 | C47: ='Startovní listina'!G47 -> B | D47: ='Startovní listina'!B47 -> 44 | E47: ='Startovní listina'!C47 -> Vintrlík | F47: ='Startovní listina'!D47 -> Martin | G47: ='Startovní listina'!E47 -> 1977 | H47: ='Startovní listina'!F47 -> Triatlon Křepice | I47: 02:14:56
A48: 1 | C48: ='Startovní listina'!G48 -> B | D48: ='Startovní listina'!B48 -> 45 | E48: ='Startovní listina'!C48 -> Kropáček | F48: ='Startovní listina'!D48 -> Jaroslav | G48: ='Startovní listina'!E48 -> 1970 | H48: ='Startovní listina'!F48 -> Triatlon Křepice | I48: 02:35:47
A49: 1 | C49: ='Startovní listina'!G49 -> B | D49: ='Startovní listina'!B49 -> 46 | E49: ='Startovní listina'!C49 -> Bracek | F49: ='Startovní listina'!D49 -> Petr | G49: ='Startovní listina'!E49 -> 1979 | H49: ='Startovní listina'!F49 -> Kuřim | I49: 03:19:13
A50: 1 | C50: ='Startovní listina'!G50 -> C | D50: ='Startovní listina'!B50 -> 47 | E50: ='Startovní listina'!C50 -> Plachý | F50: ='Startovní listina'!D50 -> Martin | G50: ='Startovní listina'!E50 -> 1965 | H50: ='Startovní listina'!F50 -> MK Prostějov | I50: 03:33:23
A51: 1 | C51: ='Startovní listina'!G51 -> B | D51: ='Startovní listina'!B51 -> 48 | E51: ='Startovní listina'!C51 -> Viščor | F51: ='Startovní listina'!D51 -> Pavel | G51: ='Startovní listina'!E51 -> 1974 | H51: ='Startovní listina'!F51 -> Brno | I51: 02:26:24
A52: 1 | C52: ='Startovní listina'!G52 -> B | D52: ='Startovní listina'!B52 -> 49 | E52: ='Startovní listina'!C52 -> Kovačič | F52: ='Startovní listina'!D52 -> Sebastian | G52: ='Startovní listina'!E52 -> 1978 | H52: ='Startovní listina'!F52 -> Bílovice nad Svitavou | I52: 03:12:50
A53: 1 | C53: ='Startovní listina'!G53 -> D | D53: ='Startovní listina'!B53 -> 50 | E53: ='Startovní listina'!C53 -> Čuhel | F53: ='Startovní listina'!D53 -> Jiří | G53: ='Startovní listina'!E53 -> 1958 | H53: ='Startovní listina'!F53 -> Křtěnov | I53: 02:31:55
A54: 1 | C54: ='Startovní listina'!G54 -> B | D54: ='Startovní listina'!B54 -> 51 | E54: ='Startovní listina'!C54 -> Weis | F54: ='Startovní listina'!D54 -> Josef | G54: ='Startovní listina'!E54 -> 1974 | H54: ='Startovní listina'!F54 -> Elite Sport Boskovice | I54: 03:05:47
A55: 1 | C55: ='Startovní listina'!G55 -> A | D55: ='Startovní listina'!B55 -> 52 | E55: ='Startovní listina'!C55 -> Glier | F55: ='Startovní listina'!D55 -> Michal | G55: ='Startovní listina'!E55 -> 1982 | H55: ='Startovní listina'!F55 -> behejbrno.com | I55: 02:30:35
A56: 1 | C56: ='Startovní listina'!G56 -> B | D56: ='Startovní listina'!B56 -> 53 | E56: ='Startovní listina'!C56 -> Orálek | F56: ='Startovní listina'!D56 -> Daniel | G56: ='Startovní listina'!E56 -> 1970 | H56: ='Startovní listina'!F56 -> behejbrno.com | I56: 02:09:13
A57: 1 | C57: ='Startovní listina'!G57 -> B | D57: ='Startovní listina'!B57 -> 54 | E57: ='Startovní listina'!C57 -> Sajdl | F57: ='Startovní listina'!D57 -> Ondřej | G57: ='Startovní listina'!E57 -> 1978 | H57: ='Startovní listina'!F57 -> Brno | I57: 03:12:16
A58: 1 | C58: ='Startovní listina'!G58 -> C | D58: ='Startovní listina'!B58 -> 55 | E58: ='Startovní listina'!C58 -> Šůstek | F58: ='Startovní listina'!D58 -> Roman | G58: ='Startovní listina'!E58 -> 1968 | H58: ='Startovní listina'!F58 -> Brno | I58: 03:16:18
A59: 1 | C59: ='Startovní listina'!G59 -> B | D59: ='Startovní listina'!B59 -> 56 | E59: ='Startovní listina'!C59 -> Vykoupil | F59: ='Startovní listina'!D59 -> Miloslav | G59: ='Startovní listina'!E59 -> 1972 | H59: ='Startovní listina'!F59 -> Veverská Bitýška | I59: 02:47:04
A60: 1 | C60: ='Startovní listina'!G60 -> B | D60: ='Startovní listina'!B60 -> 57 | E60: ='Startovní listina'!C60 -> Lorenčík | F60: ='Startovní listina'!D60 -> Aleš | G60: ='Startovní listina'!E60 -> 1973 | H60: ='Startovní listina'!F60 -> Chrudim | I60: 03:15:49
A61: 1 | C61: ='Startovní listina'!G61 -> G | D61: ='Startovní listina'!B61 -> 58 | E61: ='Startovní listina'!C61 -> Jurgová | F61: ='Startovní listina'!D61 -> Martina | G61: ='Startovní listina'!E61 -> 1979 | H61: ='Startovní listina'!F61 -> Brno | I61: 03:18:32
A62: 1 | C62: ='Startovní listina'!G62 -> C | D62: ='Startovní listina'!B62 -> 59 | E62: ='Startovní listina'!C62 -> Havlíček | F62: ='Startovní listina'!D62 -> Ivo | G62: ='Startovní listina'!E62 -> 1966 | H62: ='Startovní listina'!F62 -> Lánov Krkonoše | I62: 02:44:12
A63: 1 | C63: ='Startovní listina'!G63 -> A | D63: ='Startovní listina'!B63 -> 60 | E63: ='Startovní listina'!C63 -> Zedník | F63: ='Startovní listina'!D63 -> Petr | G63: ='Startovní listina'!E63 -> 1982 | H63: ='Startovní listina'!F63 -> Dalečín | I63: 03:47:42
A64: 1 | C64: ='Startovní listina'!G64 -> G | D64: ='Startovní listina'!B64 -> 61 | E64: ='Startovní listina'!C64 -> Munzarová | F64: ='Startovní listina'!D64 -> Věra | G64: ='Startovní listina'!E64 -> 1980 | H64: ='Startovní listina'!F64 -> Dalečín | I64: 03:47:40
A65: 1 | C65: ='Startovní listina'!G65 -> C | D65: ='Startovní listina'!B65 -> 62 | E65: ='Startovní listina'!C65 -> Jílek | F65: ='Startovní listina'!D65 -> Jaroslav | G65: ='Startovní listina'!E65 -> 1966 | H65: ='Startovní listina'!F65 -> Bystřice nad Pernštejnem | I65: 02:40:41
A66: 1 | C66: ='Startovní listina'!G66 -> D | D66: ='Startovní listina'!B66 -> 63 | E66: ='Startovní listina'!C66 -> Boháč | F66: ='Startovní listina'!D66 -> Jiří | G66: ='Startovní listina'!E66 -> 1954 | H66: ='Startovní listina'!F66 -> behejbrno.com | I66: 03:39:41
A67: 1 | C67: ='Startovní listina'!G67 -> B | D67: ='Startovní listina'!B67 -> 64 | E67: ='Startovní listina'!C67 -> Bezchleba | F67: ='Startovní listina'!D67 -> Petr | G67: ='Startovní listina'!E67 -> 1978 | H67: ='Startovní listina'!F67 -> SK TRI CYKLOCHLUBNA | I67: 03:13:11
A68: 1 | C68: ='Startovní listina'!G68 -> C | D68: ='Startovní listina'!B68 -> 65 | E68: ='Startovní listina'!C68 -> Čapka | F68: ='Startovní listina'!D68 -> František | G68: ='Startovní listina'!E68 -> 1968 | H68: ='Startovní listina'!F68 -> Minerva Boskovice | I68: 03:18:12
A69: 1 | C69: ='Startovní listina'!G69 -> C | D69: ='Startovní listina'!B69 -> 66 | E69: ='Startovní listina'!C69 -> Prokop | F69: ='Startovní listina'!D69 -> Ondřej | G69: ='Startovní listina'!E69 -> 1962 | H69: ='Startovní listina'!F69 -> ČAU, Brno | I69: 03:15:05
A70: 1 | C70: ='Startovní listina'!G70 -> B | D70: ='Startovní listina'!B70 -> 67 | E70: ='Startovní listina'!C70 -> Dušil | F70: ='Startovní listina'!D70 -> Jarda | G70: ='Startovní listina'!E70 -> 1970 | H70: ='Startovní listina'!F70 -> Slaměnka (Brno) | I70: 02:39:48
A71: 1 | C71: ='Startovní listina'!G71 -> D | D71: ='Startovní listina'!B71 -> 68 | E71: ='Startovní listina'!C71 -> Sedláček | F71: ='Startovní listina'!D71 -> Svatopluk | G71: ='Startovní listina'!E71 -> 1957 | H71: ='Startovní listina'!F71 -> AC Moravská Slavia Brno | I71: 03:12:40
A72: 1 | C72: ='Startovní listina'!G72 -> B | D72: ='Startovní listina'!B72 -> 69 | E72: ='Startovní listina'!C72 -> Crha | F72: ='Startovní listina'!D72 -> Radek | G72: ='Startovní listina'!E72 -> 1979 | H72: ='Startovní listina'!F72 -> NON AUTOS Radek CRHA (Vidonín) | I72: 04:03:55
A73: 1 | C73: ='Startovní listina'!G73 -> B | D73: ='Startovní listina'!B73 -> 70 | E73: ='Startovní listina'!C73 -> Konečný | F73: ='Startovní listina'!D73 -> Libor | G73: ='Startovní listina'!E73 -> 1971 | H73: ='Startovní listina'!F73 -> Kuřim | I73: 02:22:26
A74: 1 | C74: ='Startovní listina'!G74 ->  | D74: ='Startovní listina'!B74 ->  | E74: ='Startovní listina'!C74 ->  | F74: ='Startovní listina'!D74 ->  | G74: ='Startovní listina'!E74 ->  | H74: ='Startovní listina'!F74 -> 
A75: 1 | C75: ='Startovní listina'!G75 ->  | D75: ='Startovní listina'!B75 ->  | E75: ='Startovní listina'!C75 ->  | F75: ='Startovní listina'!D75 ->  | G75: ='Startovní listina'!E75 ->  | H75: ='Startovní listina'!F75 -> 
A76: 1 | C76: ='Startovní listina'!G76 ->  | D76: ='Startovní listina'!B76 ->  | E76: ='Startovní listina'!C76 ->  | F76: ='Startovní listina'!D76 ->  | G76: ='Startovní listina'!E76 ->  | H76: ='Startovní listina'!F76 -> 
A77: 1 | C77: ='Startovní listina'!G77 ->  | D77: ='Startovní listina'!B77 ->  | E77: ='Startovní listina'!C77 ->  | F77: ='Startovní listina'!D77 ->  | G77: ='Startovní listina'!E77 ->  | H77: ='Startovní listina'!F77 -> 
A78: 1 | C78: ='Startovní listina'!G78 ->  | D78: ='Startovní listina'!B78 ->  | E78: ='Startovní listina'!C78 ->  | F78: ='Startovní listina'!D78 ->  | G78: ='Startovní listina'!E78 ->  | H78: ='Startovní listina'!F78 -> 
A79: 1 | C79: ='Startovní listina'!G79 ->  | D79: ='Startovní listina'!B79 ->  | E79: ='Startovní listina'!C79 ->  | F79: ='Startovní listina'!D79 ->  | G79: ='Startovní listina'!E79 ->  | H79: ='Startovní listina'!F79 -> 
A80: 1 | C80: ='Startovní listina'!G80 ->  | D80: ='Startovní listina'!B80 ->  | E80: ='Startovní listina'!C80 ->  | F80: ='Startovní listina'!D80 ->  | G80: ='Startovní listina'!E80 ->  | H80: ='Startovní listina'!F80 -> 
A81: 1 | C81: ='Startovní listina'!G81 ->  | D81: ='Startovní listina'!B81 ->  | E81: ='Startovní listina'!C81 ->  | F81: ='Startovní listina'!D81 ->  | G81: ='Startovní listina'!E81 ->  | H81: ='Startovní listina'!F81 -> 
A82: 1 | C82: ='Startovní listina'!G82 ->  | D82: ='Startovní listina'!B82 ->  | E82: ='Startovní listina'!C82 ->  | F82: ='Startovní listina'!D82 ->  | G82: ='Startovní listina'!E82 ->  | H82: ='Startovní listina'!F82 -> 
A83: 1 | C83: ='Startovní listina'!G83 ->  | D83: ='Startovní listina'!B83 ->  | E83: ='Startovní listina'!C83 ->  | F83: ='Startovní listina'!D83 ->  | G83: ='Startovní listina'!E83 ->  | H83: ='Startovní listina'!F83 -> 
A84: 1 | C84: ='Startovní listina'!G84 ->  | D84: ='Startovní listina'!B84 ->  | E84: ='Startovní listina'!C84 ->  | F84: ='Startovní listina'!D84 ->  | G84: ='Startovní listina'!E84 ->  | H84: ='Startovní listina'!F84 -> 
A85: 1 | C85: ='Startovní listina'!G85 ->  | D85: ='Startovní listina'!B85 ->  | E85: ='Startovní listina'!C85 ->  | F85: ='Startovní listina'!D85 ->  | G85: ='Startovní listina'!E85 ->  | H85: ='Startovní listina'!F85 -> 
A86: 1 | C86: ='Startovní listina'!G86 ->  | D86: ='Startovní listina'!B86 ->  | E86: ='Startovní listina'!C86 ->  | F86: ='Startovní listina'!D86 ->  | G86: ='Startovní listina'!E86 ->  | H86: ='Startovní listina'!F86 -> 
A87: 1 | C87: ='Startovní listina'!G87 ->  | D87: ='Startovní listina'!B87 ->  | E87: ='Startovní listina'!C87 ->  | F87: ='Startovní listina'!D87 ->  | G87: ='Startovní listina'!E87 ->  | H87: ='Startovní listina'!F87 -> 
A88: 1 | C88: ='Startovní listina'!G88 ->  | D88: ='Startovní listina'!B88 ->  | E88: ='Startovní listina'!C88 ->  | F88: ='Startovní listina'!D88 ->  | G88: ='Startovní listina'!E88 ->  | H88: ='Startovní listina'!F88 -> 
A89: 1 | C89: ='Startovní listina'!G89 ->  | D89: ='Startovní listina'!B89 ->  | E89: ='Startovní listina'!C89 ->  | F89: ='Startovní listina'!D89 ->  | G89: ='Startovní listina'!E89 ->  | H89: ='Startovní listina'!F89 -> 
A90: 1 | C90: ='Startovní listina'!G90 ->  | D90: ='Startovní listina'!B90 ->  | E90: ='Startovní listina'!C90 ->  | F90: ='Startovní listina'!D90 ->  | G90: ='Startovní listina'!E90 ->  | H90: ='Startovní listina'!F90 -> 
A91: 1 | C91: ='Startovní listina'!G91 ->  | D91: ='Startovní listina'!B91 ->  | E91: ='Startovní listina'!C91 ->  | F91: ='Startovní listina'!D91 ->  | G91: ='Startovní listina'!E91 ->  | H91: ='Startovní listina'!F91 -> 
A92: 1 | C92: ='Startovní listina'!G92 ->  | D92: ='Startovní listina'!B92 ->  | E92: ='Startovní listina'!C92 ->  | F92: ='Startovní listina'!D92 ->  | G92: ='Startovní listina'!E92 ->  | H92: ='Startovní listina'!F92 -> 
A93: 1 | C93: ='Startovní listina'!G93 ->  | D93: ='Startovní listina'!B93 ->  | E93: ='Startovní listina'!C93 ->  | F93: ='Startovní listina'!D93 ->  | G93: ='Startovní listina'!E93 ->  | H93: ='Startovní listina'!F93 -> 
A94: 1 | C94: ='Startovní listina'!G94 ->  | D94: ='Startovní listina'!B94 ->  | E94: ='Startovní listina'!C94 ->  | F94: ='Startovní listina'!D94 ->  | G94: ='Startovní listina'!E94 ->  | H94: ='Startovní listina'!F94 -> 
A95: 1 | C95: ='Startovní listina'!G95 ->  | D95: ='Startovní listina'!B95 ->  | E95: ='Startovní listina'!C95 ->  | F95: ='Startovní listina'!D95 ->  | G95: ='Startovní listina'!E95 ->  | H95: ='Startovní listina'!F95 -> 
A96: 1 | C96: ='Startovní listina'!G96 ->  | D96: ='Startovní listina'!B96 ->  | E96: ='Startovní listina'!C96 ->  | F96: ='Startovní listina'!D96 ->  | G96: ='Startovní listina'!E96 ->  | H96: ='Startovní listina'!F96 -> 
A97: 1 | C97: ='Startovní listina'!G97 ->  | D97: ='Startovní listina'!B97 ->  | E97: ='Startovní listina'!C97 ->  | F97: ='Startovní listina'!D97 ->  | G97: ='Startovní listina'!E97 ->  | H97: ='Startovní listina'!F97 -> 
A98: 1 | C98: ='Startovní listina'!G98 ->  | D98: ='Startovní listina'!B98 ->  | E98: ='Startovní listina'!C98 ->  | F98: ='Startovní listina'!D98 ->  | G98: ='Startovní listina'!E98 ->  | H98: ='Startovní listina'!F98 -> 
A99: 1 | C99: ='Startovní listina'!G99 ->  | D99: ='Startovní listina'!B99 ->  | E99: ='Startovní listina'!C99 ->  | F99: ='Startovní listina'!D99 ->  | G99: ='Startovní listina'!E99 ->  | H99: ='Startovní listina'!F99 -> 
A100: 1 | C100: ='Startovní listina'!G100 ->  | D100: ='Startovní listina'!B100 ->  | E100: ='Startovní listina'!C100 ->  | F100: ='Startovní listina'!D100 ->  | G100: ='Startovní listina'!E100 ->  | H100: ='Startovní listina'!F100 -> 
A101: 1 | C101: ='Startovní listina'!G101 ->  | D101: ='Startovní listina'!B101 ->  | E101: ='Startovní listina'!C101 ->  | F101: ='Startovní listina'!D101 ->  | G101: ='Startovní listina'!E101 ->  | H101: ='Startovní listina'!F101 -> 
A102: 1 | C102: ='Startovní listina'!G102 ->  | D102: ='Startovní listina'!B102 ->  | E102: ='Startovní listina'!C102 ->  | F102: ='Startovní listina'!D102 ->  | G102: ='Startovní listina'!E102 ->  | H102: ='Startovní listina'!F102 -> 
A103: 1 | C103: ='Startovní listina'!G103 ->  | D103: ='Startovní listina'!B103 ->  | E103: ='Startovní listina'!C103 ->  | F103: ='Startovní listina'!D103 ->  | G103: ='Startovní listina'!E103 ->  | H103: ='Startovní listina'!F103 -> 
A104: 1 | C104: ='Startovní listina'!G104 ->  | D104: ='Startovní listina'!B104 ->  | E104: ='Startovní listina'!C104 ->  | F104: ='Startovní listina'!D104 ->  | G104: ='Startovní listina'!E104 ->  | H104: ='Startovní listina'!F104 -> 

Sheet Družstva (prac.) (hidden)
B1: ="Výsledková listina - Malý svratecký maratón "&'Prezenční listina'!O2&" - družstva" -> Výsledková listina - Malý svratecký maratón 2019 - družstva
B2: ='Prezenční listina'!O2-1953&". ročník" -> 66. ročník
B3: Pořadí | C3: Startovní číslo | D3: Příjmení | E3: Jméno | F3: Narození | G3: Oddíl / Bydliště | H3: Čas | I3: Výsledný čas
B4: 1. | C4: 3 | D4: =IF(ISERROR(VLOOKUP(C4,'Startovní listina'!$B$5:$F$141,2)),"",VLOOKUP(C4,'Startovní listina'!$B$5:$F$141,2)) -> Timmermansá | E4: =IF(ISERROR(VLOOKUP(C4,'Startovní listina'!$B$5:$F$141,3)),"",VLOOKUP(C4,'Startovní listina'!$B$5:$F$141,3)) -> Aniek | F4: =IF(ISERROR(VLOOKUP(C4,'Startovní listina'!$B$5:$F$141,4)),"",VLOOKUP(C4,'Startovní listina'!$B$5:$F$141,4)) -> 1985 | G4: =IF(K4=K5,K4,"RŮZNÉ ODDÍLY !!!") -> RŮZNÉ ODDÍLY !!! | H4: 03:07:50 | I4: =IF((H4=0),"",H4+H5) -> 05:48:15 | K4: =IF(ISERROR(VLOOKUP(C4,'Startovní listina'!$B$5:$F$141,5)),"",VLOOKUP(C4,'Startovní listina'!$B$5:$F$141,5)) -> Autocamp Na Kopci
C5: 2 | D5: =IF(ISERROR(VLOOKUP(C5,'Startovní listina'!$B$5:$F$141,2)),"",VLOOKUP(C5,'Startovní listina'!$B$5:$F$141,2)) -> Psula | E5: =IF(ISERROR(VLOOKUP(C5,'Startovní listina'!$B$5:$F$141,3)),"",VLOOKUP(C5,'Startovní listina'!$B$5:$F$141,3)) -> Roman | F5: =IF(ISERROR(VLOOKUP(C5,'Startovní listina'!$B$5:$F$141,4)),"",VLOOKUP(C5,'Startovní listina'!$B$5:$F$141,4)) -> 1984 | H5: 02:40:25 | K5: =IF(ISERROR(VLOOKUP(C5,'Startovní listina'!$B$5:$F$141,5)),"",VLOOKUP(C5,'Startovní listina'!$B$5:$F$141,5)) -> Ladermon Team (Olomouc)
B6: 2. | C6: 11 | D6: =IF(ISERROR(VLOOKUP(C6,'Startovní listina'!$B$5:$F$141,2)),"",VLOOKUP(C6,'Startovní listina'!$B$5:$F$141,2)) -> Komblisá | E6: =IF(ISERROR(VLOOKUP(C6,'Startovní listina'!$B$5:$F$141,3)),"",VLOOKUP(C6,'Startovní listina'!$B$5:$F$141,3)) -> Michaela | F6: =IF(ISERROR(VLOOKUP(C6,'Startovní listina'!$B$5:$F$141,4)),"",VLOOKUP(C6,'Startovní listina'!$B$5:$F$141,4)) -> 1981 | G6: =IF(K6=K7,K6,"RŮZNÉ ODDÍLY !!!") -> RŮZNÉ ODDÍLY !!! | H6: 02:01:16 | I6: =IF((H6=0),"",H6+H7) -> 04:06:56 | K6: =IF(ISERROR(VLOOKUP(C6,'Startovní listina'!$B$5:$F$141,5)),"",VLOOKUP(C6,'Startovní listina'!$B$5:$F$141,5)) -> Izrael
C7: 8 | D7: =IF(ISERROR(VLOOKUP(C7,'Startovní listina'!$B$5:$F$141,2)),"",VLOOKUP(C7,'Startovní listina'!$B$5:$F$141,2)) -> Dostálová | E7: =IF(ISERROR(VLOOKUP(C7,'Startovní listina'!$B$5:$F$141,3)),"",VLOOKUP(C7,'Startovní listina'!$B$5:$F$141,3)) -> Vendula | F7: =IF(ISERROR(VLOOKUP(C7,'Startovní listina'!$B$5:$F$141,4)),"",VLOOKUP(C7,'Startovní listina'!$B$5:$F$141,4)) -> 1981 | H7: 02:05:40 | K7: =IF(ISERROR(VLOOKUP(C7,'Startovní listina'!$B$5:$F$141,5)),"",VLOOKUP(C7,'Startovní listina'!$B$5:$F$141,5)) -> HALL 3000
B8: 3. | C8: 9 | D8: =IF(ISERROR(VLOOKUP(C8,'Startovní listina'!$B$5:$F$141,2)),"",VLOOKUP(C8,'Startovní listina'!$B$5:$F$141,2)) -> Pivec | E8: =IF(ISERROR(VLOOKUP(C8,'Startovní listina'!$B$5:$F$141,3)),"",VLOOKUP(C8,'Startovní listina'!$B$5:$F$141,3)) -> Jan | F8: =IF(ISERROR(VLOOKUP(C8,'Startovní listina'!$B$5:$F$141,4)),"",VLOOKUP(C8,'Startovní listina'!$B$5:$F$141,4)) -> 1981 | G8: =IF(K8=K9,K8,"RŮZNÉ ODDÍLY !!!") -> HALL 3000 | H8: 02:40:16 | I8: =IF((H8=0),"",H8+H9) -> 05:12:53 | K8: =IF(ISERROR(VLOOKUP(C8,'Startovní listina'!$B$5:$F$141,5)),"",VLOOKUP(C8,'Startovní listina'!$B$5:$F$141,5)) -> HALL 3000
C9: 10 | D9: =IF(ISERROR(VLOOKUP(C9,'Startovní listina'!$B$5:$F$141,2)),"",VLOOKUP(C9,'Startovní listina'!$B$5:$F$141,2)) -> Bečička | E9: =IF(ISERROR(VLOOKUP(C9,'Startovní listina'!$B$5:$F$141,3)),"",VLOOKUP(C9,'Startovní listina'!$B$5:$F$141,3)) -> Petr | F9: =IF(ISERROR(VLOOKUP(C9,'Startovní listina'!$B$5:$F$141,4)),"",VLOOKUP(C9,'Startovní listina'!$B$5:$F$141,4)) -> 1960 | H9: 02:32:37 | K9: =IF(ISERROR(VLOOKUP(C9,'Startovní listina'!$B$5:$F$141,5)),"",VLOOKUP(C9,'Startovní listina'!$B$5:$F$141,5)) -> HALL 3000
B10: 4. | C10: 23 | D10: =IF(ISERROR(VLOOKUP(C10,'Startovní listina'!$B$5:$F$141,2)),"",VLOOKUP(C10,'Startovní listina'!$B$5:$F$141,2)) -> Holý | E10: =IF(ISERROR(VLOOKUP(C10,'Startovní listina'!$B$5:$F$141,3)),"",VLOOKUP(C10,'Startovní listina'!$B$5:$F$141,3)) -> Josef | F10: =IF(ISERROR(VLOOKUP(C10,'Startovní listina'!$B$5:$F$141,4)),"",VLOOKUP(C10,'Startovní listina'!$B$5:$F$141,4)) -> 1941 | G10: =IF(K10=K11,K10,"RŮZNÉ ODDÍLY !!!") -> RŮZNÉ ODDÍLY !!! | H10: 03:04:10 | I10: =IF((H10=0),"",H10+H11) -> 06:10:48 | K10: =IF(ISERROR(VLOOKUP(C10,'Startovní listina'!$B$5:$F$141,5)),"",VLOOKUP(C10,'Startovní listina'!$B$5:$F$141,5)) -> AC Moravská Slavia Brno
C11: 24 | D11: =IF(ISERROR(VLOOKUP(C11,'Startovní listina'!$B$5:$F$141,2)),"",VLOOKUP(C11,'Startovní listina'!$B$5:$F$141,2)) -> Koutník | E11: =IF(ISERROR(VLOOKUP(C11,'Startovní listina'!$B$5:$F$141,3)),"",VLOOKUP(C11,'Startovní listina'!$B$5:$F$141,3)) -> Lumír | F11: =IF(ISERROR(VLOOKUP(C11,'Startovní listina'!$B$5:$F$141,4)),"",VLOOKUP(C11,'Startovní listina'!$B$5:$F$141,4)) -> 1967 | H11: 03:06:38 | K11: =IF(ISERROR(VLOOKUP(C11,'Startovní listina'!$B$5:$F$141,5)),"",VLOOKUP(C11,'Startovní listina'!$B$5:$F$141,5)) -> A.O. Spartak Vrchlabí
B12: 5. | C12: 35 | D12: =IF(ISERROR(VLOOKUP(C12,'Startovní listina'!$B$5:$F$141,2)),"",VLOOKUP(C12,'Startovní listina'!$B$5:$F$141,2)) -> Krátký | E12: =IF(ISERROR(VLOOKUP(C12,'Startovní listina'!$B$5:$F$141,3)),"",VLOOKUP(C12,'Startovní listina'!$B$5:$F$141,3)) -> Josef | F12: =IF(ISERROR(VLOOKUP(C12,'Startovní listina'!$B$5:$F$141,4)),"",VLOOKUP(C12,'Startovní listina'!$B$5:$F$141,4)) -> 1965 | G12: =IF(K12=K13,K12,"RŮZNÉ ODDÍLY !!!") -> RŮZNÉ ODDÍLY !!! | H12: 02:31:40 | I12: =IF((H12=0),"",H12+H13) -> 06:21:15 | K12: =IF(ISERROR(VLOOKUP(C12,'Startovní listina'!$B$5:$F$141,5)),"",VLOOKUP(C12,'Startovní listina'!$B$5:$F$141,5)) -> Hvězda Pardubice
C13: 36 | D13: =IF(ISERROR(VLOOKUP(C13,'Startovní listina'!$B$5:$F$141,2)),"",VLOOKUP(C13,'Startovní listina'!$B$5:$F$141,2)) -> Dvořáček | E13: =IF(ISERROR(VLOOKUP(C13,'Startovní listina'!$B$5:$F$141,3)),"",VLOOKUP(C13,'Startovní listina'!$B$5:$F$141,3)) -> Jiří | F13: =IF(ISERROR(VLOOKUP(C13,'Startovní listina'!$B$5:$F$141,4)),"",VLOOKUP(C13,'Startovní listina'!$B$5:$F$141,4)) -> 1968 | H13: 03:49:35 | K13: =IF(ISERROR(VLOOKUP(C13,'Startovní listina'!$B$5:$F$141,5)),"",VLOOKUP(C13,'Startovní listina'!$B$5:$F$141,5)) -> Petrovice
B14: 6. | C14: 82 | D14: =IF(ISERROR(VLOOKUP(C14,'Startovní listina'!$B$5:$F$141,2)),"",VLOOKUP(C14,'Startovní listina'!$B$5:$F$141,2)) -> Konečný | E14: =IF(ISERROR(VLOOKUP(C14,'Startovní listina'!$B$5:$F$141,3)),"",VLOOKUP(C14,'Startovní listina'!$B$5:$F$141,3)) -> Libor | F14: =IF(ISERROR(VLOOKUP(C14,'Startovní listina'!$B$5:$F$141,4)),"",VLOOKUP(C14,'Startovní listina'!$B$5:$F$141,4)) -> 1971 | G14: =IF(K14=K15,K14,"RŮZNÉ ODDÍLY !!!") -> Kuřim | H14: 02:11:00 | I14: =IF((H14=0),"",H14+H15) -> 04:05:34 | K14: =IF(ISERROR(VLOOKUP(C14,'Startovní listina'!$B$5:$F$141,5)),"",VLOOKUP(C14,'Startovní listina'!$B$5:$F$141,5)) -> Kuřim
C15: 107 | D15: =IF(ISERROR(VLOOKUP(C15,'Startovní listina'!$B$5:$F$141,2)),"",VLOOKUP(C15,'Startovní listina'!$B$5:$F$141,2)) -> Konečný | E15: =IF(ISERROR(VLOOKUP(C15,'Startovní listina'!$B$5:$F$141,3)),"",VLOOKUP(C15,'Startovní listina'!$B$5:$F$141,3)) -> Libor | F15: =IF(ISERROR(VLOOKUP(C15,'Startovní listina'!$B$5:$F$141,4)),"",VLOOKUP(C15,'Startovní listina'!$B$5:$F$141,4)) -> 1971 | H15: 01:54:34 | K15: =IF(ISERROR(VLOOKUP(C15,'Startovní listina'!$B$5:$F$141,5)),"",VLOOKUP(C15,'Startovní listina'!$B$5:$F$141,5)) -> Kuřim
B16: 7. | C16: 28 | D16: =IF(ISERROR(VLOOKUP(C16,'Startovní listina'!$B$5:$F$141,2)),"",VLOOKUP(C16,'Startovní listina'!$B$5:$F$141,2)) -> Fikejs | E16: =IF(ISERROR(VLOOKUP(C16,'Startovní listina'!$B$5:$F$141,3)),"",VLOOKUP(C16,'Startovní listina'!$B$5:$F$141,3)) -> Vladimír | F16: =IF(ISERROR(VLOOKUP(C16,'Startovní listina'!$B$5:$F$141,4)),"",VLOOKUP(C16,'Startovní listina'!$B$5:$F$141,4)) -> 1957 | G16: =IF(K16=K17,K16,"RŮZNÉ ODDÍLY !!!") -> RŮZNÉ ODDÍLY !!! | H16: 02:19:07 | I16: =IF((H16=0),"",H16+H17) -> 04:24:14 | K16: =IF(ISERROR(VLOOKUP(C16,'Startovní listina'!$B$5:$F$141,5)),"",VLOOKUP(C16,'Startovní listina'!$B$5:$F$141,5)) -> 3D Finess Race Team (Žamberk)
C17: 26 | D17: =IF(ISERROR(VLOOKUP(C17,'Startovní listina'!$B$5:$F$141,2)),"",VLOOKUP(C17,'Startovní listina'!$B$5:$F$141,2)) -> Koudelka | E17: =IF(ISERROR(VLOOKUP(C17,'Startovní listina'!$B$5:$F$141,3)),"",VLOOKUP(C17,'Startovní listina'!$B$5:$F$141,3)) -> Drahomír | F17: =IF(ISERROR(VLOOKUP(C17,'Startovní listina'!$B$5:$F$141,4)),"",VLOOKUP(C17,'Startovní listina'!$B$5:$F$141,4)) -> 1971 | H17: 02:05:07 | K17: =IF(ISERROR(VLOOKUP(C17,'Startovní listina'!$B$5:$F$141,5)),"",VLOOKUP(C17,'Startovní listina'!$B$5:$F$141,5)) -> Meixner Consulting (Pětihosty)
B18: 8. | D18: =IF(ISERROR(VLOOKUP(C18,'Startovní listina'!$B$5:$F$141,2)),"",VLOOKUP(C18,'Startovní listina'!$B$5:$F$141,2)) ->  | E18: =IF(ISERROR(VLOOKUP(C18,'Startovní listina'!$B$5:$F$141,3)),"",VLOOKUP(C18,'Startovní listina'!$B$5:$F$141,3)) ->  | F18: =IF(ISERROR(VLOOKUP(C18,'Startovní listina'!$B$5:$F$141,4)),"",VLOOKUP(C18,'Startovní listina'!$B$5:$F$141,4)) ->  | G18: =IF(K18=K19,K18,"RŮZNÉ ODDÍLY !!!") ->  | I18: =IF((H18=0),"",H18+H19) ->  | K18: =IF(ISERROR(VLOOKUP(C18,'Startovní listina'!$B$5:$F$141,5)),"",VLOOKUP(C18,'Startovní listina'!$B$5:$F$141,5)) -> 
D19: =IF(ISERROR(VLOOKUP(C19,'Startovní listina'!$B$5:$F$141,2)),"",VLOOKUP(C19,'Startovní listina'!$B$5:$F$141,2)) ->  | E19: =IF(ISERROR(VLOOKUP(C19,'Startovní listina'!$B$5:$F$141,3)),"",VLOOKUP(C19,'Startovní listina'!$B$5:$F$141,3)) ->  | F19: =IF(ISERROR(VLOOKUP(C19,'Startovní listina'!$B$5:$F$141,4)),"",VLOOKUP(C19,'Startovní listina'!$B$5:$F$141,4)) ->  | K19: =IF(ISERROR(VLOOKUP(C19,'Startovní listina'!$B$5:$F$141,5)),"",VLOOKUP(C19,'Startovní listina'!$B$5:$F$141,5)) -> 
B20: 9. | D20: =IF(ISERROR(VLOOKUP(C20,'Startovní listina'!$B$5:$F$141,2)),"",VLOOKUP(C20,'Startovní listina'!$B$5:$F$141,2)) ->  | E20: =IF(ISERROR(VLOOKUP(C20,'Startovní listina'!$B$5:$F$141,3)),"",VLOOKUP(C20,'Startovní listina'!$B$5:$F$141,3)) ->  | F20: =IF(ISERROR(VLOOKUP(C20,'Startovní listina'!$B$5:$F$141,4)),"",VLOOKUP(C20,'Startovní listina'!$B$5:$F$141,4)) ->  | G20: =IF(K20=K21,K20,"RŮZNÉ ODDÍLY !!!") ->  | I20: =IF((H20=0),"",H20+H21) ->  | K20: =IF(ISERROR(VLOOKUP(C20,'Startovní listina'!$B$5:$F$141,5)),"",VLOOKUP(C20,'Startovní listina'!$B$5:$F$141,5)) -> 
D21: =IF(ISERROR(VLOOKUP(C21,'Startovní listina'!$B$5:$F$141,2)),"",VLOOKUP(C21,'Startovní listina'!$B$5:$F$141,2)) ->  | E21: =IF(ISERROR(VLOOKUP(C21,'Startovní listina'!$B$5:$F$141,3)),"",VLOOKUP(C21,'Startovní listina'!$B$5:$F$141,3)) ->  | F21: =IF(ISERROR(VLOOKUP(C21,'Startovní listina'!$B$5:$F$141,4)),"",VLOOKUP(C21,'Startovní listina'!$B$5:$F$141,4)) ->  | K21: =IF(ISERROR(VLOOKUP(C21,'Startovní listina'!$B$5:$F$141,5)),"",VLOOKUP(C21,'Startovní listina'!$B$5:$F$141,5)) -> 

Sheet Výsledková listina (2) (hidden)
A1: ="Výsledková listina - Malý svratecký maraton "&'Prezenční listina'!O2 -> Výsledková listina - Malý svratecký maraton 2019
A2: 2015-08-22 | K2: Poté, co jsou dopsány časy VŠECH běžců, stisknout tlačítko 1.řazení Ve sloupci B (Pořadí v kategorii) vytvořit posloupnou číselnou řadu pro každou kategorii a poté stisknout tlačítko 2.řazení !!! POZOR!!! Použití tlačítek je nevratný krok!
A3: ='Prezenční listina'!O2-1953&". ročník" -> 66. ročník
A4: Celkové pořadí | B4: Pořadí v kategorii | C4: Kategorie | D4: Startovní číslo | E4: Příjmení | F4: Jméno | G4: Narození | H4: Oddíl / Bydliště | I4: Čas
A5: 1 | B5: 1 | C5: ='Startovní listina'!G47 -> B | D5: ='Startovní listina'!B47 -> 44 | E5: ='Startovní listina'!C47 -> Vintrlík | F5: ='Startovní listina'!D47 -> Martin | G5: ='Startovní listina'!E47 -> 1977 | H5: ='Startovní listina'!F47 -> Triatlon Křepice | I5: 02:19:48
A6: =IF('Výsledková listina (2)'!D5<>"",A5+1,"") -> 2 | C6: ='Startovní listina'!G71 -> D | D6: ='Startovní listina'!B71 -> 68 | E6: ='Startovní listina'!C71 -> Sedláček | F6: ='Startovní listina'!D71 -> Svatopluk | G6: ='Startovní listina'!E71 -> 1957 | H6: ='Startovní listina'!F71 -> AC Moravská Slavia Brno | I6: 02:47:00
A7: =IF('Výsledková listina (2)'!D6<>"",A6+1,"") -> 3 | C7: ='Startovní listina'!G5 -> A | D7: ='Startovní listina'!B5 -> 1 | E7: ='Startovní listina'!C5 -> Hanák | F7: ='Startovní listina'!D5 -> Martin | G7: ='Startovní listina'!E5 -> 1993 | H7: ='Startovní listina'!F5 -> Ujčov | I7: 03:02:17
A8: =IF('Výsledková listina (2)'!D7<>"",A7+1,"") -> 4 | C8: ='Startovní listina'!G85 ->  | D8: ='Startovní listina'!B85 ->  | E8: ='Startovní listina'!C85 ->  | F8: ='Startovní listina'!D85 ->  | G8: ='Startovní listina'!E85 ->  | H8: ='Startovní listina'!F85 ->  | I8: 03:28:11
A9: =IF('Výsledková listina (2)'!D8<>"",A8+1,"") ->  | C9: ='Startovní listina'!G59 -> B | D9: ='Startovní listina'!B59 -> 56 | E9: ='Startovní listina'!C59 -> Vykoupil | F9: ='Startovní listina'!D59 -> Miloslav | G9: ='Startovní listina'!E59 -> 1972 | H9: ='Startovní listina'!F59 -> Veverská Bitýška | I9: 02:23:11
A10: =IF('Výsledková listina (2)'!D9<>"",A9+1,"") ->  | C10: ='Startovní listina'!G46 -> A | D10: ='Startovní listina'!B46 -> 43 | E10: ='Startovní listina'!C46 -> Exner | F10: ='Startovní listina'!D46 -> Jakub | G10: ='Startovní listina'!E46 -> 1983 | H10: ='Startovní listina'!F46 -> Swoboda-pteam | I10: 02:50:33
A11: =IF('Výsledková listina (2)'!D10<>"",A10+1,"") ->  | C11: ='Startovní listina'!G28 -> B | D11: ='Startovní listina'!B28 -> 25 | E11: ='Startovní listina'!C28 -> Kratochvíl | F11: ='Startovní listina'!D28 -> Jaroslav | G11: ='Startovní listina'!E28 -> 1977 | H11: ='Startovní listina'!F28 -> SDH Hluboké | I11: 02:26:07
A12: =IF('Výsledková listina (2)'!D11<>"",A11+1,"") ->  | C12: ='Startovní listina'!G67 -> B | D12: ='Startovní listina'!B67 -> 64 | E12: ='Startovní listina'!C67 -> Bezchleba | F12: ='Startovní listina'!D67 -> Petr | G12: ='Startovní listina'!E67 -> 1978 | H12: ='Startovní listina'!F67 -> SK TRI CYKLOCHLUBNA | I12: 02:34:42
A13: =IF('Výsledková listina (2)'!D12<>"",A12+1,"") ->  | C13: ='Startovní listina'!G68 -> C | D13: ='Startovní listina'!B68 -> 65 | E13: ='Startovní listina'!C68 -> Čapka | F13: ='Startovní listina'!D68 -> František | G13: ='Startovní listina'!E68 -> 1968 | H13: ='Startovní listina'!F68 -> Minerva Boskovice | I13: 02:42:43
A14: =IF('Výsledková listina (2)'!D13<>"",A13+1,"") ->  | C14: ='Startovní listina'!G62 -> C | D14: ='Startovní listina'!B62 -> 59 | E14: ='Startovní listina'!C62 -> Havlíček | F14: ='Startovní listina'!D62 -> Ivo | G14: ='Startovní listina'!E62 -> 1966 | H14: ='Startovní listina'!F62 -> Lánov Krkonoše | I14: 02:42:35
A15: =IF('Výsledková listina (2)'!D14<>"",A14+1,"") ->  | C15: ='Startovní listina'!G55 -> A | D15: ='Startovní listina'!B55 -> 52 | E15: ='Startovní listina'!C55 -> Glier | F15: ='Startovní listina'!D55 -> Michal | G15: ='Startovní listina'!E55 -> 1982 | H15: ='Startovní listina'!F55 -> behejbrno.com | I15: 02:40:36
A16: =IF('Výsledková listina (2)'!D15<>"",A15+1,"") ->  | C16: ='Startovní listina'!G60 -> B | D16: ='Startovní listina'!B60 -> 57 | E16: ='Startovní listina'!C60 -> Lorenčík | F16: ='Startovní listina'!D60 -> Aleš | G16: ='Startovní listina'!E60 -> 1973 | H16: ='Startovní listina'!F60 -> Chrudim | I16: 02:38:54
A17: =IF('Výsledková listina (2)'!D16<>"",A16+1,"") ->  | C17: ='Startovní listina'!G7 -> F | D17: ='Startovní listina'!B7 -> 3 | E17: ='Startovní listina'!C7 -> Timmermansá | F17: ='Startovní listina'!D7 -> Aniek | G17: ='Startovní listina'!E7 -> 1985 | H17: ='Startovní listina'!F7 -> Autocamp Na Kopci | I17: 03:07:50
A18: =IF('Výsledková listina (2)'!D17<>"",A17+1,"") ->  | C18: ='Startovní listina'!G63 -> A | D18: ='Startovní listina'!B63 -> 60 | E18: ='Startovní listina'!C63 -> Zedník | F18: ='Startovní listina'!D63 -> Petr | G18: ='Startovní listina'!E63 -> 1982 | H18: ='Startovní listina'!F63 -> Dalečín | I18: 02:39:15
A19: =IF('Výsledková listina (2)'!D18<>"",A18+1,"") ->  | C19: ='Startovní listina'!G49 -> B | D19: ='Startovní listina'!B49 -> 46 | E19: ='Startovní listina'!C49 -> Bracek | F19: ='Startovní listina'!D49 -> Petr | G19: ='Startovní listina'!E49 -> 1979 | H19: ='Startovní listina'!F49 -> Kuřim | I19: 02:13:13
A20: =IF('Výsledková listina (2)'!D19<>"",A19+1,"") ->  | C20: ='Startovní listina'!G14 -> C | D20: ='Startovní listina'!B14 -> 10 | E20: ='Startovní listina'!C14 -> Bečička | F20: ='Startovní listina'!D14 -> Petr | G20: ='Startovní listina'!E14 -> 1960 | H20: ='Startovní listina'!F14 -> HALL 3000 | I20: 02:32:37
A21: =IF('Výsledková listina (2)'!D20<>"",A20+1,"") ->  | C21: ='Startovní listina'!G42 -> B | D21: ='Startovní listina'!B42 -> 39 | E21: ='Startovní listina'!C42 -> Faja | F21: ='Startovní listina'!D42 -> Ondřej | G21: ='Startovní listina'!E42 -> 1976 | H21: ='Startovní listina'!F42 -> Brno | I21: 02:49:46
A22: =IF('Výsledková listina (2)'!D22<>"",A21+1,"") ->  | C22: ='Startovní listina'!G79 ->  | D22: ='Startovní listina'!B79 ->  | E22: ='Startovní listina'!C79 ->  | F22: ='Startovní listina'!D79 ->  | G22: ='Startovní listina'!E79 ->  | H22: ='Startovní listina'!F79 ->  | I22: 02:13:29
A23: =IF('Výsledková listina (2)'!D21<>"",A22+1,"") ->  | C23: ='Startovní listina'!G15 -> G | D23: ='Startovní listina'!B15 -> 11 | E23: ='Startovní listina'!C15 -> Komblisá | F23: ='Startovní listina'!D15 -> Michaela | G23: ='Startovní listina'!E15 -> 1981 | H23: ='Startovní listina'!F15 -> Izrael | I23: 02:01:16
A24: =IF('Výsledková listina (2)'!D23<>"",A23+1,"") ->  | C24: ='Startovní listina'!G91 ->  | D24: ='Startovní listina'!B91 ->  | E24: ='Startovní listina'!C91 ->  | F24: ='Startovní listina'!D91 ->  | G24: ='Startovní listina'!E91 ->  | H24: ='Startovní listina'!F91 ->  | I24: 02:30:31
A25: =IF('Výsledková listina (2)'!D24<>"",A24+1,"") ->  | C25: ='Startovní listina'!G74 ->  | D25: ='Startovní listina'!B74 ->  | E25: ='Startovní listina'!C74 ->  | F25: ='Startovní listina'!D74 ->  | G25: ='Startovní listina'!E74 ->  | H25: ='Startovní listina'!F74 ->  | I25: 02:11:00
A26: =IF('Výsledková listina (2)'!D25<>"",A25+1,"") ->  | C26: ='Startovní listina'!G44 -> C | D26: ='Startovní listina'!B44 -> 41 | E26: ='Startovní listina'!C44 -> Otta | F26: ='Startovní listina'!D44 -> Roman | G26: ='Startovní listina'!E44 -> 1961 | H26: ='Startovní listina'!F44 -> Q Sport Vrchlabí | I26: 03:10:37
A27: =IF('Výsledková listina (2)'!D26<>"",A26+1,"") ->  | C27: ='Startovní listina'!G84 ->  | D27: ='Startovní listina'!B84 ->  | E27: ='Startovní listina'!C84 ->  | F27: ='Startovní listina'!D84 ->  | G27: ='Startovní listina'!E84 ->  | H27: ='Startovní listina'!F84 ->  | I27: 02:28:22
A28: =IF('Výsledková listina (2)'!D27<>"",A27+1,"") ->  | C28: ='Startovní listina'!G87 ->  | D28: ='Startovní listina'!B87 ->  | E28: ='Startovní listina'!C87 ->  | F28: ='Startovní listina'!D87 ->  | G28: ='Startovní listina'!E87 ->  | H28: ='Startovní listina'!F87 ->  | I28: 02:29:21
A29: =IF('Výsledková listina (2)'!D28<>"",A28+1,"") ->  | C29: ='Startovní listina'!G75 ->  | D29: ='Startovní listina'!B75 ->  | E29: ='Startovní listina'!C75 ->  | F29: ='Startovní listina'!D75 ->  | G29: ='Startovní listina'!E75 ->  | H29: ='Startovní listina'!F75 ->  | I29: 03:01:37
A30: =IF('Výsledková listina (2)'!D29<>"",A29+1,"") ->  | C30: ='Startovní listina'!G18 -> E | D30: ='Startovní listina'!B18 -> 14 | E30: ='Startovní listina'!C18 -> Vytisk | F30: ='Startovní listina'!D18 -> Alfons | G30: ='Startovní listina'!E18 -> 1949 | H30: ='Startovní listina'!F18 -> MKS Ostrava
A31: =IF('Výsledková listina (2)'!D30<>"",A30+1,"") ->  | C31: ='Startovní listina'!G41 -> C | D31: ='Startovní listina'!B41 -> 38 | E31: ='Startovní listina'!C41 -> Svoboda | F31: ='Startovní listina'!D41 -> Petr | G31: ='Startovní listina'!E41 -> 1968 | H31: ='Startovní listina'!F41 -> AC Moravská Slavia Brno | I31: 02:16:46
A32: =IF('Výsledková listina (2)'!D31<>"",A31+1,"") ->  | C32: ='Startovní listina'!G23 -> G | D32: ='Startovní listina'!B23 -> 20 | E32: ='Startovní listina'!C23 -> Ježová | F32: ='Startovní listina'!D23 -> Martina | G32: ='Startovní listina'!E23 -> 1975 | H32: ='Startovní listina'!F23 -> Brno
A33: =IF('Výsledková listina (2)'!D32<>"",A32+1,"") ->  | C33: ='Startovní listina'!G57 -> B | D33: ='Startovní listina'!B57 -> 54 | E33: ='Startovní listina'!C57 -> Sajdl | F33: ='Startovní listina'!D57 -> Ondřej | G33: ='Startovní listina'!E57 -> 1978 | H33: ='Startovní listina'!F57 -> Brno | I33: 02:42:39
A34: =IF('Výsledková listina (2)'!D33<>"",A33+1,"") ->  | C34: ='Startovní listina'!G40 -> D | D34: ='Startovní listina'!B40 -> 37 | E34: ='Startovní listina'!C40 -> Mareš | F34: ='Startovní listina'!D40 -> Bohumil | G34: ='Startovní listina'!E40 -> 1951 | H34: ='Startovní listina'!F40 -> Posilovna Průvan Brno | I34: 02:10:10
A35: =IF('Výsledková listina (2)'!D34<>"",A34+1,"") ->  | C35: ='Startovní listina'!G9 -> B | D35: ='Startovní listina'!B9 -> 5 | E35: ='Startovní listina'!C9 -> Eliáš | F35: ='Startovní listina'!D9 -> Lukáš | G35: ='Startovní listina'!E9 -> 1979 | H35: ='Startovní listina'!F9 -> Ledová stěna Vír | I35: 02:05:55
A36: =IF('Výsledková listina (2)'!D35<>"",A35+1,"") ->  | C36: ='Startovní listina'!G77 ->  | D36: ='Startovní listina'!B77 ->  | E36: ='Startovní listina'!C77 ->  | F36: ='Startovní listina'!D77 ->  | G36: ='Startovní listina'!E77 ->  | H36: ='Startovní listina'!F77 -> 
A37: =IF('Výsledková listina (2)'!D36<>"",A36+1,"") ->  | C37: ='Startovní listina'!G81 ->  | D37: ='Startovní listina'!B81 ->  | E37: ='Startovní listina'!C81 ->  | F37: ='Startovní listina'!D81 ->  | G37: ='Startovní listina'!E81 ->  | H37: ='Startovní listina'!F81 ->  | I37: 03:24:59
A38: =IF('Výsledková listina (2)'!D37<>"",A37+1,"") ->  | C38: ='Startovní listina'!G54 -> B | D38: ='Startovní listina'!B54 -> 51 | E38: ='Startovní listina'!C54 -> Weis | F38: ='Startovní listina'!D54 -> Josef | G38: ='Startovní listina'!E54 -> 1974 | H38: ='Startovní listina'!F54 -> Elite Sport Boskovice | I38: 02:37:38
A39: =IF('Výsledková listina (2)'!D38<>"",A38+1,"") ->  | C39: ='Startovní listina'!G94 ->  | D39: ='Startovní listina'!B94 ->  | E39: ='Startovní listina'!C94 ->  | F39: ='Startovní listina'!D94 ->  | G39: ='Startovní listina'!E94 ->  | H39: ='Startovní listina'!F94 ->  | I39: 03:13:50
A40: =IF('Výsledková listina (2)'!D39<>"",A39+1,"") ->  | C40: ='Startovní listina'!G20 -> A | D40: ='Startovní listina'!B20 -> 16 | E40: ='Startovní listina'!C20 -> Berák | F40: ='Startovní listina'!D20 -> Lukáš | G40: ='Startovní listina'!E20 -> 1984 | H40: ='Startovní listina'!F20 -> Chotěvice | I40: 02:43:21
A41: =IF('Výsledková listina (2)'!D40<>"",A40+1,"") ->  | C41: ='Startovní listina'!G19 -> C | D41: ='Startovní listina'!B19 -> 15 | E41: ='Startovní listina'!C19 -> Dvorský | F41: ='Startovní listina'!D19 -> Ladislav | G41: ='Startovní listina'!E19 -> 1965 | H41: ='Startovní listina'!F19 -> MKS Ostrava | I41: 03:01:04
A42: =IF('Výsledková listina (2)'!D41<>"",A41+1,"") ->  | C42: ='Startovní listina'!G69 -> C | D42: ='Startovní listina'!B69 -> 66 | E42: ='Startovní listina'!C69 -> Prokop | F42: ='Startovní listina'!D69 -> Ondřej | G42: ='Startovní listina'!E69 -> 1962 | H42: ='Startovní listina'!F69 -> ČAU, Brno | I42: DNF
A43: =IF('Výsledková listina (2)'!D42<>"",A42+1,"") ->  | C43: ='Startovní listina'!G38 -> C | D43: ='Startovní listina'!B38 -> 35 | E43: ='Startovní listina'!C38 -> Krátký | F43: ='Startovní listina'!D38 -> Josef | G43: ='Startovní listina'!E38 -> 1965 | H43: ='Startovní listina'!F38 -> Hvězda Pardubice | I43: 02:26:38
A44: =IF('Výsledková listina (2)'!D43<>"",A43+1,"") ->  | C44: ='Startovní listina'!G80 ->  | D44: ='Startovní listina'!B80 ->  | E44: ='Startovní listina'!C80 ->  | F44: ='Startovní listina'!D80 ->  | G44: ='Startovní listina'!E80 ->  | H44: ='Startovní listina'!F80 ->  | I44: 02:45:32
A45: =IF('Výsledková listina (2)'!D44<>"",A44+1,"") ->  | C45: ='Startovní listina'!G53 -> D | D45: ='Startovní listina'!B53 -> 50 | E45: ='Startovní listina'!C53 -> Čuhel | F45: ='Startovní listina'!D53 -> Jiří | G45: ='Startovní listina'!E53 -> 1958 | H45: ='Startovní listina'!F53 -> Křtěnov | I45: 02:46:25
A46: =IF('Výsledková listina (2)'!D45<>"",A45+1,"") ->  | C46: ='Startovní listina'!G11 -> B | D46: ='Startovní listina'!B11 -> 7 | E46: ='Startovní listina'!C11 -> Kalaš | F46: ='Startovní listina'!D11 -> Rudolf | G46: ='Startovní listina'!E11 -> 1971 | H46: ='Startovní listina'!F11 -> Boskovice | I46: 02:45:37
A47: =IF('Výsledková listina (2)'!D46<>"",A46+1,"") ->  | C47: ='Startovní listina'!G89 ->  | D47: ='Startovní listina'!B89 ->  | E47: ='Startovní listina'!C89 ->  | F47: ='Startovní listina'!D89 ->  | G47: ='Startovní listina'!E89 ->  | H47: ='Startovní listina'!F89 ->  | I47: 02:23:07
A48: =IF('Výsledková listina (2)'!D47<>"",A47+1,"") ->  | C48: ='Startovní listina'!G93 ->  | D48: ='Startovní listina'!B93 ->  | E48: ='Startovní listina'!C93 ->  | F48: ='Startovní listina'!D93 ->  | G48: ='Startovní listina'!E93 ->  | H48: ='Startovní listina'!F93 -> 
A49: =IF('Výsledková listina (2)'!D48<>"",A48+1,"") ->  | C49: ='Startovní listina'!G78 ->  | D49: ='Startovní listina'!B78 ->  | E49: ='Startovní listina'!C78 ->  | F49: ='Startovní listina'!D78 ->  | G49: ='Startovní listina'!E78 ->  | H49: ='Startovní listina'!F78 ->  | I49: 02:49:04
A50: =IF('Výsledková listina (2)'!D49<>"",A49+1,"") ->  | C50: ='Startovní listina'!G35 -> B | D50: ='Startovní listina'!B35 -> 32 | E50: ='Startovní listina'!C35 -> Brázda | F50: ='Startovní listina'!D35 -> Richard | G50: ='Startovní listina'!E35 -> 1975 | H50: ='Startovní listina'!F35 -> Český běžecký klub, Brno | I50: 02:31:40
A51: =IF('Výsledková listina (2)'!D50<>"",A50+1,"") ->  | C51: ='Startovní listina'!G36 -> B | D51: ='Startovní listina'!B36 -> 33 | E51: ='Startovní listina'!C36 -> Krátký | F51: ='Startovní listina'!D36 -> Pavel | G51: ='Startovní listina'!E36 -> 1974 | H51: ='Startovní listina'!F36 -> TS Jan Kohut (Olomučany)
A52: =IF('Výsledková listina (2)'!D51<>"",A51+1,"") ->  | C52: ='Startovní listina'!G29 -> B | D52: ='Startovní listina'!B29 -> 26 | E52: ='Startovní listina'!C29 -> Koudelka | F52: ='Startovní listina'!D29 -> Drahomír | G52: ='Startovní listina'!E29 -> 1971 | H52: ='Startovní listina'!F29 -> Meixner Consulting (Pětihosty) | I52: 02:19:07
A53: =IF('Výsledková listina (2)'!D52<>"",A52+1,"") ->  | C53: ='Startovní listina'!G86 ->  | D53: ='Startovní listina'!B86 ->  | E53: ='Startovní listina'!C86 ->  | F53: ='Startovní listina'!D86 ->  | G53: ='Startovní listina'!E86 ->  | H53: ='Startovní listina'!F86 ->  | I53: 02:21:00
A54: =IF('Výsledková listina (2)'!D53<>"",A53+1,"") ->  | C54: ='Startovní listina'!G17 -> A | D54: ='Startovní listina'!B17 -> 13 | E54: ='Startovní listina'!C17 -> Fousek | F54: ='Startovní listina'!D17 -> Jan | G54: ='Startovní listina'!E17 -> 1991 | H54: ='Startovní listina'!F17 -> MKS Ostrava | I54: 03:06:22
A55: =IF('Výsledková listina (2)'!D54<>"",A54+1,"") ->  | C55: ='Startovní listina'!G37 -> A | D55: ='Startovní listina'!B37 -> 34 | E55: ='Startovní listina'!C37 -> Dvořák | F55: ='Startovní listina'!D37 -> Petr | G55: ='Startovní listina'!E37 -> 1986 | H55: ='Startovní listina'!F37 -> Brno | I55: 02:32:28
A56: =IF('Výsledková listina (2)'!D55<>"",A55+1,"") ->  | C56: ='Startovní listina'!G32 -> D | D56: ='Startovní listina'!B32 -> 29 | E56: ='Startovní listina'!C32 -> Novotný | F56: ='Startovní listina'!D32 -> Jaroslav | G56: ='Startovní listina'!E32 -> 1955 | H56: ='Startovní listina'!F32 -> TEP Trutnov | I56: 02:59:30
A57: =IF('Výsledková listina (2)'!D56<>"",A56+1,"") ->  | C57: ='Startovní listina'!G58 -> C | D57: ='Startovní listina'!B58 -> 55 | E57: ='Startovní listina'!C58 -> Šůstek | F57: ='Startovní listina'!D58 -> Roman | G57: ='Startovní listina'!E58 -> 1968 | H57: ='Startovní listina'!F58 -> Brno | I57: 02:07:54
A58: =IF('Výsledková listina (2)'!D57<>"",A57+1,"") ->  | C58: ='Startovní listina'!G26 -> E | D58: ='Startovní listina'!B26 -> 23 | E58: ='Startovní listina'!C26 -> Holý | F58: ='Startovní listina'!D26 -> Josef | G58: ='Startovní listina'!E26 -> 1941 | H58: ='Startovní listina'!F26 -> AC Moravská Slavia Brno | I58: 03:06:38
A59: =IF('Výsledková listina (2)'!D58<>"",A58+1,"") ->  | C59: ='Startovní listina'!G52 -> B | D59: ='Startovní listina'!B52 -> 49 | E59: ='Startovní listina'!C52 -> Kovačič | F59: ='Startovní listina'!D52 -> Sebastian | G59: ='Startovní listina'!E52 -> 1978 | H59: ='Startovní listina'!F52 -> Bílovice nad Svitavou | I59: 03:14:48
A60: =IF('Výsledková listina (2)'!D59<>"",A59+1,"") ->  | C60: ='Startovní listina'!G66 -> D | D60: ='Startovní listina'!B66 -> 63 | E60: ='Startovní listina'!C66 -> Boháč | F60: ='Startovní listina'!D66 -> Jiří | G60: ='Startovní listina'!E66 -> 1954 | H60: ='Startovní listina'!F66 -> behejbrno.com | I60: 02:46:48
A61: =IF('Výsledková listina (2)'!D60<>"",A60+1,"") ->  | C61: ='Startovní listina'!G31 -> D | D61: ='Startovní listina'!B31 -> 28 | E61: ='Startovní listina'!C31 -> Fikejs | F61: ='Startovní listina'!D31 -> Vladimír | G61: ='Startovní listina'!E31 -> 1957 | H61: ='Startovní listina'!F31 -> 3D Finess Race Team (Žamberk) | I61: 02:38:44
A62: =IF('Výsledková listina (2)'!D61<>"",A61+1,"") ->  | C62: ='Startovní listina'!G92 ->  | D62: ='Startovní listina'!B92 ->  | E62: ='Startovní listina'!C92 ->  | F62: ='Startovní listina'!D92 ->  | G62: ='Startovní listina'!E92 ->  | H62: ='Startovní listina'!F92 ->  | I62: 03:04:27
A63: =IF('Výsledková listina (2)'!D62<>"",A62+1,"") ->  | C63: ='Startovní listina'!G45 -> B | D63: ='Startovní listina'!B45 -> 42 | E63: ='Startovní listina'!C45 -> Šerák | F63: ='Startovní listina'!D45 -> Martin | G63: ='Startovní listina'!E45 -> 1978 | H63: ='Startovní listina'!F45 -> Sokol Bílovice nad Svitavou | I63: 03:21:11
A64: =IF('Výsledková listina (2)'!D63<>"",A63+1,"") ->  | C64: ='Startovní listina'!G34 -> D | D64: ='Startovní listina'!B34 -> 31 | E64: ='Startovní listina'!C34 -> Bělehrádek | F64: ='Startovní listina'!D34 -> Pavel | G64: ='Startovní listina'!E34 -> 1958 | H64: ='Startovní listina'!F34 -> TJ Čolek (Velké Tresné) | I64: 03:00:59
A65: =IF('Výsledková listina (2)'!D64<>"",A64+1,"") ->  | C65: ='Startovní listina'!G8 -> H | D65: ='Startovní listina'!B8 -> 4 | E65: ='Startovní listina'!C8 -> Komárková | F65: ='Startovní listina'!D8 -> Zdeňka | G65: ='Startovní listina'!E8 -> 1974 | H65: ='Startovní listina'!F8 -> SDH Bolešín | I65: 03:30:08
A66: =IF('Výsledková listina (2)'!D65<>"",A65+1,"") ->  | C66: ='Startovní listina'!G73 -> B | D66: ='Startovní listina'!B73 -> 70 | E66: ='Startovní listina'!C73 -> Konečný | F66: ='Startovní listina'!D73 -> Libor | G66: ='Startovní listina'!E73 -> 1971 | H66: ='Startovní listina'!F73 -> Kuřim | I66: 03:01:32
A67: =IF('Výsledková listina (2)'!D66<>"",A66+1,"") ->  | C67: ='Startovní listina'!G27 -> C | D67: ='Startovní listina'!B27 -> 24 | E67: ='Startovní listina'!C27 -> Koutník | F67: ='Startovní listina'!D27 -> Lumír | G67: ='Startovní listina'!E27 -> 1967 | H67: ='Startovní listina'!F27 -> A.O. Spartak Vrchlabí | I67: 02:05:07
A68: =IF('Výsledková listina (2)'!D67<>"",A67+1,"") ->  | C68: ='Startovní listina'!G70 -> B | D68: ='Startovní listina'!B70 -> 67 | E68: ='Startovní listina'!C70 -> Dušil | F68: ='Startovní listina'!D70 -> Jarda | G68: ='Startovní listina'!E70 -> 1970 | H68: ='Startovní listina'!F70 -> Slaměnka (Brno) | I68: 02:57:35
A69: =IF('Výsledková listina (2)'!D68<>"",A68+1,"") ->  | C69: ='Startovní listina'!G51 -> B | D69: ='Startovní listina'!B51 -> 48 | E69: ='Startovní listina'!C51 -> Viščor | F69: ='Startovní listina'!D51 -> Pavel | G69: ='Startovní listina'!E51 -> 1974 | H69: ='Startovní listina'!F51 -> Brno | I69: 02:19:36
A70: =IF('Výsledková listina (2)'!D69<>"",A69+1,"") ->  | C70: ='Startovní listina'!G98 ->  | D70: ='Startovní listina'!B98 ->  | E70: ='Startovní listina'!C98 ->  | F70: ='Startovní listina'!D98 ->  | G70: ='Startovní listina'!E98 ->  | H70: ='Startovní listina'!F98 ->  | I70: 01:54:34
A71: =IF('Výsledková listina (2)'!D70<>"",A70+1,"") ->  | C71: ='Startovní listina'!G50 -> C | D71: ='Startovní listina'!B50 -> 47 | E71: ='Startovní listina'!C50 -> Plachý | F71: ='Startovní listina'!D50 -> Martin | G71: ='Startovní listina'!E50 -> 1965 | H71: ='Startovní listina'!F50 -> MK Prostějov | I71: 02:21:57
A72: =IF('Výsledková listina (2)'!D71<>"",A71+1,"") ->  | C72: ='Startovní listina'!G21 -> C | D72: ='Startovní listina'!B21 -> 17 | E72: ='Startovní listina'!C21 -> Tůma | F72: ='Startovní listina'!D21 -> Petr | G72: ='Startovní listina'!E21 -> 1968 | H72: ='Startovní listina'!F21 -> Slatinští šneci (Slatina)
A73: =IF('Výsledková listina (2)'!D72<>"",A72+1,"") ->  | C73: ='Startovní listina'!G6 -> A | D73: ='Startovní listina'!B6 -> 2 | E73: ='Startovní listina'!C6 -> Psula | F73: ='Startovní listina'!D6 -> Roman | G73: ='Startovní listina'!E6 -> 1984 | H73: ='Startovní listina'!F6 -> Ladermon Team (Olomouc) | I73: 02:40:25
A74: =IF('Výsledková listina (2)'!D73<>"",A73+1,"") ->  | C74: ='Startovní listina'!G48 -> B | D74: ='Startovní listina'!B48 -> 45 | E74: ='Startovní listina'!C48 -> Kropáček | F74: ='Startovní listina'!D48 -> Jaroslav | G74: ='Startovní listina'!E48 -> 1970 | H74: ='Startovní listina'!F48 -> Triatlon Křepice | I74: 02:21:35
A75: =IF('Výsledková listina (2)'!D74<>"",A74+1,"") ->  | C75: ='Startovní listina'!G97 ->  | D75: ='Startovní listina'!B97 ->  | E75: ='Startovní listina'!C97 ->  | F75: ='Startovní listina'!D97 ->  | G75: ='Startovní listina'!E97 ->  | H75: ='Startovní listina'!F97 ->  | I75: 03:14:54
A76: =IF('Výsledková listina (2)'!D75<>"",A75+1,"") ->  | C76: ='Startovní listina'!G22 -> D | D76: ='Startovní listina'!B22 -> 18 | E76: ='Startovní listina'!C22 -> Bouček | F76: ='Startovní listina'!D22 -> Zdeněk | G76: ='Startovní listina'!E22 -> 1956 | H76: ='Startovní listina'!F22 -> Velké Meziříčí | I76: 02:25:09
A77: =IF('Výsledková listina (2)'!D76<>"",A76+1,"") ->  | C77: ='Startovní listina'!G82 ->  | D77: ='Startovní listina'!B82 ->  | E77: ='Startovní listina'!C82 ->  | F77: ='Startovní listina'!D82 ->  | G77: ='Startovní listina'!E82 ->  | H77: ='Startovní listina'!F82 ->  | I77: 02:50:59
A78: =IF('Výsledková listina (2)'!D77<>"",A77+1,"") ->  | C78: ='Startovní listina'!G96 ->  | D78: ='Startovní listina'!B96 ->  | E78: ='Startovní listina'!C96 ->  | F78: ='Startovní listina'!D96 ->  | G78: ='Startovní listina'!E96 ->  | H78: ='Startovní listina'!F96 ->  | I78: 03:12:26
A79: =IF('Výsledková listina (2)'!D78<>"",A78+1,"") ->  | C79: ='Startovní listina'!G30 -> D | D79: ='Startovní listina'!B30 -> 27 | E79: ='Startovní listina'!C30 -> Kubík | F79: ='Startovní listina'!D30 -> Jaromír | G79: ='Startovní listina'!E30 -> 1955 | H79: ='Startovní listina'!F30 -> Blansko | I79: 02:37:53
A80: =IF('Výsledková listina (2)'!D79<>"",A79+1,"") ->  | C80: ='Startovní listina'!G64 -> G | D80: ='Startovní listina'!B64 -> 61 | E80: ='Startovní listina'!C64 -> Munzarová | F80: ='Startovní listina'!D64 -> Věra | G80: ='Startovní listina'!E64 -> 1980 | H80: ='Startovní listina'!F64 -> Dalečín | I80: 03:18:47
A81: =IF('Výsledková listina (2)'!D80<>"",A80+1,"") ->  | C81: ='Startovní listina'!G39 -> C | D81: ='Startovní listina'!B39 -> 36 | E81: ='Startovní listina'!C39 -> Dvořáček | F81: ='Startovní listina'!D39 -> Jiří | G81: ='Startovní listina'!E39 -> 1968 | H81: ='Startovní listina'!F39 -> Petrovice | I81: 02:07:35
A82: =IF('Výsledková listina (2)'!D81<>"",A81+1,"") ->  | C82: ='Startovní listina'!G56 -> B | D82: ='Startovní listina'!B56 -> 53 | E82: ='Startovní listina'!C56 -> Orálek | F82: ='Startovní listina'!D56 -> Daniel | G82: ='Startovní listina'!E56 -> 1970 | H82: ='Startovní listina'!F56 -> behejbrno.com | I82: 02:24:19
A83: =IF('Výsledková listina (2)'!D82<>"",A82+1,"") ->  | C83: ='Startovní listina'!G83 ->  | D83: ='Startovní listina'!B83 ->  | E83: ='Startovní listina'!C83 ->  | F83: ='Startovní listina'!D83 ->  | G83: ='Startovní listina'!E83 ->  | H83: ='Startovní listina'!F83 ->  | I83: 02:31:15
A84: =IF('Výsledková listina (2)'!D83<>"",A83+1,"") ->  | C84: ='Startovní listina'!G61 -> G | D84: ='Startovní listina'!B61 -> 58 | E84: ='Startovní listina'!C61 -> Jurgová | F84: ='Startovní listina'!D61 -> Martina | G84: ='Startovní listina'!E61 -> 1979 | H84: ='Startovní listina'!F61 -> Brno | I84: 02:27:55
A85: =IF('Výsledková listina (2)'!D84<>"",A84+1,"") ->  | C85: ='Startovní listina'!G95 ->  | D85: ='Startovní listina'!B95 ->  | E85: ='Startovní listina'!C95 ->  | F85: ='Startovní listina'!D95 ->  | G85: ='Startovní listina'!E95 ->  | H85: ='Startovní listina'!F95 ->  | I85: 02:34:44
A86: =IF('Výsledková listina (2)'!D85<>"",A85+1,"") ->  | C86: ='Startovní listina'!G65 -> C | D86: ='Startovní listina'!B65 -> 62 | E86: ='Startovní listina'!C65 -> Jílek | F86: ='Startovní listina'!D65 -> Jaroslav | G86: ='Startovní listina'!E65 -> 1966 | H86: ='Startovní listina'!F65 -> Bystřice nad Pernštejnem | I86: 02:58:55
A87: =IF('Výsledková listina (2)'!D86<>"",A86+1,"") ->  | C87: ='Startovní listina'!G43 -> B | D87: ='Startovní listina'!B43 -> 40 | E87: ='Startovní listina'!C43 -> Řezníček | F87: ='Startovní listina'!D43 -> Petr | G87: ='Startovní listina'!E43 -> 1973 | H87: ='Startovní listina'!F43 -> Polnička | I87: 02:32:49
A88: =IF('Výsledková listina (2)'!D87<>"",A87+1,"") ->  | C88: ='Startovní listina'!G33 -> A | D88: ='Startovní listina'!B33 -> 30 | E88: ='Startovní listina'!C33 -> Příhoda | F88: ='Startovní listina'!D33 -> Jan | G88: ='Startovní listina'!E33 -> 1983 | H88: ='Startovní listina'!F33 -> Brno
A89: =IF('Výsledková listina (2)'!D88<>"",A88+1,"") ->  | C89: ='Startovní listina'!G76 ->  | D89: ='Startovní listina'!B76 ->  | E89: ='Startovní listina'!C76 ->  | F89: ='Startovní listina'!D76 ->  | G89: ='Startovní listina'!E76 ->  | H89: ='Startovní listina'!F76 ->  | I89: 03:18:56
A90: =IF('Výsledková listina (2)'!D89<>"",A89+1,"") ->  | C90: ='Startovní listina'!G12 -> G | D90: ='Startovní listina'!B12 -> 8 | E90: ='Startovní listina'!C12 -> Dostálová | F90: ='Startovní listina'!D12 -> Vendula | G90: ='Startovní listina'!E12 -> 1981 | H90: ='Startovní listina'!F12 -> HALL 3000 | I90: 02:05:40
A91: =IF('Výsledková listina (2)'!D90<>"",A90+1,"") ->  | C91: ='Startovní listina'!G24 -> A | D91: ='Startovní listina'!B24 -> 21 | E91: ='Startovní listina'!C24 -> Podsedník | F91: ='Startovní listina'!D24 -> Marek | G91: ='Startovní listina'!E24 -> 1985 | H91: ='Startovní listina'!F24 -> Brno | I91: 02:08:44
A92: =IF('Výsledková listina (2)'!D91<>"",A91+1,"") ->  | C92: ='Startovní listina'!G16 -> E | D92: ='Startovní listina'!B16 -> 12 | E92: ='Startovní listina'!C16 -> Glier | F92: ='Startovní listina'!D16 -> Miroslav | G92: ='Startovní listina'!E16 -> 1949 | H92: ='Startovní listina'!F16 -> Ústí nad Labem
A93: =IF('Výsledková listina (2)'!D92<>"",A92+1,"") ->  | C93: ='Startovní listina'!G88 ->  | D93: ='Startovní listina'!B88 ->  | E93: ='Startovní listina'!C88 ->  | F93: ='Startovní listina'!D88 ->  | G93: ='Startovní listina'!E88 ->  | H93: ='Startovní listina'!F88 ->  | I93: 02:53:55
A94: =IF('Výsledková listina (2)'!D93<>"",A93+1,"") ->  | C94: ='Startovní listina'!G90 ->  | D94: ='Startovní listina'!B90 ->  | E94: ='Startovní listina'!C90 ->  | F94: ='Startovní listina'!D90 ->  | G94: ='Startovní listina'!E90 ->  | H94: ='Startovní listina'!F90 ->  | I94: 02:55:52
A95: =IF('Výsledková listina (2)'!D94<>"",A94+1,"") ->  | C95: ='Startovní listina'!G25 -> D | D95: ='Startovní listina'!B25 -> 22 | E95: ='Startovní listina'!C25 -> Zejda | F95: ='Startovní listina'!D25 -> Ivo | G95: ='Startovní listina'!E25 -> 1956 | H95: ='Startovní listina'!F25 -> AC Moravská Slavia Brno | I95: 03:04:10
A96: =IF('Výsledková listina (2)'!D95<>"",A95+1,"") ->  | C96: ='Startovní listina'!G72 -> B | D96: ='Startovní listina'!B72 -> 69 | E96: ='Startovní listina'!C72 -> Crha | F96: ='Startovní listina'!D72 -> Radek | G96: ='Startovní listina'!E72 -> 1979 | H96: ='Startovní listina'!F72 -> NON AUTOS Radek CRHA (Vidonín)
A97: =IF('Výsledková listina (2)'!D96<>"",A96+1,"") ->  | C97: ='Startovní listina'!G13 -> A | D97: ='Startovní listina'!B13 -> 9 | E97: ='Startovní listina'!C13 -> Pivec | F97: ='Startovní listina'!D13 -> Jan | G97: ='Startovní listina'!E13 -> 1981 | H97: ='Startovní listina'!F13 -> HALL 3000 | I97: 02:40:16
A98: =IF('Výsledková listina (2)'!D97<>"",A97+1,"") ->  | C98: ='Startovní listina'!G10 -> C | D98: ='Startovní listina'!B10 -> 6 | E98: ='Startovní listina'!C10 -> Rychecký | F98: ='Startovní listina'!D10 -> Tomáš | G98: ='Startovní listina'!E10 -> 1966 | H98: ='Startovní listina'!F10 -> HH Smíchov | I98: 03:00:21
A99: =IF('Výsledková listina (2)'!D98<>"",A98+1,"") ->  | C99: ='Startovní listina'!G99 ->  | D99: ='Startovní listina'!B99 ->  | E99: ='Startovní listina'!C99 ->  | F99: ='Startovní listina'!D99 ->  | G99: ='Startovní listina'!E99 ->  | H99: ='Startovní listina'!F99 -> 
A100: =IF('Výsledková listina (2)'!D99<>"",A99+1,"") ->  | C100: ='Startovní listina'!G100 ->  | D100: ='Startovní listina'!B100 ->  | E100: ='Startovní listina'!C100 ->  | F100: ='Startovní listina'!D100 ->  | G100: ='Startovní listina'!E100 ->  | H100: ='Startovní listina'!F100 -> 
A101: =IF('Výsledková listina (2)'!D100<>"",A100+1,"") ->  | C101: ='Startovní listina'!G101 ->  | D101: ='Startovní listina'!B101 ->  | E101: ='Startovní listina'!C101 ->  | F101: ='Startovní listina'!D101 ->  | G101: ='Startovní listina'!E101 ->  | H101: ='Startovní listina'!F101 -> 
A102: =IF('Výsledková listina (2)'!D101<>"",A101+1,"") ->  | C102: ='Startovní listina'!G102 ->  | D102: ='Startovní listina'!B102 ->  | E102: ='Startovní listina'!C102 ->  | F102: ='Startovní listina'!D102 ->  | G102: ='Startovní listina'!E102 ->  | H102: ='Startovní listina'!F102 -> 
A103: =IF('Výsledková listina (2)'!D102<>"",A102+1,"") ->  | C103: ='Startovní listina'!G103 ->  | D103: ='Startovní listina'!B103 ->  | E103: ='Startovní listina'!C103 ->  | F103: ='Startovní listina'!D103 ->  | G103: ='Startovní listina'!E103 ->  | H103: ='Startovní listina'!F103 -> 
